{"text_format":"1","workbook":"xlsx","n_sheets":1,"sheets":["BSTM Eval"],"not_rendered":{"charts":0,"images":1,"macros":1,"external_links":0,"defined_names":1,"comments":0,"pivot_tables":0},"unopened":[],"bounds":{"document_bytes":16777216,"sheet_cells":100000,"rows_first":2000,"rows_last":500,"rows_between":2000,"halvings":0,"cell_chars":16384,"cell_head_chars":4096},"cells_cut":0,"cells_raw":0,"read":"whole","date_system":"1900"}

{"sheet":"BSTM Eval","index":0,"n_rows":1044,"n_cols":73,"rows_kept":1044,"cut":false,"hidden":false,"merged":[[58,23,58,24],[1,34,8,34],[48,30,48,37],[47,30,47,37],[43,30,43,37],[42,49,42,53],[41,49,41,53],[41,29,41,37],[38,29,39,57],[33,29,33,37],[24,29,24,37],[23,29,23,37],[21,29,21,37],[20,29,20,37],[19,29,19,37],[13,29,13,37],[2,44,3,44],[4,44,6,44],[2,35,3,35],[4,35,6,35],[2,45,3,50],[4,45,6,50],[1,45,1,50],[2,36,3,41],[4,36,6,41],[1,36,1,41],[26,25,26,26],[19,10,19,12],[19,13,19,20],[19,21,19,22],[19,23,19,24],[19,25,19,26],[14,10,14,12],[14,13,14,20],[14,21,14,22],[14,23,14,24],[13,38,13,39],[13,40,13,41],[26,29,26,57],[19,0,19,5],[19,6,19,7],[24,0,25,26],[20,0,20,5],[20,6,20,7],[20,10,20,12],[20,13,20,20],[20,21,20,22],[20,23,20,24],[20,25,20,26],[21,13,21,20],[21,21,21,22],[21,23,21,24],[23,0,23,5],[23,6,23,7],[23,10,23,12],[44,10,44,12],[44,54,44,55],[44,25,44,26],[44,38,44,41],[23,13,23,20],[23,21,23,22],[23,23,23,24],[23,25,23,26],[22,23,22,24],[22,25,22,26],[25,29,25,57],[26,10,26,12],[43,0,43,26],[41,0,41,5],[41,6,41,7],[41,10,41,12],[26,0,26,5],[26,6,26,7],[26,13,26,20],[26,21,26,22],[26,23,26,24],[23,56,23,57],[24,38,24,39],[23,38,23,39],[45,54,45,55],[46,54,46,55],[46,56,46,57],[45,56,45,57],[44,56,44,57],[44,43,44,48],[45,43,45,48],[46,43,46,48],[44,49,44,53],[45,49,45,53],[46,49,46,53],[0,43,0,46],[0,47,0,48],[45,38,45,41],[46,38,46,41],[44,30,44,37],[45,30,45,37],[46,30,46,37],[0,0,0,12],[0,13,0,32],[0,34,0,41],[12,40,12,49],[10,0,11,26],[10,29,11,57],[12,0,12,5],[12,6,12,7],[12,8,12,9],[12,10,12,20],[12,21,12,22],[12,23,12,24],[12,25,12,26],[12,29,12,39],[13,56,13,57],[13,0,13,5],[13,6,13,7],[1,0,1,2],[1,3,1,12],[1,13,1,32],[4,13,4,32],[6,0,8,29],[2,13,3,32],[3,0,3,2],[3,3,3,12],[13,10,13,12],[13,13,13,20],[13,21,13,22],[13,23,13,24],[13,25,13,26],[13,42,13,51],[13,52,13,53],[13,54,13,55],[15,38,15,39],[15,42,15,44],[15,45,15,51],[15,52,15,53],[15,54,15,55],[15,56,15,57],[14,54,14,55],[14,56,14,57],[14,38,14,39],[14,42,14,44],[14,45,14,51],[14,52,14,53],[15,0,15,5],[15,6,15,7],[15,10,15,12],[15,13,15,20],[15,21,15,22],[15,23,15,24],[15,25,15,26],[15,29,15,37],[14,25,14,26],[14,29,14,37],[14,0,14,5],[14,6,14,7],[16,54,16,55],[16,56,16,57],[17,0,17,5],[17,6,17,7],[17,10,17,12],[17,13,17,20],[17,21,17,22],[17,23,17,24],[17,25,17,26],[17,29,17,37],[16,25,16,26],[16,29,16,37],[16,38,16,39],[16,42,16,44],[16,45,16,51],[16,52,16,53],[16,0,16,5],[16,6,16,7],[16,10,16,12],[16,13,16,20],[16,21,16,22],[16,23,16,24],[17,38,17,39],[17,42,17,44],[17,56,17,57],[20,38,20,39],[20,42,20,44],[20,45,20,51],[20,52,20,53],[20,54,20,55],[18,54,18,55],[18,56,18,57],[19,38,19,39],[19,42,19,44],[19,45,19,51],[19,52,19,53],[19,54,19,55],[19,56,19,57],[20,56,20,57],[18,0,18,5],[18,6,18,7],[18,10,18,12],[18,13,18,20],[18,21,18,22],[18,23,18,24],[17,45,17,51],[17,52,17,53],[17,54,17,55],[18,25,18,26],[18,29,18,37],[18,38,18,39],[18,42,18,44],[18,45,18,51],[18,52,18,53],[21,56,21,57],[22,0,22,5],[22,6,22,7],[22,10,22,12],[22,13,22,20],[22,21,22,22],[22,52,22,53],[22,54,22,55],[22,56,22,57],[22,29,22,37],[22,38,22,39],[22,42,22,44],[22,45,22,51],[21,42,21,44],[21,45,21,51],[21,52,21,53],[21,54,21,55],[21,38,21,39],[21,0,21,5],[21,6,21,7],[21,10,21,12],[23,42,23,44],[23,45,23,51],[23,52,23,53],[23,54,23,55],[24,42,24,44],[24,45,24,51],[24,52,24,53],[24,54,24,55],[24,56,24,57],[27,52,27,53],[27,54,27,55],[27,56,27,57],[28,0,28,5],[28,6,28,7],[28,10,28,12],[28,13,28,20],[28,21,28,22],[28,52,28,53],[28,54,28,55],[28,56,28,57],[28,29,28,37],[28,38,28,39],[28,42,28,44],[28,45,28,51],[27,0,27,5],[27,6,27,7],[27,10,27,12],[27,13,27,20],[27,21,27,22],[27,23,27,24],[27,25,27,26],[27,29,27,37],[27,38,27,39],[29,10,29,12],[29,13,29,20],[29,21,29,22],[29,23,29,24],[29,25,29,26],[28,23,28,24],[28,25,28,26],[27,40,27,41],[27,42,27,51],[30,56,30,57],[31,0,31,26],[31,29,31,37],[31,38,31,39],[31,42,31,44],[31,45,31,51],[29,56,29,57],[30,0,30,5],[30,6,30,7],[30,10,30,12],[30,13,30,20],[30,21,30,22],[30,23,30,24],[30,25,30,26],[30,29,30,37],[30,38,30,39],[29,29,29,37],[29,38,29,39],[29,42,29,44],[29,45,29,51],[29,52,29,53],[29,54,29,55],[29,0,29,5],[29,6,29,7],[32,0,33,26],[32,29,32,37],[32,38,32,39],[32,42,32,44],[32,45,32,51],[32,52,32,53],[32,54,32,55],[30,42,30,44],[30,45,30,51],[30,52,30,53],[30,54,30,55],[32,56,32,57],[33,38,33,39],[33,42,33,44],[33,45,33,51],[33,52,33,53],[33,54,33,55],[33,56,33,57],[31,52,31,53],[31,54,31,55],[31,56,31,57],[35,56,35,57],[34,54,34,55],[34,56,34,57],[35,0,35,5],[35,6,35,7],[35,10,35,12],[35,13,35,20],[35,21,35,22],[35,23,35,24],[35,25,35,26],[35,29,35,37],[34,25,34,26],[34,29,34,37],[34,38,34,39],[34,42,34,44],[34,45,34,51],[34,52,34,53],[34,0,34,5],[34,6,34,7],[34,8,34,9],[34,10,34,20],[34,21,34,22],[34,23,34,24],[36,10,36,12],[36,13,36,20],[36,21,36,22],[36,23,36,24],[35,38,35,39],[35,42,35,44],[35,45,35,51],[35,52,35,53],[35,54,35,55],[37,38,37,39],[37,42,37,44],[37,45,37,51],[37,52,37,53],[37,54,37,55],[37,56,37,57],[36,54,36,55],[36,56,36,57],[37,0,37,5],[37,6,37,7],[37,10,37,12],[37,13,37,20],[37,21,37,22],[37,23,37,24],[37,25,37,26],[37,29,37,37],[36,25,36,26],[36,29,36,37],[36,38,36,39],[36,42,36,44],[36,45,36,51],[36,52,36,53],[36,0,36,5],[36,6,36,7],[38,25,38,26],[39,0,39,5],[39,6,39,7],[39,10,39,12],[39,13,39,20],[39,21,39,22],[39,23,39,24],[39,25,39,26],[38,0,38,5],[38,6,38,7],[38,10,38,12],[38,13,38,20],[38,21,38,22],[38,23,38,24],[41,13,41,20],[41,21,41,22],[41,23,41,24],[41,25,41,26],[40,0,40,5],[40,6,40,7],[40,10,40,12],[40,13,40,20],[40,21,40,22],[40,23,40,24],[40,25,40,26],[42,30,42,37],[44,21,44,22],[44,23,44,24],[42,38,42,41],[42,43,42,48],[42,56,42,57],[43,38,43,41],[43,43,43,48],[41,38,41,41],[41,43,41,48],[42,54,42,55],[43,49,43,53],[43,54,43,55],[43,56,43,57],[41,54,41,55],[41,56,41,57],[46,25,46,26],[46,0,46,5],[46,6,46,7],[46,10,46,12],[46,13,46,20],[46,21,46,22],[46,23,46,24],[42,25,42,26],[45,0,45,5],[45,6,45,7],[45,10,45,12],[45,13,45,20],[45,21,45,22],[45,23,45,24],[45,25,45,26],[42,0,42,5],[42,6,42,7],[42,10,42,12],[42,13,42,20],[42,21,42,22],[42,23,42,24],[44,0,44,5],[44,6,44,7],[44,13,44,20],[48,43,48,48],[48,49,48,53],[48,54,48,55],[48,56,48,57],[47,38,47,41],[47,43,47,48],[47,49,47,53],[47,54,47,55],[47,56,47,57],[48,38,48,41],[54,0,54,17],[54,19,54,20],[54,21,54,22],[54,23,54,26],[54,29,54,32],[54,33,54,34],[56,33,56,34],[56,35,56,36],[56,37,56,38],[55,0,55,26],[55,29,55,32],[55,33,55,34],[55,35,55,36],[55,37,55,38],[56,20,57,26],[56,29,56,32],[57,10,57,11],[57,29,57,32],[57,33,57,34],[57,35,57,36],[57,37,57,38],[54,35,54,36],[54,37,54,38],[50,30,50,37],[50,38,50,41],[50,43,50,48],[50,49,50,53],[50,54,50,55],[50,56,50,57],[58,29,58,32],[58,33,58,34],[58,35,58,36],[58,37,58,38],[55,52,55,57],[56,52,56,57],[55,40,55,41],[57,40,57,41],[52,29,52,38],[53,29,53,32],[53,33,53,34],[53,35,53,36],[53,37,53,38],[54,51,54,52],[53,40,53,41],[49,21,49,22],[49,30,49,37],[49,38,49,41],[49,43,49,48],[49,49,49,53],[49,54,49,55],[49,23,49,24],[49,25,49,26],[49,56,49,57],[48,0,48,26],[59,29,59,32],[59,33,59,34],[59,35,59,36],[59,37,59,38],[21,25,21,26],[50,0,50,5],[50,6,50,7],[50,21,50,22],[50,23,50,24],[50,25,50,26],[51,0,51,5],[51,6,51,7],[51,10,51,12],[51,13,51,20],[51,21,51,22],[51,23,51,24],[51,25,51,26],[50,10,50,12],[50,13,50,20],[49,0,49,5],[49,6,49,7],[49,8,49,9],[49,10,49,20]]}
[{"$f":"IF(AH59=0,\"Not Eligible for BSTM\",\"\")","v":""},null,null,null,null,null,null,null,null,null,null,null,null,"DeVry University Registrar Services - Transcript Evaluation",null,null,null,null,null,null,null,null,null,null,null,null,null,null,null,null,null,null,null,null,"Course Recommendations:",null,null,null,null,null,null,null,"Term: "]
["NAME:",null,null,null,null,null,null,null,null,null,null,null,null,"Bachelor of Science in Technical Management",null,null,null,null,null,null,null,null,null,null,null,null,null,null,null,null,null,null,null,null,null,1,null,null,null,null,null,null,null,null,1]
[null,null,null,null,null,null,null,null,null,null,null,null,null,"NY - Bachelor of Professional Studies in Technical Management",null,null,null,null,null,null,null,null,null,null,null,null,null,null,null,null,null,null,null,null,null,2,null,null,null,null,null,null,null,null,2]
["      DSI#:     "]
[null,null,null,null,null,null,null,null,null,null,null,null,null,"OH - Bachelor of Technical Management",null,null,null,null,null,null,null,null,null,null,null,null,null,null,null,null,null,null,null,null,null,3,null,null,null,null,null,null,null,null,3]
[]
[]
[]
[]
[]
["General Education (37 Credits required, listed below / 3 credit to select in General Education)",null,null,null,null,null,null,null,null,null,null,null,null,null,null,null,null,null,null,null,null,null,null,null,null,null,null,null,null,"Technical Specialty (27 Credits Required)"]
[]
["Transferred Course #",null,null,null,null,null,"Grade",null,"College",null,"Course Names",null,null,null,null,null,null,null,null,null,null,"Q. Hrs",null,"Sm.Hrs",null,"Level",null,null,null,"Option 1- General Technical Option",null,null,null,null,null,null,null,null,null,null,"Cyber Security"]
["ENGL1101",null,null,null,null,null,"EX",null,1,null,"ENGL112",null,null,"Composition",null,null,null,null,null,null,null,null,null,{"$f":"IF(V14=0,4,ROUNDDOWN(V14*0.667,3))","v":4},null,null,null,null,null,"Transferred Course #",null,null,null,null,null,null,null,null,"Grade",null,"College",null,"Credit Type",null,null,null,null,null,null,null,null,null,"Q. Hrs",null,"Sm.Hrs",null,"Level",null,null,null,null,null,null,null,null,null,null,null,null,null,"GEN ED"]
["MUST BE TAKEN @ DEVRY",null,null,null,null,null,"INT",null,2,null,"ENGL135",null,null,"Advanced Composition",null,null,null,null,null,null,null,null,null,{"$f":"IF(V15=0,4,ROUNDDOWN(V15*0.667,3))","v":4},null,null,null,null,null,"CIST1122",null,null,null,null,null,null,null,null,"EX",null,1,null,null,null,null,null,null,null,null,null,null,null,null,null,4,null,null,null,null,null,null,null,null,null,null,null,null,null,null,null,{"$f":"IF(AND(A24<>\"\",N24=\"\"),1,0)","v":0},{"$f":"IF(AND(A23<>\"\",N23=\"\"),1,0)","v":0}]
["Humanities Elective",null,null,null,null,null,"EX",null,1,null,"ETHC445♦",null,null,{"$f":"IF(K16=\"ETHC232♦\",\"Eth & Legal Iss in Prof\",IF(K16=\"ETHC445♦\",\"Principles of Ethics\",IF(K16=\"HIST225♦\",\"United States History\",IF(K16=\"HIST405♦\",\"United States History\",IF(K16=\"HIST410♦\",\"Contemporary History\",IF(K16=\"HIST412♦\",\"Post-1945 History\",IF(K16=\"HIST415♦\",\"Vietnam & 20th Century Exp\",IF(K16=\"HIST417♦\",\"Emergence of Modern Era\",IF(K16=\"HUMN303♦\",\"Intro to the Humanities\",IF(K16=\"HUMN451♦\",\"20th Century Fine Arts\",IF(K16=\"HUMN460SA♦\",\"Int'l Cultural Explorations\",IF(K16=\"LTRE421♦\",\"Studies in Literature\",IF(K16=\"LTRE422♦\",\"Film and Literature\",IF(K16=\"LTRE424♦\",\"Science Fiction\",IF(K16=\"LTRE427♦\",\"Studies in Poetry\",IF(K16=\"LTRE428♦\",\"Dramatic Literature\",IF(K16=\"PHIL347♦\",\"Critical Reasoning\",IF(K16=\"PHIL447♦\",\"Logic & Critical Thinking\",IF(K16=\"PHIL449♦\",\"Philosophy of Science\",IF(K16=\"RELI448♦\",\"Comparative Religions\",\"\"))))))))))))))))))))","v":"Principles of Ethics"},null,null,null,null,null,null,null,null,null,{"$f":"IF(V16=0,3,ROUNDDOWN(V16*0.667,3))","v":3},null,"UD",null,null,null,"CIST1401",null,null,null,null,null,null,null,null,"EX",null,1,null,null,null,null,null,null,null,null,null,null,null,null,null,4,null,null,null,null,null,null,null,null,null,null,null,{"$f":"AR205+BF215","v":0},null,null,null,{"$f":"IF(AND(A25<>\"\",N25=\"\"),1,0)","v":1}]
["MUST BE TAKEN @ DEVRY",null,null,null,null,null,"INT",null,2,null,"LAS432",null,null,"Tech. Society & Culture",null,null,null,null,null,null,null,null,null,3,null,"UD",null,null,null,"CIST1601",null,null,null,null,null,null,null,null,"EX",null,1,null,null,null,null,null,null,null,null,null,null,null,null,null,3,null,null,null,null,null,null,null,null,null,null,null,null,null,null,null,0]
["MUST BE TAKEN @ DEVRY",null,null,null,null,null,"INT",null,2,null,"SOCS185♦",null,null,{"$f":"IF(K18=\"ECON312♦\",\"Principles of Economics\",IF(K18=\"ECON315♦\",\"Microeconomics\",IF(K18=\"ECON410♦\",\"Environmental Economics\",IF(K18=\"HUMS480♦\",\"Crisis Intervention\",IF(K18=\"LAWS310♦\",\"The Legal Environment\",IF(K18=\"LAWS420♦\",\"Legal & Ethical Issues\",IF(K18=\"POLI330♦\",\"Political Science\",IF(K18=\"POLI332♦\",\"Political Science\",IF(K18=\"POLI410♦\",\"Social Movements\",IF(K18=\"PSYC110♦\",\"Psychology\",IF(K18=\"PSYC290♦\",\"Lifespan Development\",IF(K18=\"PSYC305♦\",\"Motivation & Leadership\",IF(K18=\"PSYC307♦\",\"Motivation & Leadership\",IF(K18=\"PSYC315♦\",\"Social Psychology\",IF(K18=\"SOCS185♦\",\"Culture & Society\",IF(K18=\"SOCS187♦\",\"Cross-Cultural Comm.\",IF(K18=\"SOCS190♦\",\"Cultural Anthropology\",IF(K18=\"SOCS315♦\",\"Marriage & Family\",IF(K18=\"SOCS325♦\",\"Environmental Sociology\",IF(K18=\"SOCS335♦\",\"Workplace Culture & Comm.\",IF(K18=\"SOCS350♦\",\"Cultural Diversity in Prof.\",IF(K18=\"SOCS410♦\",\"Concepts of Diversity\",IF(K18=\"POLI457♦\",\"International Relations\",\"\")))))))))))))))))))))))","v":"Culture & Society"},null,null,null,null,null,null,null,null,null,{"$f":"IF(V18=0,3,ROUNDDOWN(V18*0.667,3))","v":3},null,{"$f":"IF(ISNUMBER(SEARCH(\"3TR\",K18)),\"UD\",IF(ISNUMBER(SEARCH(\"4TR\",K18)),\"UD\",\"\"))","v":""},null,null,null,"CIST1602",null,null,null,null,null,null,null,null,"EX",null,1,null,null,null,null,null,null,null,null,null,null,null,null,null,3,null,null,null,null,null,null,null,null,null,null,null,null,null,null,null,0]
["Social Science Elective",null,null,null,null,null,"EX",null,1,null,"ECON312♦",null,null,{"$f":"IF(K19=\"ECON312♦\",\"Principles of Economics\",IF(K19=\"ECON315♦\",\"Microeconomics\",IF(K19=\"ECON410♦\",\"Environmental Economics\",IF(K19=\"HUMS480♦\",\"Crisis Intervention\",IF(K19=\"LAWS310♦\",\"The Legal Environment\",IF(K19=\"LAWS420♦\",\"Legal & Ethical Issues\",IF(K19=\"POLI330♦\",\"Political Science\",IF(K19=\"POLI332♦\",\"Political Science\",IF(K19=\"POLI410♦\",\"Social Movements\",IF(K19=\"PSYC110♦\",\"Psychology\",IF(K19=\"PSYC290♦\",\"Lifespan Development\",IF(K19=\"PSYC305♦\",\"Motivation & Leadership\",IF(K19=\"PSYC307♦\",\"Motivation & Leadership\",IF(K19=\"PSYC315♦\",\"Social Psychology\",IF(K19=\"SOCS185♦\",\"Culture & Society\",IF(K19=\"SOCS187♦\",\"Cross-Cultural Comm.\",IF(K19=\"SOCS190♦\",\"Cultural Anthropology\",IF(K19=\"SOCS315♦\",\"Marriage & Family\",IF(K19=\"SOCS325♦\",\"Environmental Sociology\",IF(K19=\"SOCS335♦\",\"Workplace Culture & Comm.\",IF(K19=\"SOCS350♦\",\"Cultural Diversity in Prof.\",IF(K19=\"SOCS410♦\",\"Concepts of Diversity\",IF(K19=\"POLI457♦\",\"International Relations\",\"\")))))))))))))))))))))))","v":"Principles of Economics"},null,null,null,null,null,null,null,null,null,{"$f":"IF(V19=0,3,ROUNDDOWN(V19*0.667,3))","v":3},null,"UD",null,null,null,"CIST2601",null,null,null,null,null,null,null,null,"EX",null,1,null,null,null,null,null,null,null,null,null,null,null,null,null,4,null,null,null,null,null,null,null,null,null,null,null,null,null,null,null,0]
["Math Elective",null,null,null,null,null,"EX",null,1,null,"MATH114",null,null,{"$f":"IF(K20=\"MATH114\",\"Algebra for College Students\",IF(K20=\"MATH190\",\"Pre-Calculus\",IF(K20=\"MATH260\",\"Applied Calculus I\",\"\")))","v":"Algebra for College Students"},null,null,null,null,null,null,null,null,null,{"$f":"IF(V20=0,4,ROUNDDOWN(V20*0.667,3))","v":4},null,null,null,null,null,"CIST2602",null,null,null,null,null,null,null,null,"EX",null,1,null,null,null,null,null,null,null,null,null,null,null,null,null,4,null,null,null,null,null,null,null,null,null,null,null,null,null,null,null,{"$f":"IF(AND(A29<>\"\",N29=\"\"),1,0)","v":0}]
["MUST BE TAKEN @ DEVRY",null,null,null,null,null,"INT",null,2,null,"MATH 221",null,null,"Stats for Decision Making",null,null,null,null,null,null,null,null,null,{"$f":"IF(V21=0,4,ROUNDDOWN(V21*0.667,3))","v":4},null,null,null,null,null,"CIST2611",null,null,null,null,null,null,null,null,"EX",null,1,null,null,null,null,null,null,null,null,null,null,null,null,null,4,null,null,null,null,null,null,null,null,null,null,null,null,null,null,null,0]
["MUST BE TAKEN @ DEVRY",null,null,null,null,null,"INT",null,2,null,"SCI228♦",null,null,{"$f":"IF(K22=\"CRSC41♦\",\"Course Area Match (Science)\",IF(K22=\"SCI204♦\",\"Environmental Science w/L\",IF(K22=\"SCI214♦\",\"Integrated Science w/L\",IF(K22=\"SCI224♦\",\"Astronomy w/L\",IF(K22=\"SCI228♦\",\"Nutrition, Hlth & Wellness w/L\",IF(K22=\"SCI230♦\",\"Foundation of Earth Sciences w/L\",IF(K22=\"CHEM120♦\",\"Int. Gen., Org., & Bio. Chem. w/L\",IF(K22=\"BIOS105♦\",\"Fund. Hmn Anat. & Physio. w/L\",IF(K22=\"BIOS135♦\",\"Found. In Bio. & Chem. w/L\",IF(K22=\"BIOS140♦\",\"Biology w/L\",IF(K22=\"PHYS216♦\",\"Physics w/L\",\"\")))))))))))","v":"Nutrition, Hlth & Wellness w/L"},null,null,null,null,null,null,null,null,null,{"$f":"IF(V22=0,4,ROUNDDOWN(V22*0.667,3))","v":4},null,null,null,null,null,"CIST2612",null,null,null,null,null,null,null,null,"EX",null,1,null,null,null,null,null,null,null,null,null,null,null,null,null,-1,null,null,null,null,null,null,null,null,null,null,null,null,null,null,null,0]
["MUST BE TAKEN @ DEVRY",null,null,null,null,null,"INT",null,2,null,"CARD405",null,null,"Career Development",null,null,null,null,null,null,null,null,null,2,null,"UD",null,null,null,null,null,null,null,null,null,null,null,null,null,null,null,null,null,null,null,null,null,null,null,null,null,null,null,null,{"$f":"ROUNDDOWN(BA23*0.667,3)","v":0},null,null,null,null,null,null,null,null,null,null,null,null,null,null,null,{"$f":"IF(AND(A22<>\"\",N22=\"\"),1,0)","v":0}]
["MUST BE TAKEN @ DEVRY",null,null,null,null,null,"INT",null,2,null,"COLL148",null,null,"Critical Thinking and Prob",null,null,null,null,null,null,null,null,null,3,null,null,null,null,null,null,null,null,null,null,null,null,null,null,null,null,null,null,null,null,null,null,null,null,null,null,null,null,null,null,0,null,null,null,null,null,null,null,null,null,null,null,null,null,"Sum",null,{"$f":"SUM(BS15:BS23)+BT15","v":1}]
["Additional DeVry or transfer coursework selected to meet min. requirements with a minimum of 6 sem. credits in each of: Communication, Humanities, Math and Natural Science, Social Sciences",null,null,null,null,null,null,null,null,null,null,null,null,null,null,null,null,null,null,null,null,null,null,null,null,null,null,null,null,null,null,null,null,null,null,null,null,null,null,null,null,null,null,null,null,null,null,null,null,null,null,null,null,null,0,null,null,null,null,null,null,null,null,null,null,null,null,null,null,null,{"$f":"IF(BS24>0,\"Delete if prior DeVry\",\"\")","v":"Delete if prior DeVry"}]
[null,null,null,null,null,null,null,null,null,null,null,null,null,null,null,null,null,null,null,null,null,null,null,null,null,null,null,null,null,null,null,null,null,null,null,null,null,null,null,null,null,null,null,null,null,null,null,null,null,null,null,null,null,null,null,null,null,null,null,null,null,null,null,null,null,null,null,null,null,null,"BMT"]
["MUST BE TAKEN @ DEVRY",null,null,null,null,null,"INT",null,2,null,null,null,null,"SPCH275",null,null,null,null,null,null,null,null,null,{"$f":"IF(V27=0,3,ROUNDDOWN(V27*0.667,3))","v":3},null,{"$f":"IF(ISNUMBER(SEARCH(\"3TR\",K27)),\"UD\",IF(ISNUMBER(SEARCH(\"4TR\",K27)),\"UD\",\"\"))","v":""},null,null,null,"Electives and Support Coursework (26 Credits Required)",null,null,null,null,null,null,null,null,null,null,null,null,null,null,null,null,null,null,null,null,null,null,null,null,null,null,null,null,null,null,null,null,null,null,null,null,null,null,null,null,{"$f":"IF(AND(A43<>\"\",N43=\"\"),1,0)","v":0}]
[null,null,null,null,null,null,null,null,null,null,null,null,null,null,null,null,null,null,null,null,null,null,null,{"$f":"IF(ISNA(VLOOKUP(A28,$A$534:$E$1026,5,FALSE)),(ROUNDDOWN(V28*0.667,3)),VLOOKUP(A28,$A$534:$E$1026,5,FALSE))","v":0},null,"",null,null,null,"Transferred Course #",null,null,null,null,null,null,null,null,"Grade",null,"College",null,"Credit Type",null,null,null,null,null,null,null,null,null,"Q. Hrs",null,"Sm.Hrs",null,"Level",null,null,"Using Forms Toolbar",null,null,null,null,null,null,null,null,null,null,{"$f":"IF(AND(A46<>\"\",N46=\"\"),1,0)","v":0}]
[null,null,null,null,null,null,null,null,null,null,null,null,null,null,null,null,null,null,null,null,null,null,null,0,null,"",null,null,null,"CIST2431",null,null,null,null,null,null,null,null,"EX",null,1,null,null,null,null,null,null,null,null,null,null,null,null,null,4,null,null,null,null,null,null,null,null,null,null,null,null,null,null,null,{"$f":"IF(AND(A47<>\"\",N47=\"\"),1,0)","v":0}]
[null,null,null,null,null,null,null,null,null,null,null,null,null,null,null,null,null,null,null,null,null,null,null,0,null,"",null,null,null,"CIST2613",null,null,null,null,null,null,null,null,"EX",null,1,null,null,null,null,null,null,null,null,null,null,null,null,null,4,null,null,null,null,13,"<- Destination Cell",null,null,null,null,null,null,null,"Sum",null,{"$f":"SUM(BS27:BS29)","v":0}]
[null,null,null,null,null,null,null,null,null,null,null,null,null,null,null,null,null,null,null,null,null,null,null,0,null,"",null,null,null,null,null,null,null,null,null,null,null,null,null,null,null,null,null,null,null,null,null,null,null,null,null,null,null,null,null,null,null,null,null,6,null,null,null,null,null,null,null,null,null,null,{"$f":"IF(BS30>0,\"Delete if prior DeVry\",\"\")","v":""}]
[null,null,null,null,null,null,null,null,null,null,null,null,null,null,null,null,null,null,null,null,null,null,null,null,null,null,null,null,null,"UD ELECTIVE-MUST BE TAKEN @ DEVRY",null,null,null,null,null,null,null,null,"INT",null,2,null,null,null,null,null,null,null,null,null,null,null,null,null,3,null,"UD",null,null,null,"DDL value 1",null,null,null,null,null,null,null,null,null,"Tech"]
["Business, Management and Technology  (26 credits required)",null,null,null,null,null,null,null,null,null,null,null,null,null,null,null,null,null,null,null,null,null,null,null,null,null,null,null,null,"UD ELECTIVE-MUST BE TAKEN @ DEVRY",null,null,null,null,null,null,null,null,"INT",null,2,null,null,null,null,null,null,null,null,null,null,null,null,null,3,null,"UD",null,1,"Accounting^","DDL value 2",null,null,null,null,null,null,null,null,null,{"$f":"IF(AND(AD16<>\"\",AT16=\"\"),1,0)","v":1}]
[null,null,null,null,null,null,null,null,null,null,null,null,null,null,null,null,null,null,null,null,null,null,null,null,null,null,null,null,null,"UD ELECTIVE-MUST BE TAKEN @ DEVRY",null,null,null,null,null,null,null,null,"INT",null,2,null,null,null,null,null,null,null,null,null,null,null,null,null,3,null,"UD",null,2,"Health Services Management^","DDL value 3",null,null,null,null,null,null,null,null,null,1]
["Transferred Course #",null,null,null,null,null,"Grade",null,"College",null,"Course Names",null,null,null,null,null,null,null,null,null,null,"Q. Hrs",null,"Sm.Hrs",null,"Level",null,null,null,"UD ELECTIVE-MUST BE TAKEN @ DEVRY",null,null,null,null,null,null,null,null,"INT",null,2,null,null,null,null,null,null,null,null,null,null,null,null,null,3,null,"UD",null,3,"Human Resource Management^","DDL value 4",null,null,null,null,null,null,null,null,null,1]
["MUST BE TAKEN @ DEVRY",null,null,null,null,null,"INT",null,2,null,"ACCT212",null,null,"Financial Accounting",null,null,null,null,null,null,null,null,null,{"$f":"IF(V36=0,4,ROUNDDOWN(V36*0.667,3))","v":4},null,null,null,null,null,"UD ELECTIVE-MUST BE TAKEN @ DEVRY",null,null,null,null,null,null,null,null,"INT",null,2,null,null,null,null,null,null,null,null,null,null,null,null,null,3,null,"UD",null,4,"Project Management^",null,null,null,null,null,null,null,null,null,null,1]
["MUST BE TAKEN @ DEVRY",null,null,null,null,null,"INT",null,2,null,"BIS155",null,null,"Data Analysis w/Spreadsheets",null,null,null,null,null,null,null,null,null,{"$f":"IF(V37=0,3,ROUNDDOWN(V37*0.667,3))","v":3},null,null,null,null,null,"UD ELECTIVE-MUST BE TAKEN @ DEVRY",null,null,null,null,null,null,null,null,"INT",null,2,null,null,null,null,null,null,null,null,null,null,null,null,null,3,null,"UD",null,5,"Small Business Mgmt & Entrepreneurship^",null,null,null,null,null,null,null,null,null,null,1]
["MUST BE TAKEN @ DEVRY",null,null,null,null,null,"INT",null,2,null,"BIS245",null,null,"Database Essen. For Busn. w/L",null,null,null,null,null,null,null,null,null,{"$f":"IF(V38=0,4,ROUNDDOWN(V38*0.667,3))","v":4},null,null,null,null,null,null,null,null,null,null,null,null,null,null,null,null,null,null,null,null,null,null,null,null,null,null,null,null,null,null,null,null,null,null,6,"Sales and Marketing^",null,null,null,null,null,null,null,null,null,null,1]
["MUST BE TAKEN @ DEVRY",null,null,null,null,null,"INT",null,2,null,"BUSN115",null,null,"Intro to Business and Tech",null,null,null,null,null,null,null,null,null,{"$f":"IF(V39=0,3,ROUNDDOWN(V39*0.667,3))","v":3},null,null,null,null,null,null,null,null,null,null,null,null,null,null,null,null,null,null,null,null,null,null,null,null,null,null,null,null,null,null,null,null,null,null,7,"Finance^",null,null,null,null,null,null,null,null,null,null,1]
["MUST BE TAKEN @ DEVRY",null,null,null,null,null,"INT",null,2,null,"BUSN319",null,null,"Marketing",null,null,null,null,null,null,null,null,null,{"$f":"IF(V40=0,3,ROUNDDOWN(V40*0.667,3))","v":3},null,"UD",null,null,null,null,null,null,null,null,null,null,null,null,null,null,null,null,null,null,null,null,null,null,null,null,null,null,null,null,null,null,null,null,8,"Hospitality Management^",null,null,null,null,null,null,null,null,null,null,0]
["CIST1001",null,null,null,null,null,"EX",null,1,null,"COMP100",null,null,"Computer Apps for Business",null,null,null,null,null,null,null,null,null,{"$f":"IF(V41=0,2,ROUNDDOWN(V41*0.667,3))","v":2},null,null,null,null,null,null,null,null,null,null,null,null,null,null,null,null,null,null,null,null,null,null,null,null,null,null,null,null,null,null,null,null,null,null,9,"Criminal Justice^",null,null,null,null,null,null,null,null,null,null,0]
["MUST BE TAKEN @ DEVRY",null,null,null,null,null,"INT",null,2,null,"MGMT303",null,null,"Principles of Management",null,null,null,null,null,null,null,null,null,{"$f":"IF(V42=0,3,ROUNDDOWN(V42*0.667,3))","v":3},null,"UD",null,null,null,"College Data",null,null,null,null,null,null,null,null,"Date Evaluated",null,null,null,"POG","Official Transcript Rec'd",null,null,null,null,null,"Credit Awarded",null,null,null,null,"S/Q",null,"Accred",null,10,"Information Technology - Networking Fundamentals^",null,null,null,null,null,null,null,null,null,null,0]
["CIST2452",null,null,null,null,null,"EX",null,1,null,"MGMT404",null,null,"Project Management",null,null,null,null,null,null,null,null,null,{"$f":"IF(V43=0,4,ROUNDDOWN(V43*0.667,3))","v":4},null,"UD",null,null,null,1,"Technical College System of GA",null,null,null,null,null,null,null,"2021-08-26",null,null,null,null,"Y",null,null,null,null,null,{"$f":"A235","v":55},null,null,null,null,"S",null,{"$f":"IF(AE43=\"DeVry\",\"HLC\",\"\")","v":""},null,11,"Global Supply Chain Management^",null,null,null,null,null,null,null,null,"Sum",null,{"$f":"SUM(BS33:BS41)","v":7}]
["Additional Business, Management and Technology Courses from BSBA core or majors (if needed)",null,null,null,null,null,null,null,null,null,null,null,null,null,null,null,null,null,null,null,null,null,null,null,null,null,null,null,null,2,"DeVry University",null,null,null,null,null,null,null,"2021-08-26",null,null,null,null,"N",null,null,null,null,null,{"$f":"A272","v":67},null,null,null,null,"S",null,{"$f":"IF(AE44=\"DeVry\",\"NCA\",\"\")","v":""},null,12,"Business Intelligence Analytics Management^"]
[null,null,null,null,null,null,null,null,null,null,null,null,null,null,null,null,null,null,null,null,null,null,null,{"$f":"IF(ISNA(VLOOKUP(A45,$A$534:$E$1026,5,FALSE)),(ROUNDDOWN(V45*0.667,3)),VLOOKUP(A45,$A$534:$E$1035,5,FALSE))","v":0},null,{"$f":"IF(ISNUMBER(SEARCH(\"3TR\",K45)),\"UD\",IF(ISNUMBER(SEARCH(\"4TR\",K45)),\"UD\",\"\"))","v":""},null,null,null,3,null,null,null,null,null,null,null,null,null,null,null,null,null,{"$f":"IF(AE45=\"DeVry\",\"Y\",\"\")","v":""},null,null,null,null,null,{"$f":"A309","v":0},null,null,null,null,{"$f":"IF(AE45=\"DeVry\",\"S\",\"\")","v":""},null,"",null,13]
[null,null,null,null,null,null,null,null,null,null,null,null,null,null,null,null,null,null,null,null,null,null,null,{"$f":"IF(ISNA(VLOOKUP(A46,$A$534:$E$1026,5,FALSE)),(ROUNDDOWN(V46*0.667,3)),VLOOKUP(A46,$A$534:$E$1035,5,FALSE))","v":0},null,{"$f":"IF(ISNUMBER(SEARCH(\"3TR\",K46)),\"UD\",IF(ISNUMBER(SEARCH(\"4TR\",K46)),\"UD\",\"\"))","v":""},null,null,null,4,null,null,null,null,null,null,null,null,null,null,null,null,null,"",null,null,null,null,null,{"$f":"A346","v":0},null,null,null,null,"",null,"",null,14,null,null,null,null,null,null,null,null,null,null,null,{"$f":"IF(BS43>0,\"Delete if prior DeVry\",\"\")","v":"Delete if prior DeVry"}]
[null,null,null,null,null,null,null,null,null,null,null,null,null,null,null,null,null,null,null,null,null,null,null,{"$f":"IF(ISNA(VLOOKUP(A47,$A$534:$E$1026,5,FALSE)),(ROUNDDOWN(V47*0.667,3)),VLOOKUP(A47,$A$534:$E$1035,5,FALSE))","v":0},null,"",null,null,null,5,null,null,null,null,null,null,null,null,null,null,null,null,null,"",null,null,null,null,null,{"$f":"A383","v":0},null,null,null,null,"",null,"",null,null,null,null,null,null,null,null,null,null,null,null,null,"Elective"]
[null,null,null,null,null,null,null,null,null,null,null,null,null,null,null,null,null,null,null,null,null,null,null,null,null,null,null,null,null,6,null,null,null,null,null,null,null,null,null,null,null,null,null,"",null,null,null,null,null,{"$f":"A420","v":0},null,null,null,null,"",null,"",null,null,null,null,null,null,null,null,null,null,null,null,null,{"$f":"IF(AND(AD29<>\"\",AT29=\"\"),1,0)","v":1}]
["Senior Project (3 credits required)",null,null,null,null,null,null,null,null,null,null,null,null,null,null,null,null,null,null,null,null,null,null,null,null,null,null,null,null,7,null,null,null,null,null,null,null,null,null,null,null,null,null,"",null,null,null,null,null,{"$f":"A456","v":0},null,null,null,null,"",null,"",null,null,null,null,null,null,null,null,null,null,null,null,null,{"$f":"IF(AND(AD30<>\"\",AT30=\"\"),1,0)","v":1}]
["Transferred Course #",null,null,null,null,null,"Grade",null,"College",null,"Course Names",null,null,null,null,null,null,null,null,null,null,"Q. Hrs",null,"Sm.Hrs",null,"Level",null,null,null,8,null,null,null,null,null,null,null,null,null,null,null,null,null,"",null,null,null,null,null,{"$f":"A492","v":0},null,null,null,null,"",null,"",null,null,null,null,null,null,null,null,null,null,null,null,null,{"$f":"IF(AND(AD31<>\"\",AT31=\"\"),1,0)","v":0}]
["MUST BE TAKEN @ DEVRY",null,null,null,null,null,"INT",null,2,null,"BUSN460",null,null,"Senior Project",null,null,null,null,null,null,null,null,null,{"$f":"IF(V51=0,3,ROUNDDOWN(V51*0.667,3))","v":3},null,"UD",null,null,null,9,null,null,null,null,null,null,null,null,null,null,null,null,null,"",null,null,null,null,null,{"$f":"A528","v":0},null,null,null,null,"",null,"",null,null,null,null,null,null,null,null,null,null,null,null,null,{"$f":"IF(AND(AD37<>\"\",AT37=\"\"),1,0)","v":1}]
[]
[null,null,null,null,null,null,null,null,null,null,null,null,null,null,null,null,null,null,null,null,null,null,null,null,null,null,null,null,null,"TALLY OF COURSE AREAS ",null,null,null,null,null,null,null,null,null,null,null,null,null,null,null,null,null,null,null,null,null,null,null,null,null,null,null,null,null,null,null,null,null,null,null,null,null,null,null,null,{"$f":"IF(AND(AD38<>\"\",AT38=\"\"),1,0)","v":0}]
[null,null,null,null,null,null,null,null,null,null,null,null,null,null,null,null,null,null,null,null,null,null,null,null,null,null,null,null,null,null,null,null,null,"Trans",null,"DeVry",null,"Total",null,null,{"$f":"H229+H266+H303+H340+H377+H414+H450+H486+H522","v":42},null,"Upper Division transfer credit awarded",null,null,null,null,null,null,null,null,null,null,null,null,null,null,null,null,null,null,null,null,null,null,null,null,null,"Sum",null,{"$f":"SUM(BS48:BS53)","v":3}]
["Approved by: ",null,null,null,null,null,null,null,null,null,null,null,null,null,null,null,null,null,null,null,null,"Date",null,"2021-08-26",null,null,null,null,null,"Gen Ed",null,null,null,{"$f":"D229+D266+D303+D340+D377+D414+D450+D486+D522","v":40},null,{"$f":"AL55-AH55","v":0},null,40,null,null,null,null,null,null,null,null,null,null,null,null,null,null,null,null,null,null,null,null,null,null,null,null,null,null,null,null,null,null,null,null,{"$f":"IF(BS54>0,\"Delete if prior DeVry\",\"\")","v":"Delete if prior DeVry"}]
[null,null,null,null,null,null,null,null,null,null,null,null,null,null,null,null,null,null,null,null,null,null,null,null,null,null,null,null,null,"B/M/T",null,null,null,{"$f":"D230+D267+D304+D341+D378+D415+D451+D487+D523","v":26},null,{"$f":"AL56-AH56","v":0},null,26,null,null,{"$f":"IF((42-AO54)>D190,(42-AO54),D190)","v":0},null,"Upper Division required credit remaining"]
[null,null,null,null,null,null,null,null,null,null,null,null,null,null,null,null,null,null,null,null,"TOTAL EXTERNAL CREDIT AWARDED:",null,null,null,null,null,null,null,null,"Tech. Spec.",null,null,null,{"$f":"D231+D268+D305+D342+D379+D416+D452+D488+D524","v":27},null,{"$f":"AL57-AH57","v":0},null,27]
[null,null,null,null,null,null,null,null,null,null,null,null,null,null,null,null,null,null,null,null,null,null,null,null,null,null,null,null,null,"Sr. Project",null,null,null,{"$f":"D232+D269+D306+D343+D380+D417+D453+D489+D525","v":3},null,{"$f":"AL58-AH58","v":0},null,3,null,null,{"$f":"K185","v":0},null,"Lower Division required credit remaining",null,null,null,null,null,null,null,null,null,null,null,null,null,null,null,null,null,null,null,null,null,null,null,null,null,null,null,"Official Tally","Unofficial","Credit Awarded"]
[null,null,null,null,null,null,null,null,null,null,null,null,null,null,null,null,null,null,null,null,null,null,null,{"$f":"G120","v":55},null,null,null,null,null,"Electives",null,null,null,{"$f":"D233+D270+D307+D344+D381+D418+D454+D490+D526","v":26},null,{"$f":"AL59-AH59","v":0},null,26,null,null,null,null,null,null,null,null,null,null,null,null,null,null,null,null,null,null,null,null,null,null,null,null,null,null,null,null,null,null,null,1,{"$f":"IF(AR43=\"Y\",AX43,0)","v":55},{"$f":"IF(AR43=\"N\",AX43,0)","v":0},{"$f":"AX43","v":55}]
[null,null,null,null,null,null,null,null,null,null,null,null,null,null,null,null,null,null,null,null,null,null,null,null,null,null,null,null,null,"Totals",null,null,null,{"$f":"SUM(AH55:AI59)","v":122},null,{"$f":"SUM(AJ55:AK59)","v":0},null,{"$f":"SUM(AL55:AM59)","v":122}]
[null,null,null,null,null,null,null,null,null,null,null,null,null,null,null,null,null,null,null,null,null,null,null,null,null,null,null,null,null,null,null,null,null,null,null,null,null,null,null,null,null,null,null,null,null,null,null,null,null,null,null,null,null,null,null,null,null,null,null,null,null,null,null,null,null,null,null,null,null,2,{"$f":"IF(AR44=\"Y\",AX44,0)","v":0},{"$f":"IF(AR44=\"N\",AX44,0)","v":67},{"$f":"AX44","v":67}]
[null,null,null,null,null,null,null,null,null,null,null,null,null,null,null,null,null,null,null,null,null,null,null,null,null,null,null,null,null,null,null,null,null,null,null,null,null,null,null,null,null,null,null,null,null,null,null,null,null,null,null,null,null,null,null,null,null,null,null,null,null,null,null,null,null,null,null,null,null,3,{"$f":"IF(AR45=\"Y\",AX45,0)","v":0},{"$f":"IF(AR45=\"N\",AX45,0)","v":0},{"$f":"AX45","v":0}]
[null,null,null,null,null,null,null,null,null,null,null,null,null,null,null,null,null,null,null,null,null,null,null,null,null,null,null,null,null,null,null,null,null,null,null,null,null,null,null,null,null,null,null,null,null,null,null,null,null,null,null,null,null,null,null,null,null,null,null,null,null,null,null,null,null,null,null,null,null,4,{"$f":"IF(AR46=\"Y\",AX46,0)","v":0},{"$f":"IF(AR46=\"N\",AX46,0)","v":0},{"$f":"AX46","v":0}]
[null,null,null,null,null,null,null,null,null,null,null,null,null,null,null,null,null,null,null,null,null,null,null,null,null,null,null,null,null,null,null,null,null,null,null,null,null,null,null,null,null,null,null,null,null,null,null,null,null,null,null,null,null,null,null,null,null,null,null,null,null,null,null,null,null,null,null,null,null,5,{"$f":"IF(AR47=\"Y\",AX47,0)","v":0},{"$f":"IF(AR47=\"N\",AX47,0)","v":0},{"$f":"AX47","v":0}]
[null,null,null,null,null,null,null,null,null,null,null,null,null,null,null,null,null,null,null,null,null,null,null,null,null,null,null,null,null,null,null,null,null,null,null,null,null,null,null,null,null,null,null,null,null,null,null,null,null,null,null,null,null,null,null,null,null,null,null,null,null,null,null,null,null,null,null,null,null,9,{"$f":"IF(AR51=\"Y\",AX51,0)","v":0},{"$f":"IF(AR51=\"N\",AX51,0)","v":0},{"$f":"AX51","v":0}]
[]
[null,null,null,null,null,null,null,null,null,null,null,null,null,null,null,null,null,null,null,null,null,null,null,null,null,null,null,null,null,null,null,null,null,null,null,null,null,null,null,null,null,null,null,null,null,null,null,null,null,null,null,null,null,null,null,null,null,null,null,null,null,null,null,null,null,null,null,null,null,null,"Total","Total","Total"]
[]
[]
[null,null,null,null,null,null,"Composition"]
[null,null,null,null,null,null,"Communications Course",null,null,null,null,null,null,null,null,null,null,null,null,null,null,null,null,null,null,null,null,null,null,null,null,null,null,null,null,null,null,"Y"]
[null,null,null,null,null,null,null,null,null,null,null,null,null,null,null,null,null,null,null,null,null,null,null,null,null,null,null,null,null,null,null,null,null,null,null,null,null,"N"]
[null,null,null,null,null,null,4,null,null,null,null,null,null,null,null,null,null,null,null,null,null,null,null,null,null,null,null,null,null,null,null,null,null,null,null,null,null,"Y/Y"]
[null,null,null,null,null,null,3,null,null,null,null,null,null,null,null,null,null,null,null,null,null,null,null,null,null,null,null,null,null,null,null,null,null,null,null,null,null,"Y/N"]
[null,null,null,null,null,null,2,null,null,null,null,null,null,null,null,null,null,null,null,null,null,null,null,null,null,null,null,null,null,null,null,null,null,null,null,null,null,"N/Y"]
[null,null,null,null,null,null,null,null,null,null,null,null,null,null,null,null,null,null,null,null,null,null,null,null,null,null,null,null,null,null,null,null,null,null,null,null,null,"N/N"]
[null,null,null,null,null,null,2]
[null,null,null,null,null,null,1,null,null,null,null,null,null,null,null,null,null,null,null,null,null,null,null,null,null,null,null,null,null,null,null,null,null,null,null,null,null,"POG"]
[null,null,null,null,null,null,null,null,null,null,null,null,null,null,null,null,null,null,null,null,null,null,null,null,null,null,null,null,null,null,null,null,null,null,null,null,null,"OPOG"]
[null,null,null,null,null,null,"HLC"]
[null,null,null,null,null,null,"MSA",null,null,null,null,null,null,null,null,null,null,null,null,null,null,null,null,null,null,null,null,null,null,null,null,null,null,null,null,null,null,"Undecided"]
[null,null,null,null,null,null,"SAC",null,null,null,null,null,null,null,null,null,null,null,null,null,null,null,null,null,null,null,null,null,null,null,null,null,null,null,null,null,null,"Option 1- General Technical Option"]
[null,null,null,null,null,null,"NWC",null,null,null,null,null,null,null,null,null,null,null,null,null,null,null,null,null,null,null,null,null,null,null,null,null,null,null,null,null,null,"Option 2- BSBA Concentrations"]
[null,null,null,null,null,null,"NEA",null,null,null,null,null,null,null,null,null,null,null,null,null,null,null,null,null,null,null,null,null,null,null,null,null,null,null,null,null,null,"Option 3- Criminal Justice"]
[null,null,null,null,null,null,"WAC"]
[null,null,null,null,null,null,"ACCSC",null,null,null,null,null,null,null,null,null,null,null,null,null,null,null,null,null,null,null,null,null,null,null,null,null,null,null,null,null,null,"JANUARY",null,null,null,null,"2019"]
[null,null,null,null,null,null,"ACICS",null,null,null,null,null,null,null,null,null,null,null,null,null,null,null,null,null,null,null,null,null,null,null,null,null,null,null,null,null,null,"MARCH",null,null,null,null,"2020"]
[null,null,null,null,null,null,"COE",null,null,null,null,null,null,null,null,null,null,null,null,null,null,null,null,null,null,null,null,null,null,null,null,null,null,null,null,null,null,"MAY",null,null,null,null,"2021"]
[null,null,null,null,null,null,"ACE",null,null,null,null,null,null,null,null,null,null,null,null,null,null,null,null,null,null,null,null,null,null,null,null,null,null,null,null,null,null,"JULY",null,null,null,null,"2022"]
[null,null,null,null,null,null,"NACES",null,null,null,null,null,null,null,null,null,null,null,null,null,null,null,null,null,null,null,null,null,null,null,null,null,null,null,null,null,null,"SEPTEMBER",null,null,null,null,"2023"]
[null,null,null,null,null,null,"CICIC",null,null,null,null,null,null,null,null,null,null,null,null,null,null,null,null,null,null,null,null,null,null,null,null,null,null,null,null,null,null,"NOVEMBER",null,null,null,null,"2024"]
[null,null,null,null,null,null,"AUCC"]
[null,null,null,null,null,null,"ACCC",null,null,null,null,null,null,null,null,null,null,null,null,null,null,null,null,null,null,null,null,null,null,null,null,null,null,null,null,null,null,"Informal"]
[null,null,null,null,null,null,"AACRAO"]
[null,null,null,null,null,null,"EC"]
[null,null,null,null,null,null,"FCSA",null,null,null,null,null,null,null,null,null,null,null,null,null,null,null,null,null,null,null,null,null,null,null,null,null,null,null,null,null,null,"NOT ELIGIBLE FOR BSTM"]
[null,null,null,null,null,null,"AICE"]
[null,null,null,null,null,null,"ICAS",null,null,null,null,null,null,null,null,null,null,null,null,null,null,null,null,null,null,null,null,null,null,null,null,null,null,null,null,null,null,"Course Opt."]
[null,null,null,null,null,null,"REGENTS",null,null,null,null,null,null,null,null,null,null,null,null,null,null,null,null,null,null,null,null,null,null,null,null,null,null,null,null,null,null,"BUSN369"]
[null,null,null,null,null,null,"CLEP",null,null,null,null,null,null,null,null,null,null,null,null,null,null,null,null,null,null,null,null,null,null,null,null,null,null,null,null,null,null,"BUSN412"]
[null,null,null,null,null,null,"COMPTIA",null,null,null,null,null,null,null,null,null,null,null,null,null,null,null,null,null,null,null,null,null,null,null,null,null,null,null,null,null,null,"BUSN420"]
[null,null,null,null,null,null,"CISCO",null,null,null,null,null,null,null,null,null,null,null,null,null,null,null,null,null,null,null,null,null,null,null,null,null,null,null,null,null,null,"MGMT340"]
[null,null,null,null,null,null,"Microsoft",null,null,null,null,null,null,null,null,null,null,null,null,null,null,null,null,null,null,null,null,null,null,null,null,null,null,null,null,null,null,"MGMT410"]
[null,null,null,null,null,null,"AP"]
[null,null,null,null,null,null,"DSST",null,null,null,null,null,null,null,null,null,null,null,null,null,null,null,null,null,null,null,null,null,null,null,null,null,null,null,null,null,null,"P"]
[null,null,null,null,null,null,"CORP"]
[null,null,null,null,null,null,"NONE",null,null,null,null,null,null,null,null,null,null,null,null,null,null,null,null,null,null,null,null,null,null,null,null,null,null,null,null,null,null,"BUSN 460♦"]
[null,null,null,null,null,null,null,null,null,null,null,null,null,null,null,null,null,null,null,null,null,null,null,null,null,null,null,null,null,null,null,null,null,null,null,null,null,"BUSN 462/463♦"]
[]
["Total Credit Hours Transferred for Official Tally",null,"College 1",null,null,null,{"$f":"IF(AR43=\"Y\",AX43,\"0\")","v":55},null,null,null,null,null,null,null,null,null,null,null,null,null,null,null,null,null,null,null,null,null,null,null,null,null,null,null,null,null,null,"Senior Project♦"]
[null,null,"College 2",null,null,null,"0",null,null,null,null,null,null,null,null,null,null,null,null,null,null,null,null,null,null,null,null,null,null,null,null,null,null,null,null,null,null,"Senior Project I/II♦"]
[null,null,"College 3",null,null,null,"0"]
[null,null,"College 4",null,null,null,"0",null,null,null,null,null,null,null,null,null,null,null,null,null,null,null,null,null,null,null,null,null,null,null,null,null,null,null,null,null,null,"S"]
[null,null,"College 5",null,null,null,"0",null,null,null,null,null,null,null,null,null,null,null,null,null,null,null,null,null,null,null,null,null,null,null,null,null,null,null,null,null,null,"Q"]
[null,null,"College 6",null,null,null,"0",null,null,null,null,null,null,null,null,null,null,null,null,null,null,null,null,null,null,null,null,null,null,null,null,null,null,null,null,null,null,"S/Q"]
[null,null,"College 7",null,null,null,"0",null,null,null,null,null,null,null,null,null,null,null,null,null,null,null,null,null,null,null,null,null,null,null,null,null,null,null,null,null,null,"Q/S"]
[null,null,"College 8",null,null,null,"0"]
[null,null,"College 9",null,null,null,"0",null,null,null,null,null,null,null,null,null,null,null,null,null,null,null,null,null,null,null,null,null,null,null,null,null,null,null,null,null,null,"CARD405"]
[null,null,null,null,null,null,"Total",null,null,null,null,null,null,null,null,null,null,null,null,null,null,null,null,null,null,null,null,null,null,null,null,null,null,null,null,null,null,"CARD415"]
[null,null,null,null,null,null,{"$f":"SUM(G110:G118)","v":55}]
[null,null,null,null,null,null,null,null,null,null,null,null,null,null,null,null,null,null,null,null,null,null,null,null,null,null,null,null,null,null,null,null,null,null,null,null,null,"MATH114"]
[null,null,null,null,null,null,null,null,null,null,null,null,null,null,null,null,null,null,null,null,null,null,null,null,null,null,null,null,null,null,null,null,null,null,null,null,null,"MATH190"]
[null,null,null,null,null,null,null,null,null,null,null,null,null,null,null,null,null,null,null,null,null,null,null,null,null,null,null,null,null,null,null,null,null,null,null,null,null,"MATH260"]
[]
[null,null,null,null,null,null,null,null,null,null,null,null,null,null,null,null,null,null,null,null,null,null,null,null,null,null,null,null,null,null,null,null,null,null,null,null,null,"Algebra for College Students"]
[null,null,null,null,null,null,null,null,null,null,null,null,null,null,null,null,null,null,null,null,null,null,null,null,null,null,null,null,null,null,null,null,null,null,null,null,null,"Pre-Calculus"]
[null,null,null,null,null,null,null,null,null,null,null,null,null,null,null,null,null,null,null,null,null,null,null,null,null,null,null,null,null,null,null,null,null,null,null,null,null,"Applied Calculus I"]
[]
[null,null,null,null,null,null,null,null,null,null,null,null,null,null,null,null,null,null,null,null,null,null,null,null,null,null,null,null,null,null,null,null,null,null,null,null,null,"General Education (21 credits required, listed below / 19 credits to select in General Education)"]
[null,null,null,null,null,null,null,null,null,null,null,null,null,null,null,null,null,null,null,null,null,null,null,null,null,null,null,null,null,null,null,null,null,null,null,null,null,"General Education (20 credits required, listed below / 20 credits to select in General Education)"]
[]
[]
[]
[]
[]
[]
[]
[]
[]
[]
[]
[]
[]
[]
[]
[]
[]
[]
[]
[]
[]
[]
[]
[]
[]
[]
[]
[]
[]
[]
[null,{"$f":"IF(M58=\"X\",0,1)","v":1}]
[null,{"$f":"SUM(B66:B161)","v":1}]
[null,{"$f":"IF(B162=4,\"?\",\"\")","v":""}]
[]
[]
[]
[]
[]
[]
[null,null,null,"UD Tally"]
[null,null,null,{"$f":"IF(G17=\"\",X17,0)","v":0},null,null,null,null,null,null,"LD Tally",null,{"$f":"IF(AND(AM16=\"\",BC16<>0,BE16=\"\"),BC16,0)","v":0},null,null,null,null,null,{"$f":"IF(AND(A14<>\"\",A14<>\"Taken @ DeVry\"),K14,\"\")","v":"ENGL112"}]
[null,null,null,{"$f":"IF(G23=\"\",X23,0)","v":0},null,null,null,null,null,null,{"$f":"IF(G14=\"\",X14,0)","v":0},null,0,null,null,null,null,null,{"$f":"IF(AND(A15<>\"\",A15<>\"Taken @ DeVry\"),K15,\"\")","v":"ENGL135"}]
[null,null,null,{"$f":"IF(G40=\"\",X40,0)","v":0},null,null,null,null,null,null,{"$f":"IF(G15=\"\",X15,0)","v":0},null,0,null,null,null,null,null,{"$f":"IF(A16<>\"\",K16,\"\")","v":"ETHC445♦"}]
[null,null,null,{"$f":"IF(G42=\"\",X42,0)","v":0},null,null,null,null,null,null,{"$f":"IF(G18=\"\",X18,0)","v":0},null,0,null,null,null,null,null,{"$f":"IF(A17<>\"\",K17,\"\")","v":"LAS432"}]
[null,null,null,{"$f":"IF(G43=\"\",X43,0)","v":0},null,null,null,null,null,null,{"$f":"IF(G20=\"\",X20,0)","v":0},null,0,null,null,null,null,null,{"$f":"IF(A18<>\"\",K18,\"\")","v":"SOCS185♦"}]
[null,null,null,{"$f":"IF(AND(AM15=\"\",BE15=\"UD\"),BC15,0)","v":0},null,null,{"$f":"SUM(D176:D186)","v":0},null,null,null,{"$f":"IF(G21=\"\",X21,0)","v":0},null,0,null,null,null,null,null,{"$f":"IF(A19<>\"\",K19,\"\")","v":"ECON312♦"}]
[null,null,null,0,null,null,{"$f":"IF(G176>30,30,G176)","v":0},null,null,null,{"$f":"IF(G22=\"\",X22,0)","v":0},null,0,null,null,null,null,null,{"$f":"IF(A22<>\"\",A21,\"\")","v":"MUST BE TAKEN @ DEVRY"}]
[null,null,null,0,null,null,null,null,null,null,{"$f":"IF(G24=\"\",X24,0)","v":0},null,0,null,null,null,null,null,{"$f":"IF(A36<>\"\",K36,\"\")","v":"ACCT212"}]
[null,null,null,0,null,null,null,null,null,null,{"$f":"IF(G27=\"\",X27,0)","v":0},null,0,null,null,null,null,null,"BIS155"]
[null,null,null,0,null,null,null,null,null,null,{"$f":"IF(G36=\"\",X36,0)","v":0},null,0,null,null,null,null,null,"BIS245"]
[null,null,null,0,null,null,null,null,null,null,{"$f":"IF(G37=\"\",X37,0)","v":0},null,null,null,null,null,null,null,"BUSN115"]
[null,null,null,0,null,null,null,null,null,null,0,null,null,null,null,null,null,null,"BUSN319"]
[null,null,null,0,null,null,null,null,null,null,0,null,null,null,null,null,null,null,"COMP100"]
[null,null,null,0,null,null,null,null,null,null,{"$f":"IF(G41=\"\",X41,0)","v":0}]
[null,null,null,0,null,null,null,null,"Sum",null,{"$f":"SUM(K172:K184)+SUM(M171:M180)","v":0}]
[null,null,null,0]
[null,null,null,{"$f":"IF(G51=\"\",X51,0)","v":0}]
[null,null,null,{"$f":"IF(G16=\"\",X16,0)","v":0}]
[null,null,null,{"$f":"IF(G19=\"\",X19,0)","v":0}]
[null,"SUM",null,{"$f":"SUM(D171:D189)","v":0}]
[]
[]
[]
[]
[]
[]
[]
[]
[]
[]
[]
[]
[]
["College 1"]
[]
["Semester/LD",null,null,null,null,null,null,null,null,null,null,null,null,null,null,null,null,null,null,null,null,null,null,null,null,null,null,null,"Semester/UD"]
[null,null,null,null,null,null,null,"BMT BUCKET",null,null,null,null,null,"TECH BUCKET"]
["GEN ED BUCKET",null,null,null,null,null,null,{"$f":"IF(AND($I$36=1,$G$36<>\"\",$Z$36<>\"UD\"),ABS($X$36),0)","v":0},null,null,null,null,null,{"$f":"IF(AND($AO$15=1,$AM$15<>\"\",$BE$15<>\"UD\"),ABS($BC$15),0)","v":4},null,null,null,null,null,"ELECTIVE BUCKET",null,null,null,null,"SR PROJ",null,null,null,"GEN ED BUCKET",null,null,null,null,null,"BMT BUCKET",null,null,null,null,"TECH BUCKET",null,null,null,"ELECTIVE BUCKET",null,null,null,null,"SR PROJ"]
[{"$f":"IF(AND($I$16=1,$G$16<>\"\",$Z$16<>\"UD\"),ABS($X$16),0)","v":0},null,null,null,null,null,null,{"$f":"IF(AND($I$37=1,$G$37<>\"\",$Z$37<>\"UD\"),ABS($X$37),0)","v":0},null,null,null,null,null,{"$f":"IF(AND($AO$16=1,$AM$16<>\"\",$BE$16<>\"UD\"),ABS($BC$16),0)","v":4},null,null,null,null,null,{"$f":"IF(AND($AO$29=1,$AM$29<>\"\",$BE$29<>\"UD\"),ABS($BC$29),0)","v":4},null,null,null,null,{"$f":"IF(AND($I$51=1,$G$51<>\"\",$Z$51<>\"UD\"),ABS($X$51),0)","v":0},null,null,null,{"$f":"IF(AND($I$16=1,$G$16<>\"\",$Z$16=\"UD\"),ABS($X$16),0)","v":3},null,null,null,null,null,{"$f":"IF(AND($I$36=1,$G$36<>\"\",$Z$36=\"UD\"),ABS($X$36),0)","v":0},null,null,null,null,{"$f":"IF(AND($AO$15=1,$AM$15<>\"\",$BE$15=\"UD\"),ABS($BC$15),0)","v":0},null,null,null,{"$f":"IF(AND($AO$29=1,$AM$29<>\"\",$BE$29=\"UD\"),ABS($BC$29),0)","v":0},null,null,null,null,{"$f":"IF(AND($I$51=1,$G$51<>\"\",$Z$51=\"UD\"),ABS($X$51),0)","v":0}]
[{"$f":"IF(AND($I$17=1,$G$17<>\"\",$Z$17<>\"UD\"),ABS($X$17),0)","v":0},null,null,null,null,null,null,{"$f":"IF(AND($I$38=1,$G$38<>\"\",$Z$38<>\"UD\"),ABS($X$38),0)","v":0},null,null,null,null,null,{"$f":"IF(AND($AO$17=1,$AM$17<>\"\",$BE$17<>\"UD\"),ABS($BC$17),0)","v":3},null,null,null,null,null,{"$f":"IF(AND($AO$30=1,$AM$30<>\"\",$BE$30<>\"UD\"),ABS($BC$30),0)","v":4},null,null,null,null,null,null,null,null,{"$f":"IF(AND($I$17=1,$G$17<>\"\",$Z$17=\"UD\"),ABS($X$17),0)","v":0},null,null,null,null,null,{"$f":"IF(AND($I$37=1,$G$37<>\"\",$Z$37=\"UD\"),ABS($X$37),0)","v":0},null,null,null,null,{"$f":"IF(AND($AO$16=1,$AM$16<>\"\",$BE$16=\"UD\"),ABS($BC$16),0)","v":0},null,null,null,{"$f":"IF(AND($AO$30=1,$AM$30<>\"\",$BE$30=\"UD\"),ABS($BC$30),0)","v":0}]
[{"$f":"IF(AND($I$18=1,$G$18<>\"\",$Z$18<>\"UD\"),ABS($X$18),0)","v":0},null,null,null,null,null,null,{"$f":"IF(AND($I$39=1,$G$39<>\"\",$Z$39<>\"UD\"),ABS($X$39),0)","v":0},null,null,null,null,null,{"$f":"IF(AND($AO$18=1,$AM$18<>\"\",$BE$18<>\"UD\"),ABS($BC$18),0)","v":3},null,null,null,null,null,{"$f":"IF(AND($AO$31=1,$AM$31<>\"\",$BE$31<>\"UD\"),ABS($BC$31),0)","v":0},null,null,null,null,null,null,null,null,{"$f":"IF(AND($I$18=1,$G$18<>\"\",$Z$18=\"UD\"),ABS($X$18),0)","v":0},null,null,null,null,null,{"$f":"IF(AND($I$38=1,$G$38<>\"\",$Z$38=\"UD\"),ABS($X$38),0)","v":0},null,null,null,null,{"$f":"IF(AND($AO$17=1,$AM$17<>\"\",$BE$17=\"UD\"),ABS($BC$17),0)","v":0},null,null,null,{"$f":"IF(AND($AO$31=1,$AM$31<>\"\",$BE$31=\"UD\"),ABS($BC$31),0)","v":0}]
[{"$f":"IF(AND($I$19=1,$G$19<>\"\",$Z$19<>\"UD\"),ABS($X$19),0)","v":0},null,null,null,null,null,null,{"$f":"IF(AND($I$40=1,$G$40<>\"\",$Z$40<>\"UD\"),ABS($X$40),0)","v":0},null,null,null,null,null,{"$f":"IF(AND($AO$19=1,$AM$19<>\"\",$BE$19<>\"UD\"),ABS($BC$19),0)","v":4},null,null,null,null,null,{"$f":"IF(AND($AO$32=1,$AM$32<>\"\",$BE$32<>\"UD\"),ABS($BC$32),0)","v":0},null,null,null,null,null,null,null,null,{"$f":"IF(AND($I$19=1,$G$19<>\"\",$Z$19=\"UD\"),ABS($X$19),0)","v":3},null,null,null,null,null,{"$f":"IF(AND($I$39=1,$G$39<>\"\",$Z$39=\"UD\"),ABS($X$39),0)","v":0},null,null,null,null,{"$f":"IF(AND($AO$18=1,$AM$18<>\"\",$BE$18=\"UD\"),ABS($BC$18),0)","v":0},null,null,null,{"$f":"IF(AND($AO$32=1,$AM$32<>\"\",$BE$32=\"UD\"),ABS($BC$32),0)","v":0}]
[{"$f":"IF(AND($I$20=1,$G$20<>\"\",$Z$20<>\"UD\"),ABS($X$20),0)","v":4},null,null,null,null,null,null,{"$f":"IF(AND($I$41=1,$G$41<>\"\",$Z$41<>\"UD\"),ABS($X$41),0)","v":2},null,null,null,null,null,{"$f":"IF(AND($AO$20=1,$AM$20<>\"\",$BE$20<>\"UD\"),ABS($BC$20),0)","v":4},null,null,null,null,null,{"$f":"IF(AND($AO$33=1,$AM$33<>\"\",$BE$33<>\"UD\"),ABS($BC$33),0)","v":0},null,null,null,null,null,null,null,null,{"$f":"IF(AND($I$20=1,$G$20<>\"\",$Z$20=\"UD\"),ABS($X$20),0)","v":0},null,null,null,null,null,{"$f":"IF(AND($I$40=1,$G$40<>\"\",$Z$40=\"UD\"),ABS($X$40),0)","v":0},null,null,null,null,{"$f":"IF(AND($AO$19=1,$AM$19<>\"\",$BE$19=\"UD\"),ABS($BC$19),0)","v":0},null,null,null,{"$f":"IF(AND($AO$33=1,$AM$33<>\"\",$BE$33=\"UD\"),ABS($BC$33),0)","v":0}]
[{"$f":"IF(AND($I$21=1,$G$21<>\"\",$Z$21<>\"UD\"),ABS($X$21),0)","v":0},null,null,null,null,null,null,{"$f":"IF(AND($I$42=1,$G$42<>\"\",$Z$42<>\"UD\"),ABS($X$42),0)","v":0},null,null,null,null,null,{"$f":"IF(AND($AO$21=1,$AM$21<>\"\",$BE$21<>\"UD\"),ABS($BC$21),0)","v":4},null,null,null,null,null,{"$f":"IF(AND($AO$34=1,$AM$34<>\"\",$BE$34<>\"UD\"),ABS($BC$34),0)","v":0},null,null,null,null,null,null,null,null,{"$f":"IF(AND($I$21=1,$G$21<>\"\",$Z$21=\"UD\"),ABS($X$21),0)","v":0},null,null,null,null,null,{"$f":"IF(AND($I$41=1,$G$41<>\"\",$Z$41=\"UD\"),ABS($X$41),0)","v":0},null,null,null,null,{"$f":"IF(AND($AO$20=1,$AM$20<>\"\",$BE$20=\"UD\"),ABS($BC$20),0)","v":0},null,null,null,{"$f":"IF(AND($AO$34=1,$AM$34<>\"\",$BE$34=\"UD\"),ABS($BC$34),0)","v":0}]
[{"$f":"IF(AND($I$22=1,$G$22<>\"\",$Z$22<>\"UD\"),ABS($X$22),0)","v":0},null,null,null,null,null,null,{"$f":"IF(AND($I$43=1,$G$43<>\"\",$Z$43<>\"UD\"),ABS($X$43),0)","v":0},null,null,null,null,null,{"$f":"IF(AND($AO$22=1,$AM$22<>\"\",$BE$22<>\"UD\"),ABS($BC$22),0)","v":1},null,null,null,null,null,{"$f":"IF(AND($AO$35=1,$AM$35<>\"\",$BE$35<>\"UD\"),ABS($BC$35),0)","v":0},null,null,null,null,null,null,null,null,{"$f":"IF(AND($I$22=1,$G$22<>\"\",$Z$22=\"UD\"),ABS($X$22),0)","v":0},null,null,null,null,null,{"$f":"IF(AND($I$42=1,$G$42<>\"\",$Z$42=\"UD\"),ABS($X$42),0)","v":0},null,null,null,null,{"$f":"IF(AND($AO$21=1,$AM$21<>\"\",$BE$21=\"UD\"),ABS($BC$21),0)","v":0},null,null,null,{"$f":"IF(AND($AO$35=1,$AM$35<>\"\",$BE$35=\"UD\"),ABS($BC$35),0)","v":0}]
[{"$f":"IF(AND($I$23=1,$G$23<>\"\",$Z$23<>\"UD\"),ABS($X$23),0)","v":0},null,null,null,null,null,null,{"$f":"IF(AND($I$44=1,$G$44<>\"\",$Z$44<>\"UD\"),ABS($X$44),0)","v":0},null,null,null,null,null,{"$f":"IF(AND($AO$23=1,$AM$23<>\"\",$BE$23<>\"UD\"),ABS($BC$23),0)","v":0},null,null,null,null,null,{"$f":"IF(AND($AO$36=1,$AM$36<>\"\",$BE$36<>\"UD\"),ABS($BC$36),0)","v":0},null,null,null,null,null,null,null,null,{"$f":"IF(AND($I$23=1,$G$23<>\"\",$Z$23=\"UD\"),ABS($X$23),0)","v":0},null,null,null,null,null,{"$f":"IF(AND($I$43=1,$G$43<>\"\",$Z$43=\"UD\"),ABS($X$43),0)","v":4},null,null,null,null,{"$f":"IF(AND($AO$22=1,$AM$22<>\"\",$BE$22=\"UD\"),ABS($BC$22),0)","v":0},null,null,null,{"$f":"IF(AND($AO$36=1,$AM$36<>\"\",$BE$36=\"UD\"),ABS($BC$36),0)","v":0}]
[{"$f":"IF(AND($I$24=1,$G$24<>\"\",$Z$24<>\"UD\"),ABS($X$24),0)","v":0},null,null,null,null,null,null,{"$f":"IF(AND($I$45=1,$G$45<>\"\",$Z$45<>\"UD\"),ABS($X$45),0)","v":0},null,null,null,null,null,{"$f":"IF(AND($AO$24=1,$AM$24<>\"\",$BE$24<>\"UD\"),ABS($BC$24),0)","v":0},null,null,null,null,null,{"$f":"IF(AND($AO$37=1,$AM$37<>\"\",$BE$37<>\"UD\"),ABS($BC$37),0)","v":0},null,null,null,null,null,null,null,null,{"$f":"IF(AND($I$24=1,$G$24<>\"\",$Z$24=\"UD\"),ABS($X$24),0)","v":0},null,null,null,null,null,{"$f":"IF(AND($I$44=1,$G$44<>\"\",$Z$44=\"UD\"),ABS($X$44),0)","v":0},null,null,null,null,{"$f":"IF(AND($AO$23=1,$AM$23<>\"\",$BE$23=\"UD\"),ABS($BC$23),0)","v":0},null,null,null,{"$f":"IF(AND($AO$37=1,$AM$37<>\"\",$BE$37=\"UD\"),ABS($BC$37),0)","v":0}]
[{"$f":"IF(AND($I$25=1,$G$25<>\"\",$Z$25<>\"UD\"),ABS($X$25),0)","v":0},null,null,null,null,null,null,{"$f":"IF(AND($I$46=1,$G$46<>\"\",$Z$46<>\"UD\"),ABS($X$46),0)","v":0},null,null,null,null,null,{"$f":"IF(AND($AO$25=1,$AM$25<>\"\",$BE$25<>\"UD\"),ABS($BC$25),0)","v":0},null,null,null,null,null,{"$f":"IF(AND($AO$38=1,$AM$38<>\"\",$BE$38<>\"UD\"),ABS($BC$38),0)","v":0},null,null,null,null,null,null,null,null,{"$f":"IF(AND($I$25=1,$G$25<>\"\",$Z$25=\"UD\"),ABS($X$25),0)","v":0},null,null,null,null,null,{"$f":"IF(AND($I$45=1,$G$45<>\"\",$Z$45=\"UD\"),ABS($X$45),0)","v":0},null,null,null,null,{"$f":"IF(AND($AO$24=1,$AM$24<>\"\",$BE$24=\"UD\"),ABS($BC$24),0)","v":0},null,null,null,{"$f":"IF(AND($AO$38=1,$AM$38<>\"\",$BE$38=\"UD\"),ABS($BC$38),0)","v":0}]
[{"$f":"IF(AND($I$26=1,$G$26<>\"\",$Z$26<>\"UD\"),ABS($X$26),0)","v":0},null,null,null,null,null,null,{"$f":"IF(AND($I$47=1,$G$47<>\"\",$Z$47<>\"UD\"),ABS($X$47),0)","v":0},null,null,null,null,null,{"$f":"SUM(N208:N218)","v":27},"sum",null,null,null,null,{"$f":"SUM(T209:T218)","v":8},"sum",null,null,null,null,null,null,null,{"$f":"IF(AND($I$26=1,$G$26<>\"\",$Z$26=\"UD\"),ABS($X$26),0)","v":0},null,null,null,null,null,{"$f":"IF(AND($I$46=1,$G$46<>\"\",$Z$46=\"UD\"),ABS($X$46),0)","v":0},null,null,null,null,{"$f":"IF(AND($AO$25=1,$AM$25<>\"\",$BE$25=\"UD\"),ABS($BC$25),0)","v":0},null,null,null,{"$f":"SUM(AR209:AR218)","v":0},"sum"]
[{"$f":"IF(AND($I$27=1,$G$27<>\"\",$Z$27<>\"UD\"),ABS($X$27),0)","v":0},null,null,null,null,null,null,{"$f":"SUM(H208:H219)","v":2},null,null,null,null,null,null,null,null,null,null,null,null,null,null,null,null,null,null,null,null,{"$f":"IF(AND($I$27=1,$G$27<>\"\",$Z$27=\"UD\"),ABS($X$27),0)","v":0},null,null,null,null,null,{"$f":"IF(AND($I$47=1,$G$47<>\"\",$Z$47=\"UD\"),ABS($X$47),0)","v":0},null,null,null,null,{"$f":"SUM(AN209:AN219)","v":0},"sum"]
[{"$f":"IF(AND($I$28=1,$G$28<>\"\",$Z$28<>\"UD\"),ABS($X$28),0)","v":0},null,null,null,null,null,null,null,"sum",null,null,null,null,null,null,null,null,null,null,null,null,null,null,null,null,null,null,null,{"$f":"IF(AND($I$28=1,$G$28<>\"\",$Z$28=\"UD\"),ABS($X$28),0)","v":0},null,null,null,null,null,{"$f":"SUM(AI209:AI220)","v":4},"sum"]
[{"$f":"IF(AND($I$29=1,$G$29<>\"\",$Z$29<>\"UD\"),ABS($X$29),0)","v":0},null,null,null,null,null,null,null,null,null,null,null,null,null,null,null,null,null,null,null,null,null,null,null,null,null,null,null,{"$f":"IF(AND($I$29=1,$G$29<>\"\",$Z$29=\"UD\"),ABS($X$29),0)","v":0}]
[{"$f":"IF(AND($I$30=1,$G$30<>\"\",$Z$30<>\"UD\"),ABS($X$30),0)","v":0},null,null,null,null,null,null,null,null,null,null,null,null,null,null,null,null,null,null,null,null,null,null,null,null,null,null,null,{"$f":"IF(AND($I$30=1,$G$30<>\"\",$Z$30=\"UD\"),ABS($X$30),0)","v":0}]
[{"$f":"IF(AND($I$31=1,$G$31<>\"\",$Z$31<>\"UD\"),ABS($X$31),0)","v":0},null,null,null,null,null,null,null,null,null,null,null,null,null,null,null,null,null,null,null,null,null,null,null,null,null,null,null,{"$f":"IF(AND($I$31=1,$G$31<>\"\",$Z$31=\"UD\"),ABS($X$31),0)","v":0}]
[{"$f":"IF(AND($I$14=1,$G$14<>\"\",$Z$14<>\"UD\"),ABS($X$14),0)","v":4},null,null,null,null,null,null,null,null,null,null,null,null,null,null,null,null,null,null,null,null,null,null,null,null,null,null,null,{"$f":"IF(AND($I$14=1,$G$14<>\"\",$Z$14=\"UD\"),ABS($X$14),0)","v":0}]
[{"$f":"IF(AND($I$15=1,$G$15<>\"\",$Z$15<>\"UD\"),ABS($X$15),0)","v":0},"sum",null,null,null,null,null,null,null,null,null,null,null,null,null,null,null,null,null,null,null,null,null,null,null,null,null,null,{"$f":"IF(AND($I$15=1,$G$15<>\"\",$Z$15=\"UD\"),ABS($X$15),0)","v":0}]
[{"$f":"SUM(A209:A226)","v":8},"School 1 LD Total",null,null,null,null,null,null,null,null,null,null,null,null,null,null,null,null,null,null,null,null,null,null,null,null,null,null,{"$f":"SUM(AC209:AC226)","v":6},"sum"]
[{"$f":"A227+H220+N219+T219+Y209","v":45},null,null,null,null,null,null,null,null,null,null,null,null,null,null,null,null,null,null,null,null,null,null,null,null,null,null,null,{"$f":"AC227+AI221+AN220+AR219+AW209","v":10},"School 1 UD Total"]
[null,null,null,{"$f":"A227+AC227","v":14},null,null,"UD",{"$f":"AC228","v":10}]
["GEN ED",null,null,{"$f":"H220+AI221","v":6}]
["BMT",null,null,{"$f":"N219+AN220","v":27}]
["TECH",null,null,{"$f":"Y209+AW209","v":0}]
["SR PROJ",null,null,{"$f":"T219+AR219","v":8}]
["ELECTIVE","School 1 Total"]
[{"$f":"A228+AC228","v":55}]
[]
[]
[]
[]
["College 2"]
[]
["Semester/LD",null,null,null,null,null,null,null,null,null,null,null,null,null,null,null,null,null,null,null,null,null,null,null,null,null,null,null,"Semester/UD"]
[null,null,null,null,null,null,null,"BMT BUCKET",null,null,null,null,null,"TECH BUCKET"]
["GEN ED BUCKET",null,null,null,null,null,null,{"$f":"IF(AND($I$36=2,$G$36<>\"\",$Z$36<>\"UD\"),ABS($X$36),0)","v":4},null,null,null,null,null,{"$f":"IF(AND($AO$15=2,$AM$15<>\"\",$BE$15<>\"UD\"),ABS($BC$15),0)","v":0},null,null,null,null,null,"ELECTIVE BUCKET",null,null,null,null,"SR PROJ",null,null,null,"GEN ED BUCKET",null,null,null,null,null,"BMT BUCKET",null,null,null,null,"TECH BUCKET",null,null,null,"ELECTIVE BUCKET",null,null,null,null,"SR PROJ"]
[{"$f":"IF(AND($I$16=2,$G$16<>\"\",$Z$16<>\"UD\"),ABS($X$16),0)","v":0},null,null,null,null,null,null,{"$f":"IF(AND($I$37=2,$G$37<>\"\",$Z$37<>\"UD\"),ABS($X$37),0)","v":3},null,null,null,null,null,{"$f":"IF(AND($AO$16=2,$AM$16<>\"\",$BE$16<>\"UD\"),ABS($BC$16),0)","v":0},null,null,null,null,null,{"$f":"IF(AND($AO$29=2,$AM$29<>\"\",$BE$29<>\"UD\"),ABS($BC$29),0)","v":0},null,null,null,null,{"$f":"IF(AND($I$51=2,$G$51<>\"\",$Z$51<>\"UD\"),ABS($X$51),0)","v":0},null,null,null,{"$f":"IF(AND($I$16=2,$G$16<>\"\",$Z$16=\"UD\"),ABS($X$16),0)","v":0},null,null,null,null,null,{"$f":"IF(AND($I$36=2,$G$36<>\"\",$Z$36=\"UD\"),ABS($X$36),0)","v":0},null,null,null,null,{"$f":"IF(AND($AO$15=2,$AM$15<>\"\",$BE$15=\"UD\"),ABS($BC$15),0)","v":0},null,null,null,{"$f":"IF(AND($AO$29=2,$AM$29<>\"\",$BE$29=\"UD\"),ABS($BC$29),0)","v":0},null,null,null,null,{"$f":"IF(AND($I$51=2,$G$51<>\"\",$Z$51=\"UD\"),ABS($X$51),0)","v":3}]
[{"$f":"IF(AND($I$17=2,$G$17<>\"\",$Z$17<>\"UD\"),ABS($X$17),0)","v":0},null,null,null,null,null,null,{"$f":"IF(AND($I$38=2,$G$38<>\"\",$Z$38<>\"UD\"),ABS($X$38),0)","v":4},null,null,null,null,null,{"$f":"IF(AND($AO$17=2,$AM$17<>\"\",$BE$17<>\"UD\"),ABS($BC$17),0)","v":0},null,null,null,null,null,{"$f":"IF(AND($AO$30=2,$AM$30<>\"\",$BE$30<>\"UD\"),ABS($BC$30),0)","v":0},null,null,null,null,null,null,null,null,{"$f":"IF(AND($I$17=2,$G$17<>\"\",$Z$17=\"UD\"),ABS($X$17),0)","v":3},null,null,null,null,null,{"$f":"IF(AND($I$37=2,$G$37<>\"\",$Z$37=\"UD\"),ABS($X$37),0)","v":0},null,null,null,null,{"$f":"IF(AND($AO$16=2,$AM$16<>\"\",$BE$16=\"UD\"),ABS($BC$16),0)","v":0},null,null,null,{"$f":"IF(AND($AO$30=2,$AM$30<>\"\",$BE$30=\"UD\"),ABS($BC$30),0)","v":0}]
[{"$f":"IF(AND($I$18=2,$G$18<>\"\",$Z$18<>\"UD\"),ABS($X$18),0)","v":3},null,null,null,null,null,null,{"$f":"IF(AND($I$39=2,$G$39<>\"\",$Z$39<>\"UD\"),ABS($X$39),0)","v":3},null,null,null,null,null,{"$f":"IF(AND($AO$18=2,$AM$18<>\"\",$BE$18<>\"UD\"),ABS($BC$18),0)","v":0},null,null,null,null,null,{"$f":"IF(AND($AO$31=2,$AM$31<>\"\",$BE$31<>\"UD\"),ABS($BC$31),0)","v":0},null,null,null,null,null,null,null,null,{"$f":"IF(AND($I$18=2,$G$18<>\"\",$Z$18=\"UD\"),ABS($X$18),0)","v":0},null,null,null,null,null,{"$f":"IF(AND($I$38=2,$G$38<>\"\",$Z$38=\"UD\"),ABS($X$38),0)","v":0},null,null,null,null,{"$f":"IF(AND($AO$17=2,$AM$17<>\"\",$BE$17=\"UD\"),ABS($BC$17),0)","v":0},null,null,null,{"$f":"IF(AND($AO$31=2,$AM$31<>\"\",$BE$31=\"UD\"),ABS($BC$31),0)","v":0}]
[{"$f":"IF(AND($I$19=2,$G$19<>\"\",$Z$19<>\"UD\"),ABS($X$19),0)","v":0},null,null,null,null,null,null,{"$f":"IF(AND($I$40=2,$G$40<>\"\",$Z$40<>\"UD\"),ABS($X$40),0)","v":0},null,null,null,null,null,{"$f":"IF(AND($AO$19=2,$AM$19<>\"\",$BE$19<>\"UD\"),ABS($BC$19),0)","v":0},null,null,null,null,null,{"$f":"IF(AND($AO$32=2,$AM$32<>\"\",$BE$32<>\"UD\"),ABS($BC$32),0)","v":0},null,null,null,null,null,null,null,null,{"$f":"IF(AND($I$19=2,$G$19<>\"\",$Z$19=\"UD\"),ABS($X$19),0)","v":0},null,null,null,null,null,{"$f":"IF(AND($I$39=2,$G$39<>\"\",$Z$39=\"UD\"),ABS($X$39),0)","v":0},null,null,null,null,{"$f":"IF(AND($AO$18=2,$AM$18<>\"\",$BE$18=\"UD\"),ABS($BC$18),0)","v":0},null,null,null,{"$f":"IF(AND($AO$32=2,$AM$32<>\"\",$BE$32=\"UD\"),ABS($BC$32),0)","v":3}]
[{"$f":"IF(AND($I$20=2,$G$20<>\"\",$Z$2<>\"UD\"),ABS($X$20),0)","v":0},null,null,null,null,null,null,{"$f":"IF(AND($I$41=2,$G$41<>\"\",$Z$41<>\"UD\"),ABS($X$41),0)","v":0},null,null,null,null,null,{"$f":"IF(AND($AO$20=2,$AM$20<>\"\",$BE$20<>\"UD\"),ABS($BC$20),0)","v":0},null,null,null,null,null,{"$f":"IF(AND($AO$33=2,$AM$33<>\"\",$BE$33<>\"UD\"),ABS($BC$33),0)","v":0},null,null,null,null,null,null,null,null,{"$f":"IF(AND($I$20=2,$G$20<>\"\",$Z$2=\"UD\"),ABS($X$20),0)","v":0},null,null,null,null,null,{"$f":"IF(AND($I$40=2,$G$40<>\"\",$Z$40=\"UD\"),ABS($X$40),0)","v":3},null,null,null,null,{"$f":"IF(AND($AO$19=2,$AM$19<>\"\",$BE$19=\"UD\"),ABS($BC$19),0)","v":0},null,null,null,{"$f":"IF(AND($AO$33=2,$AM$33<>\"\",$BE$33=\"UD\"),ABS($BC$33),0)","v":3}]
[{"$f":"IF(AND($I$21=2,$G$21<>\"\",$Z$21<>\"UD\"),ABS($X$21),0)","v":4},null,null,null,null,null,null,{"$f":"IF(AND($I$42=2,$G$42<>\"\",$Z$42<>\"UD\"),ABS($X$42),0)","v":0},null,null,null,null,null,{"$f":"IF(AND($AO$21=2,$AM$21<>\"\",$BE$21<>\"UD\"),ABS($BC$21),0)","v":0},null,null,null,null,null,{"$f":"IF(AND($AO$34=2,$AM$34<>\"\",$BE$34<>\"UD\"),ABS($BC$34),0)","v":0},null,null,null,null,null,null,null,null,{"$f":"IF(AND($I$21=2,$G$21<>\"\",$Z$21=\"UD\"),ABS($X$21),0)","v":0},null,null,null,null,null,{"$f":"IF(AND($I$41=2,$G$41<>\"\",$Z$41=\"UD\"),ABS($X$41),0)","v":0},null,null,null,null,{"$f":"IF(AND($AO$20=2,$AM$20<>\"\",$BE$20=\"UD\"),ABS($BC$20),0)","v":0},null,null,null,{"$f":"IF(AND($AO$34=2,$AM$34<>\"\",$BE$34=\"UD\"),ABS($BC$34),0)","v":3}]
[{"$f":"IF(AND($I$22=2,$G$22<>\"\",$Z$22<>\"UD\"),ABS($X$22),0)","v":4},null,null,null,null,null,null,{"$f":"IF(AND($I$43=2,$G$43<>\"\",$Z$43<>\"UD\"),ABS($X$43),0)","v":0},null,null,null,null,null,{"$f":"IF(AND($AO$22=2,$AM$22<>\"\",$BE$22<>\"UD\"),ABS($BC$22),0)","v":0},null,null,null,null,null,{"$f":"IF(AND($AO$35=2,$AM$35<>\"\",$BE$35<>\"UD\"),ABS($BC$35),0)","v":0},null,null,null,null,null,null,null,null,{"$f":"IF(AND($I$22=2,$G$22<>\"\",$Z$22=\"UD\"),ABS($X$22),0)","v":0},null,null,null,null,null,{"$f":"IF(AND($I$42=2,$G$42<>\"\",$Z$42=\"UD\"),ABS($X$42),0)","v":3},null,null,null,null,{"$f":"IF(AND($AO$21=2,$AM$21<>\"\",$BE$21=\"UD\"),ABS($BC$21),0)","v":0},null,null,null,{"$f":"IF(AND($AO$35=2,$AM$35<>\"\",$BE$35=\"UD\"),ABS($BC$35),0)","v":3}]
[{"$f":"IF(AND($I$23=2,$G$23<>\"\",$Z$23<>\"UD\"),ABS($X$23),0)","v":0},null,null,null,null,null,null,{"$f":"IF(AND($I$44=2,$G$44<>\"\",$Z$44<>\"UD\"),ABS($X$44),0)","v":0},null,null,null,null,null,{"$f":"IF(AND($AO$23=2,$AM$23<>\"\",$BE$23<>\"UD\"),ABS($BC$23),0)","v":0},null,null,null,null,null,{"$f":"IF(AND($AO$36=2,$AM$36<>\"\",$BE$36<>\"UD\"),ABS($BC$36),0)","v":0},null,null,null,null,null,null,null,null,{"$f":"IF(AND($I$23=2,$G$23<>\"\",$Z$23=\"UD\"),ABS($X$23),0)","v":2},null,null,null,null,null,{"$f":"IF(AND($I$43=2,$G$43<>\"\",$Z$43=\"UD\"),ABS($X$43),0)","v":0},null,null,null,null,{"$f":"IF(AND($AO$22=2,$AM$22<>\"\",$BE$22=\"UD\"),ABS($BC$22),0)","v":0},null,null,null,{"$f":"IF(AND($AO$36=2,$AM$36<>\"\",$BE$36=\"UD\"),ABS($BC$36),0)","v":3}]
[{"$f":"IF(AND($I$24=2,$G$24<>\"\",$Z$24<>\"UD\"),ABS($X$24),0)","v":3},null,null,null,null,null,null,{"$f":"IF(AND($I$45=2,$G$45<>\"\",$Z$45<>\"UD\"),ABS($X$45),0)","v":0},null,null,null,null,null,{"$f":"IF(AND($AO$24=2,$AM$24<>\"\",$BE$24<>\"UD\"),ABS($BC$24),0)","v":0},null,null,null,null,null,{"$f":"IF(AND($AO$37=2,$AM$37<>\"\",$BE$37<>\"UD\"),ABS($BC$37),0)","v":0},null,null,null,null,null,null,null,null,{"$f":"IF(AND($I$24=2,$G$24<>\"\",$Z$24=\"UD\"),ABS($X$24),0)","v":0},null,null,null,null,null,{"$f":"IF(AND($I$44=2,$G$44<>\"\",$Z$44=\"UD\"),ABS($X$44),0)","v":0},null,null,null,null,{"$f":"IF(AND($AO$23=2,$AM$23<>\"\",$BE$23=\"UD\"),ABS($BC$23),0)","v":0},null,null,null,{"$f":"IF(AND($AO$37=2,$AM$37<>\"\",$BE$37=\"UD\"),ABS($BC$37),0)","v":3}]
[{"$f":"IF(AND($I$25=2,$G$25<>\"\",$Z$25<>\"UD\"),ABS($X$25),0)","v":0},null,null,null,null,null,null,{"$f":"IF(AND($I$46=2,$G$46<>\"\",$Z$46<>\"UD\"),ABS($X$46),0)","v":0},null,null,null,null,null,{"$f":"IF(AND($AO$25=2,$AM$25<>\"\",$BE$25<>\"UD\"),ABS($BC$25),0)","v":0},null,null,null,null,null,{"$f":"IF(AND($AO$38=2,$AM$38<>\"\",$BE$38<>\"UD\"),ABS($BC$38),0)","v":0},null,null,null,null,null,null,null,null,{"$f":"IF(AND($I$25=2,$G$25<>\"\",$Z$25=\"UD\"),ABS($X$25),0)","v":0},null,null,null,null,null,{"$f":"IF(AND($I$45=2,$G$45<>\"\",$Z$45=\"UD\"),ABS($X$45),0)","v":0},null,null,null,null,{"$f":"IF(AND($AO$24=2,$AM$24<>\"\",$BE$24=\"UD\"),ABS($BC$24),0)","v":0},null,null,null,{"$f":"IF(AND($AO$38=2,$AM$38<>\"\",$BE$38=\"UD\"),ABS($BC$38),0)","v":0}]
[{"$f":"IF(AND($I$26=2,$G$26<>\"\",$Z$26<>\"UD\"),ABS($X$26),0)","v":0},null,null,null,null,null,null,{"$f":"IF(AND($I$47=2,$G$47<>\"\",$Z$47<>\"UD\"),ABS($X$47),0)","v":0},null,null,null,null,null,{"$f":"SUM(N244:N254)","v":0},"sum",null,null,null,null,{"$f":"SUM(T245:T254)","v":0},"sum",null,null,null,null,null,null,null,{"$f":"IF(AND($I$26=2,$G$26<>\"\",$Z$26=\"UD\"),ABS($X$26),0)","v":0},null,null,null,null,null,{"$f":"IF(AND($I$46=2,$G$46<>\"\",$Z$46=\"UD\"),ABS($X$46),0)","v":0},null,null,null,null,{"$f":"IF(AND($AO$25=2,$AM$25<>\"\",$BE$25=\"UD\"),ABS($BC$25),0)","v":0},null,null,null,{"$f":"SUM(AR245:AR254)","v":18},"sum"]
[{"$f":"IF(AND($I$27=2,$G$27<>\"\",$Z$27<>\"UD\"),ABS($X$27),0)","v":3},null,null,null,null,null,null,{"$f":"SUM(H244:H255)","v":14},null,null,null,null,null,null,null,null,null,null,null,null,null,null,null,null,null,null,null,null,{"$f":"IF(AND($I$27=2,$G$27<>\"\",$Z$27=\"UD\"),ABS($X$27),0)","v":0},null,null,null,null,null,{"$f":"IF(AND($I$47=2,$G$47<>\"\",$Z$47=\"UD\"),ABS($X$47),0)","v":0},null,null,null,null,{"$f":"SUM(AN245:AN255)","v":0},"sum"]
[{"$f":"IF(AND($I$28=2,$G$28<>\"\",$Z$28<>\"UD\"),ABS($X$28),0)","v":0},null,null,null,null,null,null,null,"sum",null,null,null,null,null,null,null,null,null,null,null,null,null,null,null,null,null,null,null,{"$f":"IF(AND($I$28=2,$G$28<>\"\",$Z$28=\"UD\"),ABS($X$28),0)","v":0},null,null,null,null,null,{"$f":"SUM(AI245:AI256)","v":6},"sum"]
[{"$f":"IF(AND($I$29=2,$G$29<>\"\",$Z$29<>\"UD\"),ABS($X$29),0)","v":0},null,null,null,null,null,null,null,null,null,null,null,null,null,null,null,null,null,null,null,null,null,null,null,null,null,null,null,{"$f":"IF(AND($I$29=2,$G$29<>\"\",$Z$29=\"UD\"),ABS($X$29),0)","v":0}]
[{"$f":"IF(AND($I$30=2,$G$30<>\"\",$Z$30<>\"UD\"),ABS($X$30),0)","v":0},null,null,null,null,null,null,null,null,null,null,null,null,null,null,null,null,null,null,null,null,null,null,null,null,null,null,null,{"$f":"IF(AND($I$30=2,$G$30<>\"\",$Z$30=\"UD\"),ABS($X$30),0)","v":0}]
[{"$f":"IF(AND($I$31=2,$G$31<>\"\",$Z$31<>\"UD\"),ABS($X$31),0)","v":0},null,null,null,null,null,null,null,null,null,null,null,null,null,null,null,null,null,null,null,null,null,null,null,null,null,null,null,{"$f":"IF(AND($I$31=2,$G$31<>\"\",$Z$31=\"UD\"),ABS($X$31),0)","v":0}]
[{"$f":"IF(AND($I$14=2,$G$14<>\"\",$Z$14<>\"UD\"),ABS($X$14),0)","v":0},null,null,null,null,null,null,null,null,null,null,null,null,null,null,null,null,null,null,null,null,null,null,null,null,null,null,null,{"$f":"IF(AND($I$14=2,$G$14<>\"\",$Z$14=\"UD\"),ABS($X$14),0)","v":0}]
[{"$f":"IF(AND($I$15=2,$G$15<>\"\",$Z$15<>\"UD\"),ABS($X$15),0)","v":4},"sum",null,null,null,null,null,null,null,null,null,null,null,null,null,null,null,null,null,null,null,null,null,null,null,null,null,null,{"$f":"IF(AND($I$15=2,$G$15<>\"\",$Z$15=\"UD\"),ABS($X$15),0)","v":0}]
[{"$f":"SUM(A245:A262)","v":21},null,null,null,null,null,null,null,null,null,null,null,null,null,null,null,null,null,null,null,null,null,null,null,null,null,null,null,{"$f":"SUM(AC245:AC262)","v":5},"sum"]
[null,"School 2 Total"]
[{"$f":"A263+H256+N255+T255+Y245","v":35},null,null,null,null,null,null,null,null,null,null,null,null,null,null,null,null,null,null,null,null,null,null,null,null,null,null,null,{"$f":"AC263+AI257+AN256+AR255+AW245","v":32},"School 2 Total"]
[null,null,null,{"$f":"A263+AC263","v":26},null,null,"UD",{"$f":"AC265","v":32}]
["GEN ED",null,null,{"$f":"H256+AI257","v":20}]
["BMT",null,null,{"$f":"N255+AN256","v":0}]
["TECH",null,null,{"$f":"Y245+AW245","v":3}]
["SR PROJ",null,null,{"$f":"T255+AR255","v":18}]
["ELECTIVE","School 2 Total"]
[{"$f":"A265+AC265","v":67}]
[]
[]
[]
[]
["College 3"]
[]
["Semester/LD",null,null,null,null,null,null,null,null,null,null,null,null,null,null,null,null,null,null,null,null,null,null,null,null,null,null,null,"Semester/UD"]
[null,null,null,null,null,null,null,"BMT BUCKET",null,null,null,null,null,"TECH BUCKET"]
["GEN ED BUCKET",null,null,null,null,null,null,{"$f":"IF(AND($I$36=3,$G$36<>\"\",$Z$36<>\"UD\"),ABS($X$36),0)","v":0},null,null,null,null,null,{"$f":"IF(AND($AO$15=3,$AM$15<>\"\",$BE$15<>\"UD\"),ABS($BC$15),0)","v":0},null,null,null,null,null,"ELECTIVE BUCKET",null,null,null,null,"SR PROJ",null,null,null,"GEN ED BUCKET",null,null,null,null,null,"BMT BUCKET",null,null,null,null,"TECH BUCKET",null,null,null,"ELECTIVE BUCKET",null,null,null,null,"SR PROJ"]
[{"$f":"IF(AND($I$16=3,$G$16<>\"\",$Z$16<>\"UD\"),ABS($X$16),0)","v":0},null,null,null,null,null,null,{"$f":"IF(AND($I$37=3,$G$37<>\"\",$Z$37<>\"UD\"),ABS($X$37),0)","v":0},null,null,null,null,null,{"$f":"IF(AND($AO$16=3,$AM$16<>\"\",$BE$16<>\"UD\"),ABS($BC$16),0)","v":0},null,null,null,null,null,{"$f":"IF(AND($AO$29=3,$AM$29<>\"\",$BE$29<>\"UD\"),ABS($BC$29),0)","v":0},null,null,null,null,{"$f":"IF(AND($I$51=3,$G$51<>\"\",$Z$51<>\"UD\"),ABS($X$51),0)","v":0},null,null,null,{"$f":"IF(AND($I$16=3,$G$16<>\"\",$Z$16=\"UD\"),ABS($X$16),0)","v":0},null,null,null,null,null,{"$f":"IF(AND($I$36=3,$G$36<>\"\",$Z$36=\"UD\"),ABS($X$36),0)","v":0},null,null,null,null,{"$f":"IF(AND($AO$15=3,$AM$15<>\"\",$BE$15=\"UD\"),ABS($BC$15),0)","v":0},null,null,null,{"$f":"IF(AND($AO$29=3,$AM$29<>\"\",$BE$29=\"UD\"),ABS($BC$29),0)","v":0},null,null,null,null,{"$f":"IF(AND($I$51=3,$G$51<>\"\",$Z$51=\"UD\"),ABS($X$51),0)","v":0}]
[{"$f":"IF(AND($I$17=3,$G$17<>\"\",$Z$17<>\"UD\"),ABS($X$17),0)","v":0},null,null,null,null,null,null,{"$f":"IF(AND($I$38=3,$G$38<>\"\",$Z$38<>\"UD\"),ABS($X$38),0)","v":0},null,null,null,null,null,{"$f":"IF(AND($AO$17=3,$AM$17<>\"\",$BE$17<>\"UD\"),ABS($BC$17),0)","v":0},null,null,null,null,null,{"$f":"IF(AND($AO$30=3,$AM$30<>\"\",$BE$30<>\"UD\"),ABS($BC$30),0)","v":0},null,null,null,null,null,null,null,null,{"$f":"IF(AND($I$17=3,$G$17<>\"\",$Z$17=\"UD\"),ABS($X$17),0)","v":0},null,null,null,null,null,{"$f":"IF(AND($I$37=3,$G$37<>\"\",$Z$37=\"UD\"),ABS($X$37),0)","v":0},null,null,null,null,{"$f":"IF(AND($AO$16=3,$AM$16<>\"\",$BE$16=\"UD\"),ABS($BC$16),0)","v":0},null,null,null,{"$f":"IF(AND($AO$30=3,$AM$30<>\"\",$BE$30=\"UD\"),ABS($BC$30),0)","v":0}]
[{"$f":"IF(AND($I$18=3,$G$18<>\"\",$Z$18<>\"UD\"),ABS($X$18),0)","v":0},null,null,null,null,null,null,{"$f":"IF(AND($I$39=3,$G$39<>\"\",$Z$39<>\"UD\"),ABS($X$39),0)","v":0},null,null,null,null,null,{"$f":"IF(AND($AO$18=3,$AM$18<>\"\",$BE$18<>\"UD\"),ABS($BC$18),0)","v":0},null,null,null,null,null,{"$f":"IF(AND($AO$31=3,$AM$31<>\"\",$BE$31<>\"UD\"),ABS($BC$31),0)","v":0},null,null,null,null,null,null,null,null,{"$f":"IF(AND($I$18=3,$G$18<>\"\",$Z$18=\"UD\"),ABS($X$18),0)","v":0},null,null,null,null,null,{"$f":"IF(AND($I$38=3,$G$38<>\"\",$Z$38=\"UD\"),ABS($X$38),0)","v":0},null,null,null,null,{"$f":"IF(AND($AO$17=3,$AM$17<>\"\",$BE$17=\"UD\"),ABS($BC$17),0)","v":0},null,null,null,{"$f":"IF(AND($AO$31=3,$AM$31<>\"\",$BE$31=\"UD\"),ABS($BC$31),0)","v":0}]
[{"$f":"IF(AND($I$19=3,$G$19<>\"\",$Z$19<>\"UD\"),ABS($X$19),0)","v":0},null,null,null,null,null,null,{"$f":"IF(AND($I$40=3,$G$40<>\"\",$Z$40<>\"UD\"),ABS($X$40),0)","v":0},null,null,null,null,null,{"$f":"IF(AND($AO$19=3,$AM$19<>\"\",$BE$19<>\"UD\"),ABS($BC$19),0)","v":0},null,null,null,null,null,{"$f":"IF(AND($AO$32=3,$AM$32<>\"\",$BE$32<>\"UD\"),ABS($BC$32),0)","v":0},null,null,null,null,null,null,null,null,{"$f":"IF(AND($I$19=3,$G$19<>\"\",$Z$19=\"UD\"),ABS($X$19),0)","v":0},null,null,null,null,null,{"$f":"IF(AND($I$39=3,$G$39<>\"\",$Z$39=\"UD\"),ABS($X$39),0)","v":0},null,null,null,null,{"$f":"IF(AND($AO$18=3,$AM$18<>\"\",$BE$18=\"UD\"),ABS($BC$18),0)","v":0},null,null,null,{"$f":"IF(AND($AO$32=3,$AM$32<>\"\",$BE$32=\"UD\"),ABS($BC$32),0)","v":0}]
[{"$f":"IF(AND($I$20=3,$G$20<>\"\",$Z$20<>\"UD\"),ABS($X$20),0)","v":0},null,null,null,null,null,null,{"$f":"IF(AND($I$41=3,$G$41<>\"\",$Z$41<>\"UD\"),ABS($X$41),0)","v":0},null,null,null,null,null,{"$f":"IF(AND($AO$20=3,$AM$20<>\"\",$BE$20<>\"UD\"),ABS($BC$20),0)","v":0},null,null,null,null,null,{"$f":"IF(AND($AO$33=3,$AM$33<>\"\",$BE$33<>\"UD\"),ABS($BC$33),0)","v":0},null,null,null,null,null,null,null,null,{"$f":"IF(AND($I$20=3,$G$20<>\"\",$Z$20=\"UD\"),ABS($X$20),0)","v":0},null,null,null,null,null,{"$f":"IF(AND($I$40=3,$G$40<>\"\",$Z$40=\"UD\"),ABS($X$40),0)","v":0},null,null,null,null,{"$f":"IF(AND($AO$19=3,$AM$19<>\"\",$BE$19=\"UD\"),ABS($BC$19),0)","v":0},null,null,null,{"$f":"IF(AND($AO$33=3,$AM$33<>\"\",$BE$33=\"UD\"),ABS($BC$33),0)","v":0}]
[{"$f":"IF(AND($I$21=3,$G$21<>\"\",$Z$21<>\"UD\"),ABS($X$21),0)","v":0},null,null,null,null,null,null,{"$f":"IF(AND($I$42=3,$G$42<>\"\",$Z$42<>\"UD\"),ABS($X$42),0)","v":0},null,null,null,null,null,{"$f":"IF(AND($AO$21=3,$AM$21<>\"\",$BE$21<>\"UD\"),ABS($BC$21),0)","v":0},null,null,null,null,null,{"$f":"IF(AND($AO$34=3,$AM$34<>\"\",$BE$34<>\"UD\"),ABS($BC$34),0)","v":0},null,null,null,null,null,null,null,null,{"$f":"IF(AND($I$21=3,$G$21<>\"\",$Z$21=\"UD\"),ABS($X$21),0)","v":0},null,null,null,null,null,{"$f":"IF(AND($I$41=3,$G$41<>\"\",$Z$41=\"UD\"),ABS($X$41),0)","v":0},null,null,null,null,{"$f":"IF(AND($AO$20=3,$AM$20<>\"\",$BE$20=\"UD\"),ABS($BC$20),0)","v":0},null,null,null,{"$f":"IF(AND($AO$34=3,$AM$34<>\"\",$BE$34=\"UD\"),ABS($BC$34),0)","v":0}]
[{"$f":"IF(AND($I$22=3,$G$22<>\"\",$Z$22<>\"UD\"),ABS($X$22),0)","v":0},null,null,null,null,null,null,{"$f":"IF(AND($I$43=3,$G$43<>\"\",$Z$43<>\"UD\"),ABS($X$43),0)","v":0},null,null,null,null,null,{"$f":"IF(AND($AO$22=3,$AM$22<>\"\",$BE$22<>\"UD\"),ABS($BC$22),0)","v":0},null,null,null,null,null,{"$f":"IF(AND($AO$35=3,$AM$35<>\"\",$BE$35<>\"UD\"),ABS($BC$35),0)","v":0},null,null,null,null,null,null,null,null,{"$f":"IF(AND($I$22=3,$G$22<>\"\",$Z$22=\"UD\"),ABS($X$22),0)","v":0},null,null,null,null,null,{"$f":"IF(AND($I$42=3,$G$42<>\"\",$Z$42=\"UD\"),ABS($X$42),0)","v":0},null,null,null,null,{"$f":"IF(AND($AO$21=3,$AM$21<>\"\",$BE$21=\"UD\"),ABS($BC$21),0)","v":0},null,null,null,{"$f":"IF(AND($AO$35=3,$AM$35<>\"\",$BE$35=\"UD\"),ABS($BC$35),0)","v":0}]
[{"$f":"IF(AND($I$23=3,$G$23<>\"\",$Z$23<>\"UD\"),ABS($X$23),0)","v":0},null,null,null,null,null,null,{"$f":"IF(AND($I$44=3,$G$44<>\"\",$Z$44<>\"UD\"),ABS($X$44),0)","v":0},null,null,null,null,null,{"$f":"IF(AND($AO$23=3,$AM$23<>\"\",$BE$23<>\"UD\"),ABS($BC$23),0)","v":0},null,null,null,null,null,{"$f":"IF(AND($AO$36=3,$AM$36<>\"\",$BE$36<>\"UD\"),ABS($BC$36),0)","v":0},null,null,null,null,null,null,null,null,{"$f":"IF(AND($I$23=3,$G$23<>\"\",$Z$23=\"UD\"),ABS($X$23),0)","v":0},null,null,null,null,null,{"$f":"IF(AND($I$43=3,$G$43<>\"\",$Z$43=\"UD\"),ABS($X$43),0)","v":0},null,null,null,null,{"$f":"IF(AND($AO$22=3,$AM$22<>\"\",$BE$22=\"UD\"),ABS($BC$22),0)","v":0},null,null,null,{"$f":"IF(AND($AO$36=3,$AM$36<>\"\",$BE$36=\"UD\"),ABS($BC$36),0)","v":0}]
[{"$f":"IF(AND($I$24=3,$G$24<>\"\",$Z$24<>\"UD\"),ABS($X$24),0)","v":0},null,null,null,null,null,null,{"$f":"IF(AND($I$45=3,$G$45<>\"\",$Z$45<>\"UD\"),ABS($X$45),0)","v":0},null,null,null,null,null,{"$f":"IF(AND($AO$24=3,$AM$24<>\"\",$BE$24<>\"UD\"),ABS($BC$24),0)","v":0},null,null,null,null,null,{"$f":"IF(AND($AO$37=3,$AM$37<>\"\",$BE$37<>\"UD\"),ABS($BC$37),0)","v":0},null,null,null,null,null,null,null,null,{"$f":"IF(AND($I$24=3,$G$24<>\"\",$Z$24=\"UD\"),ABS($X$24),0)","v":0},null,null,null,null,null,{"$f":"IF(AND($I$44=3,$G$44<>\"\",$Z$44=\"UD\"),ABS($X$44),0)","v":0},null,null,null,null,{"$f":"IF(AND($AO$23=3,$AM$23<>\"\",$BE$23=\"UD\"),ABS($BC$23),0)","v":0},null,null,null,{"$f":"IF(AND($AO$37=3,$AM$37<>\"\",$BE$37=\"UD\"),ABS($BC$37),0)","v":0}]
[{"$f":"IF(AND($I$25=3,$G$25<>\"\",$Z$25<>\"UD\"),ABS($X$25),0)","v":0},null,null,null,null,null,null,{"$f":"IF(AND($I$46=3,$G$46<>\"\",$Z$46<>\"UD\"),ABS($X$46),0)","v":0},null,null,null,null,null,{"$f":"IF(AND($AO$25=3,$AM$25<>\"\",$BE$25<>\"UD\"),ABS($BC$25),0)","v":0},null,null,null,null,null,{"$f":"IF(AND($AO$38=3,$AM$38<>\"\",$BE$38<>\"UD\"),ABS($BC$38),0)","v":0},null,null,null,null,null,null,null,null,{"$f":"IF(AND($I$25=3,$G$25<>\"\",$Z$25=\"UD\"),ABS($X$25),0)","v":0},null,null,null,null,null,{"$f":"IF(AND($I$45=3,$G$45<>\"\",$Z$45=\"UD\"),ABS($X$45),0)","v":0},null,null,null,null,{"$f":"IF(AND($AO$24=3,$AM$24<>\"\",$BE$24=\"UD\"),ABS($BC$24),0)","v":0},null,null,null,{"$f":"IF(AND($AO$38=3,$AM$38<>\"\",$BE$38=\"UD\"),ABS($BC$38),0)","v":0}]
[{"$f":"IF(AND($I$26=3,$G$26<>\"\",$Z$26<>\"UD\"),ABS($X$26),0)","v":0},null,null,null,null,null,null,{"$f":"IF(AND($I$47=3,$G$47<>\"\",$Z$47<>\"UD\"),ABS($X$47),0)","v":0},null,null,null,null,null,{"$f":"SUM(N281:N291)","v":0},"sum",null,null,null,null,{"$f":"SUM(T282:T291)","v":0},"sum",null,null,null,null,null,null,null,{"$f":"IF(AND($I$26=3,$G$26<>\"\",$Z$26=\"UD\"),ABS($X$26),0)","v":0},null,null,null,null,null,{"$f":"IF(AND($I$46=3,$G$46<>\"\",$Z$46=\"UD\"),ABS($X$46),0)","v":0},null,null,null,null,{"$f":"IF(AND($AO$25=3,$AM$25<>\"\",$BE$25=\"UD\"),ABS($BC$25),0)","v":0},null,null,null,{"$f":"SUM(AR282:AR291)","v":0},"sum"]
[{"$f":"IF(AND($I$27=3,$G$27<>\"\",$Z$27<>\"UD\"),ABS($X$27),0)","v":0},null,null,null,null,null,null,{"$f":"SUM(H281:H292)","v":0},null,null,null,null,null,null,null,null,null,null,null,null,null,null,null,null,null,null,null,null,{"$f":"IF(AND($I$27=3,$G$27<>\"\",$Z$27=\"UD\"),ABS($X$27),0)","v":0},null,null,null,null,null,{"$f":"IF(AND($I$47=3,$G$47<>\"\",$Z$47=\"UD\"),ABS($X$47),0)","v":0},null,null,null,null,{"$f":"SUM(AN282:AN292)","v":0},"sum"]
[{"$f":"IF(AND($I$28=3,$G$28<>\"\",$Z$28<>\"UD\"),ABS($X$28),0)","v":0},null,null,null,null,null,null,null,"sum",null,null,null,null,null,null,null,null,null,null,null,null,null,null,null,null,null,null,null,{"$f":"IF(AND($I$28=3,$G$28<>\"\",$Z$28=\"UD\"),ABS($X$28),0)","v":0},null,null,null,null,null,{"$f":"SUM(AI282:AI293)","v":0},"sum"]
[{"$f":"IF(AND($I$29=3,$G$29<>\"\",$Z$29<>\"UD\"),ABS($X$29),0)","v":0},null,null,null,null,null,null,null,null,null,null,null,null,null,null,null,null,null,null,null,null,null,null,null,null,null,null,null,{"$f":"IF(AND($I$29=3,$G$29<>\"\",$Z$29=\"UD\"),ABS($X$29),0)","v":0}]
[{"$f":"IF(AND($I$31=3,$G$31<>\"\",$Z$31<>\"UD\"),ABS($X$31),0)","v":0},null,null,null,null,null,null,null,null,null,null,null,null,null,null,null,null,null,null,null,null,null,null,null,null,null,null,null,{"$f":"IF(AND($I$31=3,$G$31<>\"\",$Z$31=\"UD\"),ABS($X$31),0)","v":0}]
[{"$f":"IF(AND($I$30=3,$G$30<>\"\",$Z$30<>\"UD\"),ABS($X$30),0)","v":0},null,null,null,null,null,null,null,null,null,null,null,null,null,null,null,null,null,null,null,null,null,null,null,null,null,null,null,{"$f":"IF(AND($I$30=3,$G$30<>\"\",$Z$30=\"UD\"),ABS($X$30),0)","v":0}]
[{"$f":"IF(AND($I$14=3,$G$14<>\"\",$Z$14<>\"UD\"),ABS($X$14),0)","v":0},null,null,null,null,null,null,null,null,null,null,null,null,null,null,null,null,null,null,null,null,null,null,null,null,null,null,null,{"$f":"IF(AND($I$14=3,$G$14<>\"\",$Z$14=\"UD\"),ABS($X$14),0)","v":0}]
[{"$f":"IF(AND($I$15=3,$G$15<>\"\",$Z$15<>\"UD\"),ABS($X$15),0)","v":0},"sum",null,null,null,null,null,null,null,null,null,null,null,null,null,null,null,null,null,null,null,null,null,null,null,null,null,null,{"$f":"IF(AND($I$15=3,$G$15<>\"\",$Z$15=\"UD\"),ABS($X$15),0)","v":0}]
[{"$f":"SUM(A282:A299)","v":0},null,null,null,null,null,null,null,null,null,null,null,null,null,null,null,null,null,null,null,null,null,null,null,null,null,null,null,{"$f":"SUM(AC282:AC299)","v":0},"sum"]
[null,"School 3 Total"]
[{"$f":"A300+H293+N292+T292+Y282","v":0},null,null,null,null,null,null,null,null,null,null,null,null,null,null,null,null,null,null,null,null,null,null,null,null,null,null,null,{"$f":"AC300+AI294+AN293+AR292+AW282","v":0},"School 3 Total"]
[null,null,null,{"$f":"A300+AC300","v":0},null,null,"UD",{"$f":"AC302","v":0}]
["GEN ED",null,null,{"$f":"H293+AI294","v":0}]
["BMT",null,null,{"$f":"N292+AN293","v":0}]
["TECH",null,null,{"$f":"Y282+AW282","v":0}]
["SR PROJ",null,null,{"$f":"T292+AR292","v":0}]
["ELECTIVE","School 3 Total"]
[{"$f":"A302+AC302","v":0}]
[]
[]
[]
[]
["College 4"]
[]
["Semester/LD",null,null,null,null,null,null,null,null,null,null,null,null,null,null,null,null,null,null,null,null,null,null,null,null,null,null,null,"Semester/UD"]
[null,null,null,null,null,null,null,"BMT BUCKET",null,null,null,null,null,"TECH BUCKET"]
["GEN ED BUCKET",null,null,null,null,null,null,{"$f":"IF(AND($I$36=4,$G$36<>\"\",$Z$36<>\"UD\"),ABS($X$36),0)","v":0},null,null,null,null,null,{"$f":"IF(AND($AO$15=4,$AM$15<>\"\",$BE$15<>\"UD\"),ABS($BC$15),0)","v":0},null,null,null,null,null,"ELECTIVE BUCKET",null,null,null,null,"SR PROJ",null,null,null,"GEN ED BUCKET",null,null,null,null,null,"BMT BUCKET",null,null,null,null,"TECH BUCKET",null,null,null,"ELECTIVE BUCKET",null,null,null,null,"SR PROJ"]
[{"$f":"IF(AND($I$16=4,$G$16<>\"\",$Z$16<>\"UD\"),ABS($X$16),0)","v":0},null,null,null,null,null,null,{"$f":"IF(AND($I$37=4,$G$37<>\"\",$Z$37<>\"UD\"),ABS($X$37),0)","v":0},null,null,null,null,null,{"$f":"IF(AND($AO$16=4,$AM$16<>\"\",$BE$16<>\"UD\"),ABS($BC$16),0)","v":0},null,null,null,null,null,{"$f":"IF(AND($AO$29=4,$AM$29<>\"\",$BE$29<>\"UD\"),ABS($BC$29),0)","v":0},null,null,null,null,{"$f":"IF(AND($I$51=4,$G$51<>\"\",$Z$51<>\"UD\"),ABS($X$51),0)","v":0},null,null,null,{"$f":"IF(AND($I$16=4,$G$16<>\"\",$Z$16=\"UD\"),ABS($X$16),0)","v":0},null,null,null,null,null,{"$f":"IF(AND($I$36=4,$G$36<>\"\",$Z$36=\"UD\"),ABS($X$36),0)","v":0},null,null,null,null,{"$f":"IF(AND($AO$15=4,$AM$15<>\"\",$BE$15=\"UD\"),ABS($BC$15),0)","v":0},null,null,null,{"$f":"IF(AND($AO$29=4,$AM$29<>\"\",$BE$29=\"UD\"),ABS($BC$29),0)","v":0},null,null,null,null,{"$f":"IF(AND($I$51=4,$G$51<>\"\",$Z$51=\"UD\"),ABS($X$51),0)","v":0}]
[{"$f":"IF(AND($I$17=4,$G$17<>\"\",$Z$17<>\"UD\"),ABS($X$17),0)","v":0},null,null,null,null,null,null,{"$f":"IF(AND($I$38=4,$G$38<>\"\",$Z$38<>\"UD\"),ABS($X$38),0)","v":0},null,null,null,null,null,{"$f":"IF(AND($AO$17=4,$AM$17<>\"\",$BE$17<>\"UD\"),ABS($BC$17),0)","v":0},null,null,null,null,null,{"$f":"IF(AND($AO$30=4,$AM$30<>\"\",$BE$30<>\"UD\"),ABS($BC$30),0)","v":0},null,null,null,null,null,null,null,null,{"$f":"IF(AND($I$17=4,$G$17<>\"\",$Z$17=\"UD\"),ABS($X$17),0)","v":0},null,null,null,null,null,{"$f":"IF(AND($I$37=4,$G$37<>\"\",$Z$37=\"UD\"),ABS($X$37),0)","v":0},null,null,null,null,{"$f":"IF(AND($AO$16=4,$AM$16<>\"\",$BE$16=\"UD\"),ABS($BC$16),0)","v":0},null,null,null,{"$f":"IF(AND($AO$30=4,$AM$30<>\"\",$BE$30=\"UD\"),ABS($BC$30),0)","v":0}]
[{"$f":"IF(AND($I$18=4,$G$18<>\"\",$Z$18<>\"UD\"),ABS($X$18),0)","v":0},null,null,null,null,null,null,{"$f":"IF(AND($I$39=4,$G$39<>\"\",$Z$39<>\"UD\"),ABS($X$39),0)","v":0},null,null,null,null,null,{"$f":"IF(AND($AO$18=4,$AM$18<>\"\",$BE$18<>\"UD\"),ABS($BC$18),0)","v":0},null,null,null,null,null,{"$f":"IF(AND($AO$31=4,$AM$31<>\"\",$BE$31<>\"UD\"),ABS($BC$31),0)","v":0},null,null,null,null,null,null,null,null,{"$f":"IF(AND($I$18=4,$G$18<>\"\",$Z$18=\"UD\"),ABS($X$18),0)","v":0},null,null,null,null,null,{"$f":"IF(AND($I$38=4,$G$38<>\"\",$Z$38=\"UD\"),ABS($X$38),0)","v":0},null,null,null,null,{"$f":"IF(AND($AO$17=4,$AM$17<>\"\",$BE$17=\"UD\"),ABS($BC$17),0)","v":0},null,null,null,{"$f":"IF(AND($AO$31=4,$AM$31<>\"\",$BE$31=\"UD\"),ABS($BC$31),0)","v":0}]
[{"$f":"IF(AND($I$19=4,$G$19<>\"\",$Z$19<>\"UD\"),ABS($X$19),0)","v":0},null,null,null,null,null,null,{"$f":"IF(AND($I$40=4,$G$40<>\"\",$Z$40<>\"UD\"),ABS($X$40),0)","v":0},null,null,null,null,null,{"$f":"IF(AND($AO$19=4,$AM$19<>\"\",$BE$19<>\"UD\"),ABS($BC$19),0)","v":0},null,null,null,null,null,{"$f":"IF(AND($AO$32=4,$AM$32<>\"\",$BE$32<>\"UD\"),ABS($BC$32),0)","v":0},null,null,null,null,null,null,null,null,{"$f":"IF(AND($I$19=4,$G$19<>\"\",$Z$19=\"UD\"),ABS($X$19),0)","v":0},null,null,null,null,null,{"$f":"IF(AND($I$39=4,$G$39<>\"\",$Z$39=\"UD\"),ABS($X$39),0)","v":0},null,null,null,null,{"$f":"IF(AND($AO$18=4,$AM$18<>\"\",$BE$18=\"UD\"),ABS($BC$18),0)","v":0},null,null,null,{"$f":"IF(AND($AO$32=4,$AM$32<>\"\",$BE$32=\"UD\"),ABS($BC$32),0)","v":0}]
[{"$f":"IF(AND($I$20=4,$G$20<>\"\",$Z$20<>\"UD\"),ABS($X$20),0)","v":0},null,null,null,null,null,null,{"$f":"IF(AND($I$41=4,$G$41<>\"\",$Z$41<>\"UD\"),ABS($X$41),0)","v":0},null,null,null,null,null,{"$f":"IF(AND($AO$20=4,$AM$20<>\"\",$BE$20<>\"UD\"),ABS($BC$20),0)","v":0},null,null,null,null,null,{"$f":"IF(AND($AO$33=4,$AM$33<>\"\",$BE$33<>\"UD\"),ABS($BC$33),0)","v":0},null,null,null,null,null,null,null,null,{"$f":"IF(AND($I$20=4,$G$20<>\"\",$Z$20=\"UD\"),ABS($X$20),0)","v":0},null,null,null,null,null,{"$f":"IF(AND($I$40=4,$G$40<>\"\",$Z$40=\"UD\"),ABS($X$40),0)","v":0},null,null,null,null,{"$f":"IF(AND($AO$19=4,$AM$19<>\"\",$BE$19=\"UD\"),ABS($BC$19),0)","v":0},null,null,null,{"$f":"IF(AND($AO$33=4,$AM$33<>\"\",$BE$33=\"UD\"),ABS($BC$33),0)","v":0}]
[{"$f":"IF(AND($I$21=4,$G$19<>\"\",$Z$21<>\"UD\"),ABS($X$21),0)","v":0},null,null,null,null,null,null,{"$f":"IF(AND($I$42=4,$G$42<>\"\",$Z$42<>\"UD\"),ABS($X$42),0)","v":0},null,null,null,null,null,{"$f":"IF(AND($AO$21=4,$AM$21<>\"\",$BE$21<>\"UD\"),ABS($BC$21),0)","v":0},null,null,null,null,null,{"$f":"IF(AND($AO$34=4,$AM$34<>\"\",$BE$34<>\"UD\"),ABS($BC$34),0)","v":0},null,null,null,null,null,null,null,null,{"$f":"IF(AND($I$21=4,$G$19<>\"\",$Z$21=\"UD\"),ABS($X$21),0)","v":0},null,null,null,null,null,{"$f":"IF(AND($I$41=4,$G$41<>\"\",$Z$41=\"UD\"),ABS($X$41),0)","v":0},null,null,null,null,{"$f":"IF(AND($AO$20=4,$AM$20<>\"\",$BE$20=\"UD\"),ABS($BC$20),0)","v":0},null,null,null,{"$f":"IF(AND($AO$34=4,$AM$34<>\"\",$BE$34=\"UD\"),ABS($BC$34),0)","v":0}]
[{"$f":"IF(AND($I$22=4,$G$22<>\"\",$Z$22<>\"UD\"),ABS($X$22),0)","v":0},null,null,null,null,null,null,{"$f":"IF(AND($I$43=4,$G$43<>\"\",$Z$43<>\"UD\"),ABS($X$43),0)","v":0},null,null,null,null,null,{"$f":"IF(AND($AO$22=4,$AM$22<>\"\",$BE$22<>\"UD\"),ABS($BC$22),0)","v":0},null,null,null,null,null,{"$f":"IF(AND($AO$35=4,$AM$35<>\"\",$BE$35<>\"UD\"),ABS($BC$35),0)","v":0},null,null,null,null,null,null,null,null,{"$f":"IF(AND($I$22=4,$G$22<>\"\",$Z$22=\"UD\"),ABS($X$22),0)","v":0},null,null,null,null,null,{"$f":"IF(AND($I$42=4,$G$42<>\"\",$Z$42=\"UD\"),ABS($X$42),0)","v":0},null,null,null,null,{"$f":"IF(AND($AO$21=4,$AM$21<>\"\",$BE$21=\"UD\"),ABS($BC$21),0)","v":0},null,null,null,{"$f":"IF(AND($AO$35=4,$AM$35<>\"\",$BE$35=\"UD\"),ABS($BC$35),0)","v":0}]
[{"$f":"IF(AND($I$23=4,$G$23<>\"\",$Z$23<>\"UD\"),ABS($X$23),0)","v":0},null,null,null,null,null,null,{"$f":"IF(AND($I$44=4,$G$44<>\"\",$Z$44<>\"UD\"),ABS($X$44),0)","v":0},null,null,null,null,null,{"$f":"IF(AND($AO$23=4,$AM$23<>\"\",$BE$23<>\"UD\"),ABS($BC$23),0)","v":0},null,null,null,null,null,{"$f":"IF(AND($AO$36=4,$AM$36<>\"\",$BE$36<>\"UD\"),ABS($BC$36),0)","v":0},null,null,null,null,null,null,null,null,{"$f":"IF(AND($I$23=4,$G$23<>\"\",$Z$23=\"UD\"),ABS($X$23),0)","v":0},null,null,null,null,null,{"$f":"IF(AND($I$43=4,$G$43<>\"\",$Z$43=\"UD\"),ABS($X$43),0)","v":0},null,null,null,null,{"$f":"IF(AND($AO$22=4,$AM$22<>\"\",$BE$22=\"UD\"),ABS($BC$22),0)","v":0},null,null,null,{"$f":"IF(AND($AO$36=4,$AM$36<>\"\",$BE$36=\"UD\"),ABS($BC$36),0)","v":0}]
[{"$f":"IF(AND($I$24=4,$G$24<>\"\",$Z$24<>\"UD\"),ABS($X$24),0)","v":0},null,null,null,null,null,null,{"$f":"IF(AND($I$45=4,$G$45<>\"\",$Z$45<>\"UD\"),ABS($X$45),0)","v":0},null,null,null,null,null,{"$f":"IF(AND($AO$24=4,$AM$24<>\"\",$BE$24<>\"UD\"),ABS($BC$24),0)","v":0},null,null,null,null,null,{"$f":"IF(AND($AO$37=4,$AM$37<>\"\",$BE$37<>\"UD\"),ABS($BC$37),0)","v":0},null,null,null,null,null,null,null,null,{"$f":"IF(AND($I$24=4,$G$24<>\"\",$Z$24=\"UD\"),ABS($X$24),0)","v":0},null,null,null,null,null,{"$f":"IF(AND($I$44=4,$G$44<>\"\",$Z$44=\"UD\"),ABS($X$44),0)","v":0},null,null,null,null,{"$f":"IF(AND($AO$23=4,$AM$23<>\"\",$BE$23=\"UD\"),ABS($BC$23),0)","v":0},null,null,null,{"$f":"IF(AND($AO$37=4,$AM$37<>\"\",$BE$37=\"UD\"),ABS($BC$37),0)","v":0}]
[{"$f":"IF(AND($I$25=4,$G$25<>\"\",$Z$25<>\"UD\"),ABS($X$25),0)","v":0},null,null,null,null,null,null,{"$f":"IF(AND($I$46=4,$G$46<>\"\",$Z$46<>\"UD\"),ABS($X$46),0)","v":0},null,null,null,null,null,{"$f":"IF(AND($AO$25=4,$AM$25<>\"\",$BE$25<>\"UD\"),ABS($BC$25),0)","v":0},null,null,null,null,null,{"$f":"IF(AND($AO$38=4,$AM$38<>\"\",$BE$38<>\"UD\"),ABS($BC$38),0)","v":0},null,null,null,null,null,null,null,null,{"$f":"IF(AND($I$25=4,$G$25<>\"\",$Z$25=\"UD\"),ABS($X$25),0)","v":0},null,null,null,null,null,{"$f":"IF(AND($I$45=4,$G$45<>\"\",$Z$45=\"UD\"),ABS($X$45),0)","v":0},null,null,null,null,{"$f":"IF(AND($AO$24=4,$AM$24<>\"\",$BE$24=\"UD\"),ABS($BC$24),0)","v":0},null,null,null,{"$f":"IF(AND($AO$38=4,$AM$38<>\"\",$BE$38=\"UD\"),ABS($BC$38),0)","v":0}]
[{"$f":"IF(AND($I$26=4,$G$26<>\"\",$Z$26<>\"UD\"),ABS($X$26),0)","v":0},null,null,null,null,null,null,{"$f":"IF(AND($I$47=4,$G$47<>\"\",$Z$47<>\"UD\"),ABS($X$47),0)","v":0},null,null,null,null,null,{"$f":"SUM(N318:N328)","v":0},"sum",null,null,null,null,{"$f":"SUM(T319:T328)","v":0},"sum",null,null,null,null,null,null,null,{"$f":"IF(AND($I$26=4,$G$26<>\"\",$Z$26=\"UD\"),ABS($X$26),0)","v":0},null,null,null,null,null,{"$f":"IF(AND($I$46=4,$G$46<>\"\",$Z$46=\"UD\"),ABS($X$46),0)","v":0},null,null,null,null,{"$f":"IF(AND($AO$25=4,$AM$25<>\"\",$BE$25=\"UD\"),ABS($BC$25),0)","v":0},null,null,null,{"$f":"SUM(AR319:AR328)","v":0},"sum"]
[{"$f":"IF(AND($I$27=4,$G$27<>\"\",$Z$27<>\"UD\"),ABS($X$27),0)","v":0},null,null,null,null,null,null,{"$f":"SUM(H318:H329)","v":0},null,null,null,null,null,null,null,null,null,null,null,null,null,null,null,null,null,null,null,null,{"$f":"IF(AND($I$27=4,$G$27<>\"\",$Z$27=\"UD\"),ABS($X$27),0)","v":0},null,null,null,null,null,{"$f":"IF(AND($I$47=4,$G$47<>\"\",$Z$47=\"UD\"),ABS($X$47),0)","v":0},null,null,null,null,{"$f":"SUM(AN319:AN329)","v":0},"sum"]
[{"$f":"IF(AND($I$28=4,$G$28<>\"\",$Z$28<>\"UD\"),ABS($X$28),0)","v":0},null,null,null,null,null,null,null,"sum",null,null,null,null,null,null,null,null,null,null,null,null,null,null,null,null,null,null,null,{"$f":"IF(AND($I$28=4,$G$28<>\"\",$Z$28=\"UD\"),ABS($X$28),0)","v":0},null,null,null,null,null,{"$f":"SUM(AI319:AI330)","v":0},"sum"]
[{"$f":"IF(AND($I$29=4,$G$29<>\"\",$Z$29<>\"UD\"),ABS($X$29),0)","v":0},null,null,null,null,null,null,null,null,null,null,null,null,null,null,null,null,null,null,null,null,null,null,null,null,null,null,null,{"$f":"IF(AND($I$29=4,$G$29<>\"\",$Z$29=\"UD\"),ABS($X$29),0)","v":0}]
[{"$f":"IF(AND($I$30=4,$G$30<>\"\",$Z$30<>\"UD\"),ABS($X$30),0)","v":0},null,null,null,null,null,null,null,null,null,null,null,null,null,null,null,null,null,null,null,null,null,null,null,null,null,null,null,{"$f":"IF(AND($I$30=4,$G$30<>\"\",$Z$30=\"UD\"),ABS($X$30),0)","v":0}]
[{"$f":"IF(AND($I$31=4,$G$31<>\"\",$Z$31<>\"UD\"),ABS($X$31),0)","v":0},null,null,null,null,null,null,null,null,null,null,null,null,null,null,null,null,null,null,null,null,null,null,null,null,null,null,null,{"$f":"IF(AND($I$31=4,$G$31<>\"\",$Z$31=\"UD\"),ABS($X$31),0)","v":0}]
[{"$f":"IF(AND($I$14=4,$G$14<>\"\",$Z$14<>\"UD\"),ABS($X$14),0)","v":0},null,null,null,null,null,null,null,null,null,null,null,null,null,null,null,null,null,null,null,null,null,null,null,null,null,null,null,{"$f":"IF(AND($I$14=4,$G$14<>\"\",$Z$14=\"UD\"),ABS($X$14),0)","v":0}]
[{"$f":"IF(AND($I$15=4,$G$15<>\"\",$Z$15<>\"UD\"),ABS($X$15),0)","v":0},"sum",null,null,null,null,null,null,null,null,null,null,null,null,null,null,null,null,null,null,null,null,null,null,null,null,null,null,{"$f":"IF(AND($I$15=4,$G$15<>\"\",$Z$15=\"UD\"),ABS($X$15),0)","v":0}]
[{"$f":"SUM(A319:A336)","v":0},null,null,null,null,null,null,null,null,null,null,null,null,null,null,null,null,null,null,null,null,null,null,null,null,null,null,null,{"$f":"SUM(AC319:AC336)","v":0},"sum"]
[null,"School 4 Total"]
[{"$f":"A337+H330+N329+T329+Y319","v":0},null,null,null,null,null,null,null,null,null,null,null,null,null,null,null,null,null,null,null,null,null,null,null,null,null,null,null,{"$f":"AC337+AI331+AN330+AR329+AW319","v":0},"School 4 Total"]
[null,null,null,{"$f":"A337+AC337","v":0},null,null,"UD",{"$f":"AC339","v":0}]
["GEN ED",null,null,{"$f":"H330+AI331","v":0}]
["BMT",null,null,{"$f":"N329+AN330","v":0}]
["TECH",null,null,{"$f":"Y319+AW319","v":0}]
["SR PROJ",null,null,{"$f":"T329+AR329","v":0}]
["ELECTIVE","School 4 Total"]
[{"$f":"A339+AC339","v":0}]
[]
[]
[]
[]
["College 5"]
[]
["Semester/LD",null,null,null,null,null,null,null,null,null,null,null,null,null,null,null,null,null,null,null,null,null,null,null,null,null,null,null,"Semester/UD"]
[null,null,null,null,null,null,null,"BMT BUCKET",null,null,null,null,null,"TECH BUCKET"]
["GEN ED BUCKET",null,null,null,null,null,null,{"$f":"IF(AND($I$36=5,$G$36<>\"\",$Z$36<>\"UD\"),ABS($X$36),0)","v":0},null,null,null,null,null,{"$f":"IF(AND($AO$15=5,$AM$15<>\"\",$BE$15<>\"UD\"),ABS($BC$15),0)","v":0},null,null,null,null,null,"ELECTIVE BUCKET",null,null,null,null,"SR PROJ",null,null,null,"GEN ED BUCKET",null,null,null,null,null,"BMT BUCKET",null,null,null,null,"TECH BUCKET",null,null,null,"ELECTIVE BUCKET",null,null,null,null,"SR PROJ"]
[{"$f":"IF(AND($I$16=5,$G$16<>\"\",$Z$16<>\"UD\"),ABS($X$16),0)","v":0},null,null,null,null,null,null,{"$f":"IF(AND($I$37=5,$G$37<>\"\",$Z$37<>\"UD\"),ABS($X$37),0)","v":0},null,null,null,null,null,{"$f":"IF(AND($AO$16=5,$AM$16<>\"\",$BE$16<>\"UD\"),ABS($BC$16),0)","v":0},null,null,null,null,null,{"$f":"IF(AND($AO$29=5,$AM$29<>\"\",$BE$29<>\"UD\"),ABS($BC$29),0)","v":0},null,null,null,null,{"$f":"IF(AND($I$51=5,$G$51<>\"\",$Z$51<>\"UD\"),ABS($X$51),0)","v":0},null,null,null,{"$f":"IF(AND($I$16=5,$G$16<>\"\",$Z$16=\"UD\"),ABS($X$16),0)","v":0},null,null,null,null,null,{"$f":"IF(AND($I$36=5,$G$36<>\"\",$Z$36=\"UD\"),ABS($X$36),0)","v":0},null,null,null,null,{"$f":"IF(AND($AO$15=5,$AM$15<>\"\",$BE$15=\"UD\"),ABS($BC$15),0)","v":0},null,null,null,{"$f":"IF(AND($AO$29=5,$AM$29<>\"\",$BE$29=\"UD\"),ABS($BC$29),0)","v":0},null,null,null,null,{"$f":"IF(AND($I$51=5,$G$51<>\"\",$Z$51=\"UD\"),ABS($X$51),0)","v":0}]
[{"$f":"IF(AND($I$17=5,$G$17<>\"\",$Z$17<>\"UD\"),ABS($X$17),0)","v":0},null,null,null,null,null,null,{"$f":"IF(AND($I$38=5,$G$38<>\"\",$Z$38<>\"UD\"),ABS($X$38),0)","v":0},null,null,null,null,null,{"$f":"IF(AND($AO$17=5,$AM$17<>\"\",$BE$17<>\"UD\"),ABS($BC$17),0)","v":0},null,null,null,null,null,{"$f":"IF(AND($AO$30=5,$AM$30<>\"\",$BE$30<>\"UD\"),ABS($BC$30),0)","v":0},null,null,null,null,null,null,null,null,{"$f":"IF(AND($I$17=5,$G$17<>\"\",$Z$17=\"UD\"),ABS($X$17),0)","v":0},null,null,null,null,null,{"$f":"IF(AND($I$37=5,$G$37<>\"\",$Z$37=\"UD\"),ABS($X$37),0)","v":0},null,null,null,null,{"$f":"IF(AND($AO$16=5,$AM$16<>\"\",$BE$16=\"UD\"),ABS($BC$16),0)","v":0},null,null,null,{"$f":"IF(AND($AO$30=5,$AM$30<>\"\",$BE$30=\"UD\"),ABS($BC$30),0)","v":0}]
[{"$f":"IF(AND($I$18=5,$G$18<>\"\",$Z$18<>\"UD\"),ABS($X$18),0)","v":0},null,null,null,null,null,null,{"$f":"IF(AND($I$39=5,$G$39<>\"\",$Z$39<>\"UD\"),ABS($X$39),0)","v":0},null,null,null,null,null,{"$f":"IF(AND($AO$18=5,$AM$18<>\"\",$BE$18<>\"UD\"),ABS($BC$18),0)","v":0},null,null,null,null,null,{"$f":"IF(AND($AO$31=5,$AM$31<>\"\",$BE$31<>\"UD\"),ABS($BC$31),0)","v":0},null,null,null,null,null,null,null,null,{"$f":"IF(AND($I$18=5,$G$18<>\"\",$Z$18=\"UD\"),ABS($X$18),0)","v":0},null,null,null,null,null,{"$f":"IF(AND($I$38=5,$G$38<>\"\",$Z$38=\"UD\"),ABS($X$38),0)","v":0},null,null,null,null,{"$f":"IF(AND($AO$17=5,$AM$17<>\"\",$BE$17=\"UD\"),ABS($BC$17),0)","v":0},null,null,null,{"$f":"IF(AND($AO$31=5,$AM$31<>\"\",$BE$31=\"UD\"),ABS($BC$31),0)","v":0}]
[{"$f":"IF(AND($I$19=5,$G$19<>\"\",$Z$19<>\"UD\"),ABS($X$19),0)","v":0},null,null,null,null,null,null,{"$f":"IF(AND($I$40=5,$G$40<>\"\",$Z$40<>\"UD\"),ABS($X$40),0)","v":0},null,null,null,null,null,{"$f":"IF(AND($AO$19=5,$AM$19<>\"\",$BE$19<>\"UD\"),ABS($BC$19),0)","v":0},null,null,null,null,null,{"$f":"IF(AND($AO$32=5,$AM$32<>\"\",$BE$32<>\"UD\"),ABS($BC$32),0)","v":0},null,null,null,null,null,null,null,null,{"$f":"IF(AND($I$19=5,$G$19<>\"\",$Z$19=\"UD\"),ABS($X$19),0)","v":0},null,null,null,null,null,{"$f":"IF(AND($I$39=5,$G$39<>\"\",$Z$39=\"UD\"),ABS($X$39),0)","v":0},null,null,null,null,{"$f":"IF(AND($AO$18=5,$AM$18<>\"\",$BE$18=\"UD\"),ABS($BC$18),0)","v":0},null,null,null,{"$f":"IF(AND($AO$32=5,$AM$32<>\"\",$BE$32=\"UD\"),ABS($BC$32),0)","v":0}]
[{"$f":"IF(AND($I$20=5,$G$20<>\"\",$Z$20<>\"UD\"),ABS($X$20),0)","v":0},null,null,null,null,null,null,{"$f":"IF(AND($I$41=5,$G$41<>\"\",$Z$41<>\"UD\"),ABS($X$41),0)","v":0},null,null,null,null,null,{"$f":"IF(AND($AO$20=5,$AM$20<>\"\",$BE$20<>\"UD\"),ABS($BC$20),0)","v":0},null,null,null,null,null,{"$f":"IF(AND($AO$33=5,$AM$33<>\"\",$BE$33<>\"UD\"),ABS($BC$33),0)","v":0},null,null,null,null,null,null,null,null,{"$f":"IF(AND($I$20=5,$G$20<>\"\",$Z$20=\"UD\"),ABS($X$20),0)","v":0},null,null,null,null,null,{"$f":"IF(AND($I$40=5,$G$40<>\"\",$Z$40=\"UD\"),ABS($X$40),0)","v":0},null,null,null,null,{"$f":"IF(AND($AO$19=5,$AM$19<>\"\",$BE$19=\"UD\"),ABS($BC$19),0)","v":0},null,null,null,{"$f":"IF(AND($AO$33=5,$AM$33<>\"\",$BE$33=\"UD\"),ABS($BC$33),0)","v":0}]
[{"$f":"IF(AND($I$21=5,$G$21<>\"\",$Z$21<>\"UD\"),ABS($X$21),0)","v":0},null,null,null,null,null,null,{"$f":"IF(AND($I$42=5,$G$42<>\"\",$Z$42<>\"UD\"),ABS($X$42),0)","v":0},null,null,null,null,null,{"$f":"IF(AND($AO$21=5,$AM$21<>\"\",$BE$21<>\"UD\"),ABS($BC$21),0)","v":0},null,null,null,null,null,{"$f":"IF(AND($AO$34=5,$AM$34<>\"\",$BE$34<>\"UD\"),ABS($BC$34),0)","v":0},null,null,null,null,null,null,null,null,{"$f":"IF(AND($I$21=5,$G$21<>\"\",$Z$21=\"UD\"),ABS($X$21),0)","v":0},null,null,null,null,null,{"$f":"IF(AND($I$41=5,$G$41<>\"\",$Z$41=\"UD\"),ABS($X$41),0)","v":0},null,null,null,null,{"$f":"IF(AND($AO$20=5,$AM$20<>\"\",$BE$20=\"UD\"),ABS($BC$20),0)","v":0},null,null,null,{"$f":"IF(AND($AO$34=5,$AM$34<>\"\",$BE$34=\"UD\"),ABS($BC$34),0)","v":0}]
[{"$f":"IF(AND($I$22=5,$G$22<>\"\",$Z$22<>\"UD\"),ABS($X$22),0)","v":0},null,null,null,null,null,null,{"$f":"IF(AND($I$43=5,$G$43<>\"\",$Z$43<>\"UD\"),ABS($X$43),0)","v":0},null,null,null,null,null,{"$f":"IF(AND($AO$22=5,$AM$22<>\"\",$BE$22<>\"UD\"),ABS($BC$22),0)","v":0},null,null,null,null,null,{"$f":"IF(AND($AO$35=5,$AM$35<>\"\",$BE$35<>\"UD\"),ABS($BC$35),0)","v":0},null,null,null,null,null,null,null,null,{"$f":"IF(AND($I$22=5,$G$22<>\"\",$Z$22=\"UD\"),ABS($X$22),0)","v":0},null,null,null,null,null,{"$f":"IF(AND($I$42=5,$G$42<>\"\",$Z$42=\"UD\"),ABS($X$42),0)","v":0},null,null,null,null,{"$f":"IF(AND($AO$21=5,$AM$21<>\"\",$BE$21=\"UD\"),ABS($BC$21),0)","v":0},null,null,null,{"$f":"IF(AND($AO$35=5,$AM$35<>\"\",$BE$35=\"UD\"),ABS($BC$35),0)","v":0}]
[{"$f":"IF(AND($I$23=5,$G$23<>\"\",$Z$23<>\"UD\"),ABS($X$23),0)","v":0},null,null,null,null,null,null,{"$f":"IF(AND($I$44=5,$G$44<>\"\",$Z$44<>\"UD\"),ABS($X$44),0)","v":0},null,null,null,null,null,{"$f":"IF(AND($AO$23=5,$AM$23<>\"\",$BE$23<>\"UD\"),ABS($BC$23),0)","v":0},null,null,null,null,null,{"$f":"IF(AND($AO$36=5,$AM$36<>\"\",$BE$36<>\"UD\"),ABS($BC$36),0)","v":0},null,null,null,null,null,null,null,null,{"$f":"IF(AND($I$23=5,$G$23<>\"\",$Z$23=\"UD\"),ABS($X$23),0)","v":0},null,null,null,null,null,{"$f":"IF(AND($I$43=5,$G$43<>\"\",$Z$43=\"UD\"),ABS($X$43),0)","v":0},null,null,null,null,{"$f":"IF(AND($AO$22=5,$AM$22<>\"\",$BE$22=\"UD\"),ABS($BC$22),0)","v":0},null,null,null,{"$f":"IF(AND($AO$36=5,$AM$36<>\"\",$BE$36=\"UD\"),ABS($BC$36),0)","v":0}]
[{"$f":"IF(AND($I$24=5,$G$24<>\"\",$Z$24<>\"UD\"),ABS($X$24),0)","v":0},null,null,null,null,null,null,{"$f":"IF(AND($I$45=5,$G$45<>\"\",$Z$45<>\"UD\"),ABS($X$45),0)","v":0},null,null,null,null,null,{"$f":"IF(AND($AO$24=5,$AM$24<>\"\",$BE$24<>\"UD\"),ABS($BC$24),0)","v":0},null,null,null,null,null,{"$f":"IF(AND($AO$37=5,$AM$37<>\"\",$BE$37<>\"UD\"),ABS($BC$37),0)","v":0},null,null,null,null,null,null,null,null,{"$f":"IF(AND($I$24=5,$G$24<>\"\",$Z$24=\"UD\"),ABS($X$24),0)","v":0},null,null,null,null,null,{"$f":"IF(AND($I$44=5,$G$44<>\"\",$Z$44=\"UD\"),ABS($X$44),0)","v":0},null,null,null,null,{"$f":"IF(AND($AO$23=5,$AM$23<>\"\",$BE$23=\"UD\"),ABS($BC$23),0)","v":0},null,null,null,{"$f":"IF(AND($AO$37=5,$AM$37<>\"\",$BE$37=\"UD\"),ABS($BC$37),0)","v":0}]
[{"$f":"IF(AND($I$25=5,$G$25<>\"\",$Z$25<>\"UD\"),ABS($X$25),0)","v":0},null,null,null,null,null,null,{"$f":"IF(AND($I$46=5,$G$46<>\"\",$Z$46<>\"UD\"),ABS($X$46),0)","v":0},null,null,null,null,null,{"$f":"IF(AND($AO$25=5,$AM$25<>\"\",$BE$25<>\"UD\"),ABS($BC$25),0)","v":0},null,null,null,null,null,{"$f":"IF(AND($AO$38=5,$AM$38<>\"\",$BE$38<>\"UD\"),ABS($BC$38),0)","v":0},null,null,null,null,null,null,null,null,{"$f":"IF(AND($I$25=5,$G$25<>\"\",$Z$25=\"UD\"),ABS($X$25),0)","v":0},null,null,null,null,null,{"$f":"IF(AND($I$45=5,$G$45<>\"\",$Z$45=\"UD\"),ABS($X$45),0)","v":0},null,null,null,null,{"$f":"IF(AND($AO$24=5,$AM$24<>\"\",$BE$24=\"UD\"),ABS($BC$24),0)","v":0},null,null,null,{"$f":"IF(AND($AO$38=5,$AM$38<>\"\",$BE$38=\"UD\"),ABS($BC$38),0)","v":0}]
[{"$f":"IF(AND($I$26=5,$G$26<>\"\",$Z$26<>\"UD\"),ABS($X$26),0)","v":0},null,null,null,null,null,null,{"$f":"IF(AND($I$47=5,$G$47<>\"\",$Z$47<>\"UD\"),ABS($X$47),0)","v":0},null,null,null,null,null,{"$f":"SUM(N355:N365)","v":0},"sum",null,null,null,null,{"$f":"SUM(T356:T365)","v":0},"sum",null,null,null,null,null,null,null,{"$f":"IF(AND($I$26=5,$G$26<>\"\",$Z$26=\"UD\"),ABS($X$26),0)","v":0},null,null,null,null,null,{"$f":"IF(AND($I$46=5,$G$46<>\"\",$Z$46=\"UD\"),ABS($X$46),0)","v":0},null,null,null,null,{"$f":"IF(AND($AO$25=5,$AM$25<>\"\",$BE$25=\"UD\"),ABS($BC$25),0)","v":0},null,null,null,{"$f":"SUM(AR356:AR365)","v":0},"sum"]
[{"$f":"IF(AND($I$27=5,$G$27<>\"\",$Z$27<>\"UD\"),ABS($X$27),0)","v":0},null,null,null,null,null,null,{"$f":"SUM(H355:H366)","v":0},null,null,null,null,null,null,null,null,null,null,null,null,null,null,null,null,null,null,null,null,{"$f":"IF(AND($I$27=5,$G$27<>\"\",$Z$27=\"UD\"),ABS($X$27),0)","v":0},null,null,null,null,null,{"$f":"IF(AND($I$47=5,$G$47<>\"\",$Z$47=\"UD\"),ABS($X$47),0)","v":0},null,null,null,null,{"$f":"SUM(AN356:AN366)","v":0},"sum"]
[{"$f":"IF(AND($I$28=5,$G$28<>\"\",$Z$28<>\"UD\"),ABS($X$28),0)","v":0},null,null,null,null,null,null,null,"sum",null,null,null,null,null,null,null,null,null,null,null,null,null,null,null,null,null,null,null,{"$f":"IF(AND($I$28=5,$G$28<>\"\",$Z$28=\"UD\"),ABS($X$28),0)","v":0},null,null,null,null,null,{"$f":"SUM(AI356:AI367)","v":0},"sum"]
[{"$f":"IF(AND($I$29=5,$G$29<>\"\",$Z$29<>\"UD\"),ABS($X$29),0)","v":0},null,null,null,null,null,null,null,null,null,null,null,null,null,null,null,null,null,null,null,null,null,null,null,null,null,null,null,{"$f":"IF(AND($I$29=5,$G$29<>\"\",$Z$29=\"UD\"),ABS($X$29),0)","v":0}]
[{"$f":"IF(AND($I$30=5,$G$30<>\"\",$Z$30<>\"UD\"),ABS($X$30),0)","v":0},null,null,null,null,null,null,null,null,null,null,null,null,null,null,null,null,null,null,null,null,null,null,null,null,null,null,null,{"$f":"IF(AND($I$30=5,$G$30<>\"\",$Z$30=\"UD\"),ABS($X$30),0)","v":0}]
[{"$f":"IF(AND($I$31=5,$G$31<>\"\",$Z$31<>\"UD\"),ABS($X$31),0)","v":0},null,null,null,null,null,null,null,null,null,null,null,null,null,null,null,null,null,null,null,null,null,null,null,null,null,null,null,{"$f":"IF(AND($I$31=5,$G$31<>\"\",$Z$31=\"UD\"),ABS($X$31),0)","v":0}]
[{"$f":"IF(AND($I$14=5,$G$14<>\"\",$Z$14<>\"UD\"),ABS($X$14),0)","v":0},null,null,null,null,null,null,null,null,null,null,null,null,null,null,null,null,null,null,null,null,null,null,null,null,null,null,null,{"$f":"IF(AND($I$14=5,$G$14<>\"\",$Z$14=\"UD\"),ABS($X$14),0)","v":0}]
[{"$f":"IF(AND($I$15=5,$G$15<>\"\",$Z$15<>\"UD\"),ABS($X$15),0)","v":0},"sum",null,null,null,null,null,null,null,null,null,null,null,null,null,null,null,null,null,null,null,null,null,null,null,null,null,null,{"$f":"IF(AND($I$15=5,$G$15<>\"\",$Z$15=\"UD\"),ABS($X$15),0)","v":0}]
[{"$f":"SUM(A356:A373)","v":0},null,null,null,null,null,null,null,null,null,null,null,null,null,null,null,null,null,null,null,null,null,null,null,null,null,null,null,{"$f":"SUM(AC356:AC373)","v":0},"sum"]
[null,"School 5 Total"]
[{"$f":"A374+H367+N366+T366+Y356","v":0},null,null,null,null,null,null,null,null,null,null,null,null,null,null,null,null,null,null,null,null,null,null,null,null,null,null,null,{"$f":"AC374+AI368+AN367+AR366+AW356","v":0},"School 5 Total"]
[null,null,null,{"$f":"A374+AC374","v":0},null,null,"UD",{"$f":"AC376","v":0}]
["GEN ED",null,null,{"$f":"H367+AI368","v":0}]
["BMT",null,null,{"$f":"N366+AN367","v":0}]
["TECH",null,null,{"$f":"Y356+AW356","v":0}]
["SR PROJ",null,null,{"$f":"T366+AR366","v":0}]
["ELECTIVE","School 5 Total"]
[{"$f":"A376+AC376","v":0}]
[]
[]
[]
[]
["College 6"]
[]
["Semester/LD",null,null,null,null,null,null,null,null,null,null,null,null,null,null,null,null,null,null,null,null,null,null,null,null,null,null,null,"Semester/UD"]
[null,null,null,null,null,null,null,"BMT BUCKET",null,null,null,null,null,"TECH BUCKET"]
["GEN ED BUCKET",null,null,null,null,null,null,{"$f":"IF(AND($I$36=6,$G$36<>\"\",$Z$36<>\"UD\"),ABS($X$36),0)","v":0},null,null,null,null,null,{"$f":"IF(AND($AO$15=6,$AM$15<>\"\",$BE$15<>\"UD\"),ABS($BC$15),0)","v":0},null,null,null,null,null,"ELECTIVE BUCKET",null,null,null,null,"SR PROJ",null,null,null,"GEN ED BUCKET",null,null,null,null,null,"BMT BUCKET",null,null,null,null,"TECH BUCKET",null,null,null,"ELECTIVE BUCKET",null,null,null,null,"SR PROJ"]
[{"$f":"IF(AND($I$16=6,$G$16<>\"\",$Z$16<>\"UD\"),ABS($X$16),0)","v":0},null,null,null,null,null,null,{"$f":"IF(AND($I$37=6,$G$37<>\"\",$Z$37<>\"UD\"),ABS($X$37),0)","v":0},null,null,null,null,null,{"$f":"IF(AND($AO$16=6,$AM$16<>\"\",$BE$16<>\"UD\"),ABS($BC$16),0)","v":0},null,null,null,null,null,{"$f":"IF(AND($AO$29=6,$AM$29<>\"\",$BE$29<>\"UD\"),ABS($BC$29),0)","v":0},null,null,null,null,{"$f":"IF(AND($I$51=6,$G$51<>\"\",$Z$51<>\"UD\"),ABS($X$51),0)","v":0},null,null,null,{"$f":"IF(AND($I$16=6,$G$16<>\"\",$Z$16=\"UD\"),ABS($X$16),0)","v":0},null,null,null,null,null,{"$f":"IF(AND($I$36=6,$G$36<>\"\",$Z$36=\"UD\"),ABS($X$36),0)","v":0},null,null,null,null,{"$f":"IF(AND($AO$15=6,$AM$15<>\"\",$BE$15=\"UD\"),ABS($BC$15),0)","v":0},null,null,null,{"$f":"IF(AND($AO$29=6,$AM$29<>\"\",$BE$29=\"UD\"),ABS($BC$29),0)","v":0},null,null,null,null,{"$f":"IF(AND($I$51=6,$G$51<>\"\",$Z$51=\"UD\"),ABS($X$51),0)","v":0}]
[{"$f":"IF(AND($I$17=6,$G$17<>\"\",$Z$17<>\"UD\"),ABS($X$17),0)","v":0},null,null,null,null,null,null,{"$f":"IF(AND($I$38=6,$G$38<>\"\",$Z$38<>\"UD\"),ABS($X$38),0)","v":0},null,null,null,null,null,{"$f":"IF(AND($AO$17=6,$AM$17<>\"\",$BE$17<>\"UD\"),ABS($BC$17),0)","v":0},null,null,null,null,null,{"$f":"IF(AND($AO$30=6,$AM$30<>\"\",$BE$30<>\"UD\"),ABS($BC$30),0)","v":0},null,null,null,null,null,null,null,null,{"$f":"IF(AND($I$17=6,$G$17<>\"\",$Z$17=\"UD\"),ABS($X$17),0)","v":0},null,null,null,null,null,{"$f":"IF(AND($I$37=6,$G$37<>\"\",$Z$37=\"UD\"),ABS($X$37),0)","v":0},null,null,null,null,{"$f":"IF(AND($AO$16=6,$AM$16<>\"\",$BE$16=\"UD\"),ABS($BC$16),0)","v":0},null,null,null,{"$f":"IF(AND($AO$30=6,$AM$30<>\"\",$BE$30=\"UD\"),ABS($BC$30),0)","v":0}]
[{"$f":"IF(AND($I$18=6,$G$18<>\"\",$Z$18<>\"UD\"),ABS($X$18),0)","v":0},null,null,null,null,null,null,{"$f":"IF(AND($I$39=6,$G$39<>\"\",$Z$39<>\"UD\"),ABS($X$39),0)","v":0},null,null,null,null,null,{"$f":"IF(AND($AO$18=6,$AM$18<>\"\",$BE$18<>\"UD\"),ABS($BC$18),0)","v":0},null,null,null,null,null,{"$f":"IF(AND($AO$31=6,$AM$31<>\"\",$BE$31<>\"UD\"),ABS($BC$31),0)","v":0},null,null,null,null,null,null,null,null,{"$f":"IF(AND($I$18=6,$G$18<>\"\",$Z$18=\"UD\"),ABS($X$18),0)","v":0},null,null,null,null,null,{"$f":"IF(AND($I$38=6,$G$38<>\"\",$Z$38=\"UD\"),ABS($X$38),0)","v":0},null,null,null,null,{"$f":"IF(AND($AO$17=6,$AM$17<>\"\",$BE$17=\"UD\"),ABS($BC$17),0)","v":0},null,null,null,{"$f":"IF(AND($AO$31=6,$AM$31<>\"\",$BE$31=\"UD\"),ABS($BC$31),0)","v":0}]
[{"$f":"IF(AND($I$19=6,$G$19<>\"\",$Z$19<>\"UD\"),ABS($X$19),0)","v":0},null,null,null,null,null,null,{"$f":"IF(AND($I$40=6,$G$40<>\"\",$Z$40<>\"UD\"),ABS($X$40),0)","v":0},null,null,null,null,null,{"$f":"IF(AND($AO$19=6,$AM$19<>\"\",$BE$19<>\"UD\"),ABS($BC$19),0)","v":0},null,null,null,null,null,{"$f":"IF(AND($AO$32=6,$AM$32<>\"\",$BE$32<>\"UD\"),ABS($BC$32),0)","v":0},null,null,null,null,null,null,null,null,{"$f":"IF(AND($I$19=6,$G$19<>\"\",$Z$19=\"UD\"),ABS($X$19),0)","v":0},null,null,null,null,null,{"$f":"IF(AND($I$39=6,$G$39<>\"\",$Z$39=\"UD\"),ABS($X$39),0)","v":0},null,null,null,null,{"$f":"IF(AND($AO$18=6,$AM$18<>\"\",$BE$18=\"UD\"),ABS($BC$18),0)","v":0},null,null,null,{"$f":"IF(AND($AO$32=6,$AM$32<>\"\",$BE$32=\"UD\"),ABS($BC$32),0)","v":0}]
[{"$f":"IF(AND($I$20=6,$G$20<>\"\",$Z$20<>\"UD\"),ABS($X$20),0)","v":0},null,null,null,null,null,null,{"$f":"IF(AND($I$41=6,$G$41<>\"\",$Z$41<>\"UD\"),ABS($X$41),0)","v":0},null,null,null,null,null,{"$f":"IF(AND($AO$20=6,$AM$20<>\"\",$BE$20<>\"UD\"),ABS($BC$20),0)","v":0},null,null,null,null,null,{"$f":"IF(AND($AO$33=6,$AM$33<>\"\",$BE$33<>\"UD\"),ABS($BC$33),0)","v":0},null,null,null,null,null,null,null,null,{"$f":"IF(AND($I$20=6,$G$20<>\"\",$Z$20=\"UD\"),ABS($X$20),0)","v":0},null,null,null,null,null,{"$f":"IF(AND($I$40=6,$G$40<>\"\",$Z$40=\"UD\"),ABS($X$40),0)","v":0},null,null,null,null,{"$f":"IF(AND($AO$19=6,$AM$19<>\"\",$BE$19=\"UD\"),ABS($BC$19),0)","v":0},null,null,null,{"$f":"IF(AND($AO$33=6,$AM$33<>\"\",$BE$33=\"UD\"),ABS($BC$33),0)","v":0}]
[{"$f":"IF(AND($I$21=6,$G$21<>\"\",$Z$21<>\"UD\"),ABS($X$21),0)","v":0},null,null,null,null,null,null,{"$f":"IF(AND($I$42=6,$G$42<>\"\",$Z$42<>\"UD\"),ABS($X$42),0)","v":0},null,null,null,null,null,{"$f":"IF(AND($AO$21=6,$AM$21<>\"\",$BE$21<>\"UD\"),ABS($BC$21),0)","v":0},null,null,null,null,null,{"$f":"IF(AND($AO$34=6,$AM$34<>\"\",$BE$34<>\"UD\"),ABS($BC$34),0)","v":0},null,null,null,null,null,null,null,null,{"$f":"IF(AND($I$21=6,$G$21<>\"\",$Z$21=\"UD\"),ABS($X$21),0)","v":0},null,null,null,null,null,{"$f":"IF(AND($I$41=6,$G$41<>\"\",$Z$41=\"UD\"),ABS($X$41),0)","v":0},null,null,null,null,{"$f":"IF(AND($AO$20=6,$AM$20<>\"\",$BE$20=\"UD\"),ABS($BC$20),0)","v":0},null,null,null,{"$f":"IF(AND($AO$34=6,$AM$34<>\"\",$BE$34=\"UD\"),ABS($BC$34),0)","v":0}]
[{"$f":"IF(AND($I$22=6,$G$22<>\"\",$Z$22<>\"UD\"),ABS($X$22),0)","v":0},null,null,null,null,null,null,{"$f":"IF(AND($I$43=6,$G$43<>\"\",$Z$43<>\"UD\"),ABS($X$43),0)","v":0},null,null,null,null,null,{"$f":"IF(AND($AO$22=6,$AM$22<>\"\",$BE$22<>\"UD\"),ABS($BC$22),0)","v":0},null,null,null,null,null,{"$f":"IF(AND($AO$35=6,$AM$35<>\"\",$BE$35<>\"UD\"),ABS($BC$35),0)","v":0},null,null,null,null,null,null,null,null,{"$f":"IF(AND($I$22=6,$G$22<>\"\",$Z$22=\"UD\"),ABS($X$22),0)","v":0},null,null,null,null,null,{"$f":"IF(AND($I$42=6,$G$42<>\"\",$Z$42=\"UD\"),ABS($X$42),0)","v":0},null,null,null,null,{"$f":"IF(AND($AO$21=6,$AM$21<>\"\",$BE$21=\"UD\"),ABS($BC$21),0)","v":0},null,null,null,{"$f":"IF(AND($AO$35=6,$AM$35<>\"\",$BE$35=\"UD\"),ABS($BC$35),0)","v":0}]
[{"$f":"IF(AND($I$23=6,$G$23<>\"\",$Z$23<>\"UD\"),ABS($X$23),0)","v":0},null,null,null,null,null,null,{"$f":"IF(AND($I$44=6,$G$44<>\"\",$Z$44<>\"UD\"),ABS($X$44),0)","v":0},null,null,null,null,null,{"$f":"IF(AND($AO$23=6,$AM$23<>\"\",$BE$23<>\"UD\"),ABS($BC$23),0)","v":0},null,null,null,null,null,{"$f":"IF(AND($AO$36=6,$AM$36<>\"\",$BE$36<>\"UD\"),ABS($BC$36),0)","v":0},null,null,null,null,null,null,null,null,{"$f":"IF(AND($I$23=6,$G$23<>\"\",$Z$23=\"UD\"),ABS($X$23),0)","v":0},null,null,null,null,null,{"$f":"IF(AND($I$43=6,$G$43<>\"\",$Z$43=\"UD\"),ABS($X$43),0)","v":0},null,null,null,null,{"$f":"IF(AND($AO$22=6,$AM$22<>\"\",$BE$22=\"UD\"),ABS($BC$22),0)","v":0},null,null,null,{"$f":"IF(AND($AO$36=6,$AM$36<>\"\",$BE$36=\"UD\"),ABS($BC$36),0)","v":0}]
[{"$f":"IF(AND($I$24=6,$G$24<>\"\",$Z$24<>\"UD\"),ABS($X$24),0)","v":0},null,null,null,null,null,null,{"$f":"IF(AND($I$45=6,$G$45<>\"\",$Z$45<>\"UD\"),ABS($X$45),0)","v":0},null,null,null,null,null,{"$f":"IF(AND($AO$24=6,$AM$24<>\"\",$BE$24<>\"UD\"),ABS($BC$24),0)","v":0},null,null,null,null,null,{"$f":"IF(AND($AO$37=6,$AM$37<>\"\",$BE$37<>\"UD\"),ABS($BC$37),0)","v":0},null,null,null,null,null,null,null,null,{"$f":"IF(AND($I$24=6,$G$24<>\"\",$Z$24=\"UD\"),ABS($X$24),0)","v":0},null,null,null,null,null,{"$f":"IF(AND($I$44=6,$G$44<>\"\",$Z$44=\"UD\"),ABS($X$44),0)","v":0},null,null,null,null,{"$f":"IF(AND($AO$23=6,$AM$23<>\"\",$BE$23=\"UD\"),ABS($BC$23),0)","v":0},null,null,null,{"$f":"IF(AND($AO$37=6,$AM$37<>\"\",$BE$37=\"UD\"),ABS($BC$37),0)","v":0}]
[{"$f":"IF(AND($I$25=6,$G$25<>\"\",$Z$25<>\"UD\"),ABS($X$25),0)","v":0},null,null,null,null,null,null,{"$f":"IF(AND($I$46=6,$G$46<>\"\",$Z$46<>\"UD\"),ABS($X$46),0)","v":0},null,null,null,null,null,{"$f":"IF(AND($AO$25=6,$AM$25<>\"\",$BE$25<>\"UD\"),ABS($BC$25),0)","v":0},null,null,null,null,null,{"$f":"IF(AND($AO$38=6,$AM$38<>\"\",$BE$38<>\"UD\"),ABS($BC$38),0)","v":0},null,null,null,null,null,null,null,null,{"$f":"IF(AND($I$25=6,$G$25<>\"\",$Z$25=\"UD\"),ABS($X$25),0)","v":0},null,null,null,null,null,{"$f":"IF(AND($I$45=6,$G$45<>\"\",$Z$45=\"UD\"),ABS($X$45),0)","v":0},null,null,null,null,{"$f":"IF(AND($AO$24=6,$AM$24<>\"\",$BE$24=\"UD\"),ABS($BC$24),0)","v":0},null,null,null,{"$f":"IF(AND($AO$38=6,$AM$38<>\"\",$BE$38=\"UD\"),ABS($BC$38),0)","v":0}]
[{"$f":"IF(AND($I$26=6,$G$26<>\"\",$Z$26<>\"UD\"),ABS($X$26),0)","v":0},null,null,null,null,null,null,{"$f":"IF(AND($I$47=6,$G$47<>\"\",$Z$47<>\"UD\"),ABS($X$47),0)","v":0},null,null,null,null,null,{"$f":"SUM(N392:N402)","v":0},"sum",null,null,null,null,{"$f":"SUM(T393:T402)","v":0},"sum",null,null,null,null,null,null,null,{"$f":"IF(AND($I$26=6,$G$26<>\"\",$Z$26=\"UD\"),ABS($X$26),0)","v":0},null,null,null,null,null,{"$f":"IF(AND($I$46=6,$G$46<>\"\",$Z$46=\"UD\"),ABS($X$46),0)","v":0},null,null,null,null,{"$f":"IF(AND($AO$25=6,$AM$25<>\"\",$BE$25=\"UD\"),ABS($BC$25),0)","v":0},null,null,null,{"$f":"SUM(AR393:AR402)","v":0},"sum"]
[{"$f":"IF(AND($I$27=6,$G$27<>\"\",$Z$27<>\"UD\"),ABS($X$27),0)","v":0},null,null,null,null,null,null,{"$f":"SUM(H392:H403)","v":0},null,null,null,null,null,null,null,null,null,null,null,null,null,null,null,null,null,null,null,null,{"$f":"IF(AND($I$27=6,$G$27<>\"\",$Z$27=\"UD\"),ABS($X$27),0)","v":0},null,null,null,null,null,{"$f":"IF(AND($I$47=6,$G$47<>\"\",$Z$47=\"UD\"),ABS($X$47),0)","v":0},null,null,null,null,{"$f":"SUM(AN393:AN403)","v":0},"sum"]
[{"$f":"IF(AND($I$28=6,$G$28<>\"\",$Z$28<>\"UD\"),ABS($X$28),0)","v":0},null,null,null,null,null,null,null,"sum",null,null,null,null,null,null,null,null,null,null,null,null,null,null,null,null,null,null,null,{"$f":"IF(AND($I$28=6,$G$28<>\"\",$Z$28=\"UD\"),ABS($X$28),0)","v":0},null,null,null,null,null,{"$f":"SUM(AI393:AI404)","v":0},"sum"]
[{"$f":"IF(AND($I$29=6,$G$29<>\"\",$Z$29<>\"UD\"),ABS($X$29),0)","v":0},null,null,null,null,null,null,null,null,null,null,null,null,null,null,null,null,null,null,null,null,null,null,null,null,null,null,null,{"$f":"IF(AND($I$29=6,$G$29<>\"\",$Z$29=\"UD\"),ABS($X$29),0)","v":0}]
[{"$f":"IF(AND($I$30=6,$G$30<>\"\",$Z$30<>\"UD\"),ABS($X$30),0)","v":0},null,null,null,null,null,null,null,null,null,null,null,null,null,null,null,null,null,null,null,null,null,null,null,null,null,null,null,{"$f":"IF(AND($I$30=6,$G$30<>\"\",$Z$30=\"UD\"),ABS($X$30),0)","v":0}]
[{"$f":"IF(AND($I$31=6,$G$31<>\"\",$Z$31<>\"UD\"),ABS($X$31),0)","v":0},null,null,null,null,null,null,null,null,null,null,null,null,null,null,null,null,null,null,null,null,null,null,null,null,null,null,null,{"$f":"IF(AND($I$31=6,$G$31<>\"\",$Z$31=\"UD\"),ABS($X$31),0)","v":0}]
[{"$f":"IF(AND($I$14=6,$G$14<>\"\",$Z$14<>\"UD\"),ABS($X$14),0)","v":0},null,null,null,null,null,null,null,null,null,null,null,null,null,null,null,null,null,null,null,null,null,null,null,null,null,null,null,{"$f":"IF(AND($I$14=6,$G$14<>\"\",$Z$14=\"UD\"),ABS($X$14),0)","v":0}]
[{"$f":"IF(AND($I$15=6,$G$15<>\"\",$Z$15<>\"UD\"),ABS($X$15),0)","v":0},"sum",null,null,null,null,null,null,null,null,null,null,null,null,null,null,null,null,null,null,null,null,null,null,null,null,null,null,{"$f":"IF(AND($I$15=6,$G$15<>\"\",$Z$15=\"UD\"),ABS($X$15),0)","v":0}]
[{"$f":"SUM(A393:A410)","v":0},null,null,null,null,null,null,null,null,null,null,null,null,null,null,null,null,null,null,null,null,null,null,null,null,null,null,null,{"$f":"SUM(AC393:AC410)","v":0},"sum"]
[null,"School 6 Total"]
[{"$f":"A411+H404+N403+T403+Y393","v":0},null,null,null,null,null,null,null,null,null,null,null,null,null,null,null,null,null,null,null,null,null,null,null,null,null,null,null,{"$f":"AC411+AI405+AN404+AR403+AW393","v":0},"School 6 Total"]
[null,null,null,{"$f":"A411+AC411","v":0},null,null,"UD",{"$f":"AC413","v":0}]
["GEN ED",null,null,{"$f":"H404+AI405","v":0}]
["BMT",null,null,{"$f":"N403+AN404","v":0}]
["TECH",null,null,{"$f":"Y393+AW393","v":0}]
["SR PROJ",null,null,{"$f":"T403+AR403","v":0}]
["ELECTIVE","School 6 Total"]
[{"$f":"A413+AC413","v":0}]
[]
[]
[]
["College 7"]
[]
["Semester/LD"]
[null,null,null,null,null,null,null,"BMT BUCKET",null,null,null,null,null,"TECH BUCKET",null,null,null,null,null,null,null,null,null,null,null,null,null,null,"Semester/UD"]
["GEN ED BUCKET",null,null,null,null,null,null,{"$f":"IF(AND($I$36=7,$G$36<>\"\",$Z$36<>\"UD\"),ABS($X$36),0)","v":0},null,null,null,null,null,{"$f":"IF(AND($AO$15=7,$AM$15<>\"\",$BE$15<>\"UD\"),ABS($BC$15),0)","v":0},null,null,null,null,null,"ELECTIVE BUCKET",null,null,null,null,"SR PROJ"]
[{"$f":"IF(AND($I$16=7,$G$16<>\"\",$Z$16<>\"UD\"),ABS($X$16),0)","v":0},null,null,null,null,null,null,{"$f":"IF(AND($I$37=7,$G$37<>\"\",$Z$37<>\"UD\"),ABS($X$37),0)","v":0},null,null,null,null,null,{"$f":"IF(AND($AO$16=7,$AM$16<>\"\",$BE$16<>\"UD\"),ABS($BC$16),0)","v":0},null,null,null,null,null,{"$f":"IF(AND($AO$29=7,$AM$29<>\"\",$BE$29<>\"UD\"),ABS($BC$29),0)","v":0},null,null,null,null,{"$f":"IF(AND($I$51=7,$G$51<>\"\",$Z$51<>\"UD\"),ABS($X$51),0)","v":0},null,null,null,"GEN ED BUCKET",null,null,null,null,null,"BMT BUCKET",null,null,null,null,"TECH BUCKET",null,null,null,"ELECTIVE BUCKET",null,null,null,null,"SR PROJ"]
[{"$f":"IF(AND($I$17=7,$G$17<>\"\",$Z$17<>\"UD\"),ABS($X$17),0)","v":0},null,null,null,null,null,null,{"$f":"IF(AND($I$38=7,$G$38<>\"\",$Z$38<>\"UD\"),ABS($X$38),0)","v":0},null,null,null,null,null,{"$f":"IF(AND($AO$17=7,$AM$17<>\"\",$BE$17<>\"UD\"),ABS($BC$17),0)","v":0},null,null,null,null,null,{"$f":"IF(AND($AO$30=7,$AM$30<>\"\",$BE$30<>\"UD\"),ABS($BC$30),0)","v":0},null,null,null,null,null,null,null,null,{"$f":"IF(AND($I$16=7,$G$16<>\"\",$Z$16=\"UD\"),ABS($X$16),0)","v":0},null,null,null,null,null,{"$f":"IF(AND($I$36=7,$G$36<>\"\",$Z$36=\"UD\"),ABS($X$36),0)","v":0},null,null,null,null,{"$f":"IF(AND($AO$15=7,$AM$15<>\"\",$BE$15=\"UD\"),ABS($BC$15),0)","v":0},null,null,null,{"$f":"IF(AND($AO$29=7,$AM$29<>\"\",$BE$29=\"UD\"),ABS($BC$29),0)","v":0},null,null,null,null,{"$f":"IF(AND($I$51=7,$G$51<>\"\",$Z$51=\"UD\"),ABS($X$51),0)","v":0}]
[{"$f":"IF(AND($I$18=7,$G$18<>\"\",$Z$18<>\"UD\"),ABS($X$18),0)","v":0},null,null,null,null,null,null,{"$f":"IF(AND($I$39=7,$G$39<>\"\",$Z$39<>\"UD\"),ABS($X$39),0)","v":0},null,null,null,null,null,{"$f":"IF(AND($AO$18=7,$AM$18<>\"\",$BE$18<>\"UD\"),ABS($BC$18),0)","v":0},null,null,null,null,null,{"$f":"IF(AND($AO$31=7,$AM$31<>\"\",$BE$31<>\"UD\"),ABS($BC$31),0)","v":0},null,null,null,null,null,null,null,null,{"$f":"IF(AND($I$17=7,$G$17<>\"\",$Z$17=\"UD\"),ABS($X$17),0)","v":0},null,null,null,null,null,{"$f":"IF(AND($I$37=7,$G$37<>\"\",$Z$37=\"UD\"),ABS($X$37),0)","v":0},null,null,null,null,{"$f":"IF(AND($AO$16=7,$AM$16<>\"\",$BE$16=\"UD\"),ABS($BC$16),0)","v":0},null,null,null,{"$f":"IF(AND($AO$30=7,$AM$30<>\"\",$BE$30=\"UD\"),ABS($BC$30),0)","v":0}]
[{"$f":"IF(AND($I$19=7,$G$19<>\"\",$Z$19<>\"UD\"),ABS($X$19),0)","v":0},null,null,null,null,null,null,{"$f":"IF(AND($I$40=7,$G$40<>\"\",$Z$40<>\"UD\"),ABS($X$40),0)","v":0},null,null,null,null,null,{"$f":"IF(AND($AO$19=7,$AM$19<>\"\",$BE$19<>\"UD\"),ABS($BC$19),0)","v":0},null,null,null,null,null,{"$f":"IF(AND($AO$32=7,$AM$32<>\"\",$BE$32<>\"UD\"),ABS($BC$32),0)","v":0},null,null,null,null,null,null,null,null,{"$f":"IF(AND($I$18=7,$G$18<>\"\",$Z$18=\"UD\"),ABS($X$18),0)","v":0},null,null,null,null,null,{"$f":"IF(AND($I$38=7,$G$38<>\"\",$Z$38=\"UD\"),ABS($X$38),0)","v":0},null,null,null,null,{"$f":"IF(AND($AO$17=7,$AM$17<>\"\",$BE$17=\"UD\"),ABS($BC$17),0)","v":0},null,null,null,{"$f":"IF(AND($AO$31=7,$AM$31<>\"\",$BE$31=\"UD\"),ABS($BC$31),0)","v":0}]
[{"$f":"IF(AND($I$20=7,$G$20<>\"\",$Z$20<>\"UD\"),ABS($X$20),0)","v":0},null,null,null,null,null,null,{"$f":"IF(AND($I$41=7,$G$41<>\"\",$Z$41<>\"UD\"),ABS($X$41),0)","v":0},null,null,null,null,null,{"$f":"IF(AND($AO$20=7,$AM$20<>\"\",$BE$20<>\"UD\"),ABS($BC$20),0)","v":0},null,null,null,null,null,{"$f":"IF(AND($AO$33=7,$AM$33<>\"\",$BE$33<>\"UD\"),ABS($BC$33),0)","v":0},null,null,null,null,null,null,null,null,{"$f":"IF(AND($I$19=7,$G$19<>\"\",$Z$19=\"UD\"),ABS($X$19),0)","v":0},null,null,null,null,null,{"$f":"IF(AND($I$39=7,$G$39<>\"\",$Z$39=\"UD\"),ABS($X$39),0)","v":0},null,null,null,null,{"$f":"IF(AND($AO$18=7,$AM$18<>\"\",$BE$18=\"UD\"),ABS($BC$18),0)","v":0},null,null,null,{"$f":"IF(AND($AO$32=7,$AM$32<>\"\",$BE$32=\"UD\"),ABS($BC$32),0)","v":0}]
[{"$f":"IF(AND($I$21=7,$G$21<>\"\",$Z$21<>\"UD\"),ABS($X$21),0)","v":0},null,null,null,null,null,null,{"$f":"IF(AND($I$42=7,$G$42<>\"\",$Z$42<>\"UD\"),ABS($X$42),0)","v":0},null,null,null,null,null,{"$f":"IF(AND($AO$21=7,$AM$21<>\"\",$BE$21<>\"UD\"),ABS($BC$21),0)","v":0},null,null,null,null,null,{"$f":"IF(AND($AO$34=7,$AM$34<>\"\",$BE$34<>\"UD\"),ABS($BC$34),0)","v":0},null,null,null,null,null,null,null,null,{"$f":"IF(AND($I$20=7,$G$20<>\"\",$Z$20=\"UD\"),ABS($X$20),0)","v":0},null,null,null,null,null,{"$f":"IF(AND($I$40=7,$G$40<>\"\",$Z$40=\"UD\"),ABS($X$40),0)","v":0},null,null,null,null,{"$f":"IF(AND($AO$19=7,$AM$19<>\"\",$BE$19=\"UD\"),ABS($BC$19),0)","v":0},null,null,null,{"$f":"IF(AND($AO$33=7,$AM$33<>\"\",$BE$33=\"UD\"),ABS($BC$33),0)","v":0}]
[{"$f":"IF(AND($I$22=7,$G$22<>\"\",$Z$22<>\"UD\"),ABS($X$22),0)","v":0},null,null,null,null,null,null,{"$f":"IF(AND($I$43=7,$G$43<>\"\",$Z$43<>\"UD\"),ABS($X$43),0)","v":0},null,null,null,null,null,{"$f":"IF(AND($AO$22=7,$AM$22<>\"\",$BE$22<>\"UD\"),ABS($BC$22),0)","v":0},null,null,null,null,null,{"$f":"IF(AND($AO$35=7,$AM$35<>\"\",$BE$35<>\"UD\"),ABS($BC$35),0)","v":0},null,null,null,null,null,null,null,null,{"$f":"IF(AND($I$21=7,$G$21<>\"\",$Z$21=\"UD\"),ABS($X$21),0)","v":0},null,null,null,null,null,{"$f":"IF(AND($I$41=7,$G$41<>\"\",$Z$41=\"UD\"),ABS($X$41),0)","v":0},null,null,null,null,{"$f":"IF(AND($AO$20=7,$AM$20<>\"\",$BE$20=\"UD\"),ABS($BC$20),0)","v":0},null,null,null,{"$f":"IF(AND($AO$34=7,$AM$34<>\"\",$BE$34=\"UD\"),ABS($BC$34),0)","v":0}]
[{"$f":"IF(AND($I$23=7,$G$23<>\"\",$Z$23<>\"UD\"),ABS($X$23),0)","v":0},null,null,null,null,null,null,{"$f":"IF(AND($I$44=7,$G$44<>\"\",$Z$44<>\"UD\"),ABS($X$44),0)","v":0},null,null,null,null,null,{"$f":"IF(AND($AO$23=7,$AM$23<>\"\",$BE$23<>\"UD\"),ABS($BC$23),0)","v":0},null,null,null,null,null,{"$f":"IF(AND($AO$36=7,$AM$36<>\"\",$BE$36<>\"UD\"),ABS($BC$36),0)","v":0},null,null,null,null,null,null,null,null,{"$f":"IF(AND($I$22=7,$G$22<>\"\",$Z$22=\"UD\"),ABS($X$22),0)","v":0},null,null,null,null,null,{"$f":"IF(AND($I$42=7,$G$42<>\"\",$Z$42=\"UD\"),ABS($X$42),0)","v":0},null,null,null,null,{"$f":"IF(AND($AO$21=7,$AM$21<>\"\",$BE$21=\"UD\"),ABS($BC$21),0)","v":0},null,null,null,{"$f":"IF(AND($AO$35=7,$AM$35<>\"\",$BE$35=\"UD\"),ABS($BC$35),0)","v":0}]
[{"$f":"IF(AND($I$24=7,$G$24<>\"\",$Z$24<>\"UD\"),ABS($X$24),0)","v":0},null,null,null,null,null,null,{"$f":"IF(AND($I$45=7,$G$45<>\"\",$Z$45<>\"UD\"),ABS($X$45),0)","v":0},null,null,null,null,null,{"$f":"IF(AND($AO$24=7,$AM$24<>\"\",$BE$24<>\"UD\"),ABS($BC$24),0)","v":0},null,null,null,null,null,{"$f":"IF(AND($AO$37=7,$AM$37<>\"\",$BE$37<>\"UD\"),ABS($BC$37),0)","v":0},null,null,null,null,null,null,null,null,{"$f":"IF(AND($I$23=7,$G$23<>\"\",$Z$23=\"UD\"),ABS($X$23),0)","v":0},null,null,null,null,null,{"$f":"IF(AND($I$43=7,$G$43<>\"\",$Z$43=\"UD\"),ABS($X$43),0)","v":0},null,null,null,null,{"$f":"IF(AND($AO$22=7,$AM$22<>\"\",$BE$22=\"UD\"),ABS($BC$22),0)","v":0},null,null,null,{"$f":"IF(AND($AO$36=7,$AM$36<>\"\",$BE$36=\"UD\"),ABS($BC$36),0)","v":0}]
[{"$f":"IF(AND($I$25=7,$G$25<>\"\",$Z$25<>\"UD\"),ABS($X$25),0)","v":0},null,null,null,null,null,null,{"$f":"IF(AND($I$46=7,$G$46<>\"\",$Z$46<>\"UD\"),ABS($X$46),0)","v":0},null,null,null,null,null,{"$f":"IF(AND($AO$25=7,$AM$25<>\"\",$BE$25<>\"UD\"),ABS($BC$25),0)","v":0},null,null,null,null,null,{"$f":"IF(AND($AO$38=7,$AM$38<>\"\",$BE$38<>\"UD\"),ABS($BC$38),0)","v":0},null,null,null,null,null,null,null,null,{"$f":"IF(AND($I$24=7,$G$24<>\"\",$Z$24=\"UD\"),ABS($X$24),0)","v":0},null,null,null,null,null,{"$f":"IF(AND($I$44=7,$G$44<>\"\",$Z$44=\"UD\"),ABS($X$44),0)","v":0},null,null,null,null,{"$f":"IF(AND($AO$23=7,$AM$23<>\"\",$BE$23=\"UD\"),ABS($BC$23),0)","v":0},null,null,null,{"$f":"IF(AND($AO$37=7,$AM$37<>\"\",$BE$37=\"UD\"),ABS($BC$37),0)","v":0}]
[{"$f":"IF(AND($I$26=7,$G$26<>\"\",$Z$26<>\"UD\"),ABS($X$26),0)","v":0},null,null,null,null,null,null,{"$f":"IF(AND($I$47=7,$G$47<>\"\",$Z$47<>\"UD\"),ABS($X$47),0)","v":0},null,null,null,null,null,{"$f":"SUM(N428:N438)","v":0},"sum",null,null,null,null,{"$f":"SUM(T429:T438)","v":0},"sum",null,null,null,null,null,null,null,{"$f":"IF(AND($I$25=7,$G$25<>\"\",$Z$25=\"UD\"),ABS($X$25),0)","v":0},null,null,null,null,null,{"$f":"IF(AND($I$45=7,$G$45<>\"\",$Z$45=\"UD\"),ABS($X$45),0)","v":0},null,null,null,null,{"$f":"IF(AND($AO$24=7,$AM$24<>\"\",$BE$24=\"UD\"),ABS($BC$24),0)","v":0},null,null,null,{"$f":"IF(AND($AO$38=7,$AM$38<>\"\",$BE$38=\"UD\"),ABS($BC$38),0)","v":0}]
[{"$f":"IF(AND($I$27=7,$G$27<>\"\",$Z$27<>\"UD\"),ABS($X$27),0)","v":0},null,null,null,null,null,null,{"$f":"SUM(H428:H439)","v":0},null,null,null,null,null,null,null,null,null,null,null,null,null,null,null,null,null,null,null,null,{"$f":"IF(AND($I$26=7,$G$26<>\"\",$Z$26=\"UD\"),ABS($X$26),0)","v":0},null,null,null,null,null,{"$f":"IF(AND($I$46=7,$G$46<>\"\",$Z$46=\"UD\"),ABS($X$46),0)","v":0},null,null,null,null,{"$f":"IF(AND($AO$25=7,$AM$25<>\"\",$BE$25=\"UD\"),ABS($BC$25),0)","v":0},null,null,null,{"$f":"SUM(AR430:AR439)","v":0},"sum"]
[{"$f":"IF(AND($I$28=7,$G$28<>\"\",$Z$28<>\"UD\"),ABS($X$28),0)","v":0},null,null,null,null,null,null,null,"sum",null,null,null,null,null,null,null,null,null,null,null,null,null,null,null,null,null,null,null,{"$f":"IF(AND($I$27=7,$G$27<>\"\",$Z$27=\"UD\"),ABS($X$27),0)","v":0},null,null,null,null,null,{"$f":"IF(AND($I$47=7,$G$47<>\"\",$Z$47=\"UD\"),ABS($X$47),0)","v":0},null,null,null,null,{"$f":"SUM(AN430:AN440)","v":0},"sum"]
[{"$f":"IF(AND($I$29=7,$G$29<>\"\",$Z$29<>\"UD\"),ABS($X$29),0)","v":0},null,null,null,null,null,null,null,null,null,null,null,null,null,null,null,null,null,null,null,null,null,null,null,null,null,null,null,{"$f":"IF(AND($I$28=7,$G$28<>\"\",$Z$28=\"UD\"),ABS($X$28),0)","v":0},null,null,null,null,null,{"$f":"SUM(AI429:AI441)","v":0},"sum"]
[{"$f":"IF(AND($I$30=7,$G$30<>\"\",$Z$30<>\"UD\"),ABS($X$30),0)","v":0},null,null,null,null,null,null,null,null,null,null,null,null,null,null,null,null,null,null,null,null,null,null,null,null,null,null,null,{"$f":"IF(AND($I$29=7,$G$29<>\"\",$Z$29=\"UD\"),ABS($X$29),0)","v":0}]
[{"$f":"IF(AND($I$31=7,$G$31<>\"\",$Z$31<>\"UD\"),ABS($X$31),0)","v":0},null,null,null,null,null,null,null,null,null,null,null,null,null,null,null,null,null,null,null,null,null,null,null,null,null,null,null,{"$f":"IF(AND($I$30=7,$G$30<>\"\",$Z$30=\"UD\"),ABS($X$30),0)","v":0}]
[{"$f":"IF(AND($I$14=7,$G$14<>\"\",$Z$14<>\"UD\"),ABS($X$14),0)","v":0},null,null,null,null,null,null,null,null,null,null,null,null,null,null,null,null,null,null,null,null,null,null,null,null,null,null,null,{"$f":"IF(AND($I$31=7,$G$31<>\"\",$Z$31=\"UD\"),ABS($X$31),0)","v":0}]
[{"$f":"IF(AND($I$15=7,$G$15<>\"\",$Z$15<>\"UD\"),ABS($X$15),0)","v":0},"sum",null,null,null,null,null,null,null,null,null,null,null,null,null,null,null,null,null,null,null,null,null,null,null,null,null,null,{"$f":"IF(AND($I$14=7,$G$14<>\"\",$Z$14=\"UD\"),ABS($X$14),0)","v":0}]
[{"$f":"SUM(A429:A446)","v":0},null,null,null,null,null,null,null,null,null,null,null,null,null,null,null,null,null,null,null,null,null,null,null,null,null,null,null,{"$f":"IF(AND($I$15=7,$G$15<>\"\",$Z$15=\"UD\"),ABS($X$15),0)","v":0}]
[null,"School 7 Total",null,null,null,null,null,null,null,null,null,null,null,null,null,null,null,null,null,null,null,null,null,null,null,null,null,null,{"$f":"SUM(AC430:AC447)","v":0},"sum"]
[{"$f":"A447+H440+N439+T439+Y429","v":0},null,null,null,null,null,null,null,null,null,null,null,null,null,null,null,null,null,null,null,null,null,null,null,null,null,null,null,{"$f":"AC448+AI442+AN441+AR440+AW430","v":0},"School 7 Total"]
[null,null,null,{"$f":"A447+AC448","v":0},null,null,"UD",{"$f":"AC449","v":0}]
["GEN ED",null,null,{"$f":"H440+AI442","v":0}]
["BMT",null,null,{"$f":"N439+AN441","v":0}]
["TECH",null,null,{"$f":"Y429+AW430","v":0}]
["SR PROJ",null,null,{"$f":"T439+AR440","v":0}]
["ELECTIVE","School 7 Total"]
[{"$f":"A449+AC449","v":0}]
[]
[]
[]
[]
["College 8"]
[]
["Semester/LD",null,null,null,null,null,null,null,null,null,null,null,null,null,null,null,null,null,null,null,null,null,null,null,null,null,null,null,"Semester/UD"]
[null,null,null,null,null,null,null,"BMT BUCKET",null,null,null,null,null,"TECH BUCKET"]
["GEN ED BUCKET",null,null,null,null,null,null,{"$f":"IF(AND($I$36=8,$G$36<>\"\",$Z$36<>\"UD\"),ABS($X$36),0)","v":0},null,null,null,null,null,{"$f":"IF(AND($AO$15=8,$AM$15<>\"\",$BE$15<>\"UD\"),ABS($BC$15),0)","v":0},null,null,null,null,null,"ELECTIVE BUCKET",null,null,null,null,"SR PROJ",null,null,null,"GEN ED BUCKET",null,null,null,null,null,"BMT BUCKET",null,null,null,null,"TECH BUCKET",null,null,null,"ELECTIVE BUCKET",null,null,null,null,"SR PROJ"]
[{"$f":"IF(AND($I$16=8,$G$16<>\"\",$Z$16<>\"UD\"),ABS($X$16),0)","v":0},null,null,null,null,null,null,{"$f":"IF(AND($I$37=8,$G$37<>\"\",$Z$37<>\"UD\"),ABS($X$37),0)","v":0},null,null,null,null,null,{"$f":"IF(AND($AO$16=8,$AM$16<>\"\",$BE$16<>\"UD\"),ABS($BC$16),0)","v":0},null,null,null,null,null,{"$f":"IF(AND($AO$29=8,$AM$29<>\"\",$BE$29<>\"UD\"),ABS($BC$29),0)","v":0},null,null,null,null,{"$f":"IF(AND($I$51=8,$G$51<>\"\",$Z$51<>\"UD\"),ABS($X$51),0)","v":0},null,null,null,{"$f":"IF(AND($I$16=8,$G$16<>\"\",$Z$16=\"UD\"),ABS($X$16),0)","v":0},null,null,null,null,null,{"$f":"IF(AND($I$36=8,$G$36<>\"\",$Z$36=\"UD\"),ABS($X$36),0)","v":0},null,null,null,null,{"$f":"IF(AND($AO$15=8,$AM$15<>\"\",$BE$15=\"UD\"),ABS($BC$15),0)","v":0},null,null,null,{"$f":"IF(AND($AO$29=8,$AM$29<>\"\",$BE$29=\"UD\"),ABS($BC$29),0)","v":0},null,null,null,null,{"$f":"IF(AND($I$51=8,$G$51<>\"\",$Z$51=\"UD\"),ABS($X$51),0)","v":0}]
[{"$f":"IF(AND($I$17=8,$G$17<>\"\",$Z$17<>\"UD\"),ABS($X$17),0)","v":0},null,null,null,null,null,null,{"$f":"IF(AND($I$38=8,$G$38<>\"\",$Z$38<>\"UD\"),ABS($X$38),0)","v":0},null,null,null,null,null,{"$f":"IF(AND($AO$17=8,$AM$17<>\"\",$BE$17<>\"UD\"),ABS($BC$17),0)","v":0},null,null,null,null,null,{"$f":"IF(AND($AO$30=8,$AM$30<>\"\",$BE$30<>\"UD\"),ABS($BC$30),0)","v":0},null,null,null,null,null,null,null,null,{"$f":"IF(AND($I$17=8,$G$17<>\"\",$Z$17=\"UD\"),ABS($X$17),0)","v":0},null,null,null,null,null,{"$f":"IF(AND($I$37=8,$G$37<>\"\",$Z$37=\"UD\"),ABS($X$37),0)","v":0},null,null,null,null,{"$f":"IF(AND($AO$16=8,$AM$16<>\"\",$BE$16=\"UD\"),ABS($BC$16),0)","v":0},null,null,null,{"$f":"IF(AND($AO$30=8,$AM$30<>\"\",$BE$30=\"UD\"),ABS($BC$30),0)","v":0}]
[{"$f":"IF(AND($I$18=8,$G$18<>\"\",$Z$18<>\"UD\"),ABS($X$18),0)","v":0},null,null,null,null,null,null,{"$f":"IF(AND($I$39=8,$G$39<>\"\",$Z$39<>\"UD\"),ABS($X$39),0)","v":0},null,null,null,null,null,{"$f":"IF(AND($AO$18=8,$AM$18<>\"\",$BE$18<>\"UD\"),ABS($BC$18),0)","v":0},null,null,null,null,null,{"$f":"IF(AND($AO$31=8,$AM$31<>\"\",$BE$31<>\"UD\"),ABS($BC$31),0)","v":0},null,null,null,null,null,null,null,null,{"$f":"IF(AND($I$18=8,$G$18<>\"\",$Z$18=\"UD\"),ABS($X$18),0)","v":0},null,null,null,null,null,{"$f":"IF(AND($I$38=8,$G$38<>\"\",$Z$38=\"UD\"),ABS($X$38),0)","v":0},null,null,null,null,{"$f":"IF(AND($AO$17=8,$AM$17<>\"\",$BE$17=\"UD\"),ABS($BC$17),0)","v":0},null,null,null,{"$f":"IF(AND($AO$31=8,$AM$31<>\"\",$BE$31=\"UD\"),ABS($BC$31),0)","v":0}]
[{"$f":"IF(AND($I$19=8,$G$19<>\"\",$Z$19<>\"UD\"),ABS($X$19),0)","v":0},null,null,null,null,null,null,{"$f":"IF(AND($I$40=8,$G$40<>\"\",$Z$40<>\"UD\"),ABS($X$40),0)","v":0},null,null,null,null,null,{"$f":"IF(AND($AO$19=8,$AM$19<>\"\",$BE$19<>\"UD\"),ABS($BC$19),0)","v":0},null,null,null,null,null,{"$f":"IF(AND($AO$32=8,$AM$32<>\"\",$BE$32<>\"UD\"),ABS($BC$32),0)","v":0},null,null,null,null,null,null,null,null,{"$f":"IF(AND($I$19=8,$G$19<>\"\",$Z$19=\"UD\"),ABS($X$19),0)","v":0},null,null,null,null,null,{"$f":"IF(AND($I$39=8,$G$39<>\"\",$Z$39=\"UD\"),ABS($X$39),0)","v":0},null,null,null,null,{"$f":"IF(AND($AO$18=8,$AM$18<>\"\",$BE$18=\"UD\"),ABS($BC$18),0)","v":0},null,null,null,{"$f":"IF(AND($AO$32=8,$AM$32<>\"\",$BE$32=\"UD\"),ABS($BC$32),0)","v":0}]
[{"$f":"IF(AND($I$20=8,$G$20<>\"\",$Z$20<>\"UD\"),ABS($X$20),0)","v":0},null,null,null,null,null,null,{"$f":"IF(AND($I$41=8,$G$41<>\"\",$Z$41<>\"UD\"),ABS($X$41),0)","v":0},null,null,null,null,null,{"$f":"IF(AND($AO$20=8,$AM$20<>\"\",$BE$20<>\"UD\"),ABS($BC$20),0)","v":0},null,null,null,null,null,{"$f":"IF(AND($AO$33=8,$AM$33<>\"\",$BE$33<>\"UD\"),ABS($BC$33),0)","v":0},null,null,null,null,null,null,null,null,{"$f":"IF(AND($I$20=8,$G$20<>\"\",$Z$20=\"UD\"),ABS($X$20),0)","v":0},null,null,null,null,null,{"$f":"IF(AND($I$40=8,$G$40<>\"\",$Z$40=\"UD\"),ABS($X$40),0)","v":0},null,null,null,null,{"$f":"IF(AND($AO$19=8,$AM$19<>\"\",$BE$19=\"UD\"),ABS($BC$19),0)","v":0},null,null,null,{"$f":"IF(AND($AO$33=8,$AM$33<>\"\",$BE$33=\"UD\"),ABS($BC$33),0)","v":0}]
[{"$f":"IF(AND($I$21=8,$G$21<>\"\",$Z$21<>\"UD\"),ABS($X$21),0)","v":0},null,null,null,null,null,null,{"$f":"IF(AND($I$42=8,$G$42<>\"\",$Z$42<>\"UD\"),ABS($X$42),0)","v":0},null,null,null,null,null,{"$f":"IF(AND($AO$21=8,$AM$21<>\"\",$BE$21<>\"UD\"),ABS($BC$21),0)","v":0},null,null,null,null,null,{"$f":"IF(AND($AO$34=8,$AM$34<>\"\",$BE$34<>\"UD\"),ABS($BC$34),0)","v":0},null,null,null,null,null,null,null,null,{"$f":"IF(AND($I$21=8,$G$21<>\"\",$Z$21=\"UD\"),ABS($X$21),0)","v":0},null,null,null,null,null,{"$f":"IF(AND($I$41=8,$G$41<>\"\",$Z$41=\"UD\"),ABS($X$41),0)","v":0},null,null,null,null,{"$f":"IF(AND($AO$20=8,$AM$20<>\"\",$BE$20=\"UD\"),ABS($BC$20),0)","v":0},null,null,null,{"$f":"IF(AND($AO$34=8,$AM$34<>\"\",$BE$34=\"UD\"),ABS($BC$34),0)","v":0}]
[{"$f":"IF(AND($I$22=8,$G$22<>\"\",$Z$22<>\"UD\"),ABS($X$22),0)","v":0},null,null,null,null,null,null,{"$f":"IF(AND($I$43=8,$G$43<>\"\",$Z$43<>\"UD\"),ABS($X$43),0)","v":0},null,null,null,null,null,{"$f":"IF(AND($AO$22=8,$AM$22<>\"\",$BE$22<>\"UD\"),ABS($BC$22),0)","v":0},null,null,null,null,null,{"$f":"IF(AND($AO$35=8,$AM$35<>\"\",$BE$35<>\"UD\"),ABS($BC$35),0)","v":0},null,null,null,null,null,null,null,null,{"$f":"IF(AND($I$22=8,$G$22<>\"\",$Z$22=\"UD\"),ABS($X$22),0)","v":0},null,null,null,null,null,{"$f":"IF(AND($I$42=8,$G$42<>\"\",$Z$42=\"UD\"),ABS($X$42),0)","v":0},null,null,null,null,{"$f":"IF(AND($AO$21=8,$AM$21<>\"\",$BE$21=\"UD\"),ABS($BC$21),0)","v":0},null,null,null,{"$f":"IF(AND($AO$35=8,$AM$35<>\"\",$BE$35=\"UD\"),ABS($BC$35),0)","v":0}]
[{"$f":"IF(AND($I$23=8,$G$23<>\"\",$Z$23<>\"UD\"),ABS($X$23),0)","v":0},null,null,null,null,null,null,{"$f":"IF(AND($I$44=8,$G$44<>\"\",$Z$44<>\"UD\"),ABS($X$44),0)","v":0},null,null,null,null,null,{"$f":"IF(AND($AO$23=8,$AM$23<>\"\",$BE$23<>\"UD\"),ABS($BC$23),0)","v":0},null,null,null,null,null,{"$f":"IF(AND($AO$36=8,$AM$36<>\"\",$BE$36<>\"UD\"),ABS($BC$36),0)","v":0},null,null,null,null,null,null,null,null,{"$f":"IF(AND($I$23=8,$G$23<>\"\",$Z$23=\"UD\"),ABS($X$23),0)","v":0},null,null,null,null,null,{"$f":"IF(AND($I$43=8,$G$43<>\"\",$Z$43=\"UD\"),ABS($X$43),0)","v":0},null,null,null,null,{"$f":"IF(AND($AO$22=8,$AM$22<>\"\",$BE$22=\"UD\"),ABS($BC$22),0)","v":0},null,null,null,{"$f":"IF(AND($AO$36=8,$AM$36<>\"\",$BE$36=\"UD\"),ABS($BC$36),0)","v":0}]
[{"$f":"IF(AND($I$24=8,$G$24<>\"\",$Z$24<>\"UD\"),ABS($X$24),0)","v":0},null,null,null,null,null,null,{"$f":"IF(AND($I$45=8,$G$45<>\"\",$Z$45<>\"UD\"),ABS($X$45),0)","v":0},null,null,null,null,null,{"$f":"IF(AND($AO$24=8,$AM$24<>\"\",$BE$24<>\"UD\"),ABS($BC$24),0)","v":0},null,null,null,null,null,{"$f":"IF(AND($AO$37=8,$AM$37<>\"\",$BE$37<>\"UD\"),ABS($BC$37),0)","v":0},null,null,null,null,null,null,null,null,{"$f":"IF(AND($I$24=8,$G$24<>\"\",$Z$24=\"UD\"),ABS($X$24),0)","v":0},null,null,null,null,null,{"$f":"IF(AND($I$44=8,$G$44<>\"\",$Z$44=\"UD\"),ABS($X$44),0)","v":0},null,null,null,null,{"$f":"IF(AND($AO$23=8,$AM$23<>\"\",$BE$23=\"UD\"),ABS($BC$23),0)","v":0},null,null,null,{"$f":"IF(AND($AO$37=8,$AM$37<>\"\",$BE$37=\"UD\"),ABS($BC$37),0)","v":0}]
[{"$f":"IF(AND($I$25=8,$G$25<>\"\",$Z$25<>\"UD\"),ABS($X$25),0)","v":0},null,null,null,null,null,null,{"$f":"IF(AND($I$46=8,$G$46<>\"\",$Z$46<>\"UD\"),ABS($X$46),0)","v":0},null,null,null,null,null,{"$f":"IF(AND($AO$25=8,$AM$25<>\"\",$BE$25<>\"UD\"),ABS($BC$25),0)","v":0},null,null,null,null,null,{"$f":"IF(AND($AO$38=8,$AM$38<>\"\",$BE$38<>\"UD\"),ABS($BC$38),0)","v":0},null,null,null,null,null,null,null,null,{"$f":"IF(AND($I$25=8,$G$25<>\"\",$Z$25=\"UD\"),ABS($X$25),0)","v":0},null,null,null,null,null,{"$f":"IF(AND($I$45=8,$G$45<>\"\",$Z$45=\"UD\"),ABS($X$45),0)","v":0},null,null,null,null,{"$f":"IF(AND($AO$24=8,$AM$24<>\"\",$BE$24=\"UD\"),ABS($BC$24),0)","v":0},null,null,null,{"$f":"IF(AND($AO$38=8,$AM$38<>\"\",$BE$38=\"UD\"),ABS($BC$38),0)","v":0}]
[{"$f":"IF(AND($I$26=8,$G$26<>\"\",$Z$26<>\"UD\"),ABS($X$26),0)","v":0},null,null,null,null,null,null,{"$f":"IF(AND($I$47=8,$G$47<>\"\",$Z$47<>\"UD\"),ABS($X$47),0)","v":0},null,null,null,null,null,{"$f":"ROUNDDOWN(SUM(N465:N475),0)","v":0},"sum",null,null,null,null,{"$f":"SUM(T466:T475)","v":0},"sum",null,null,null,null,null,null,null,{"$f":"IF(AND($I$26=8,$G$26<>\"\",$Z$26=\"UD\"),ABS($X$26),0)","v":0},null,null,null,null,null,{"$f":"IF(AND($I$46=8,$G$46<>\"\",$Z$46=\"UD\"),ABS($X$46),0)","v":0},null,null,null,null,{"$f":"IF(AND($AO$25=8,$AM$25<>\"\",$BE$25=\"UD\"),ABS($BC$25),0)","v":0},null,null,null,{"$f":"SUM(AR466:AR475)","v":0},"sum"]
[{"$f":"IF(AND($I$27=8,$G$27<>\"\",$Z$27<>\"UD\"),ABS($X$27),0)","v":0},null,null,null,null,null,null,{"$f":"SUM(H465:H476)","v":0},null,null,null,null,null,null,null,null,null,null,null,null,null,null,null,null,null,null,null,null,{"$f":"IF(AND($I$27=8,$G$27<>\"\",$Z$27=\"UD\"),ABS($X$27),0)","v":0},null,null,null,null,null,{"$f":"IF(AND($I$47=8,$G$47<>\"\",$Z$47=\"UD\"),ABS($X$47),0)","v":0},null,null,null,null,{"$f":"SUM(AN466:AN476)","v":0},"sum"]
[{"$f":"IF(AND($I$28=8,$G$28<>\"\",$Z$28<>\"UD\"),ABS($X$28),0)","v":0},null,null,null,null,null,null,null,"sum",null,null,null,null,null,null,null,null,null,null,null,null,null,null,null,null,null,null,null,{"$f":"IF(AND($I$28=8,$G$28<>\"\",$Z$28=\"UD\"),ABS($X$28),0)","v":0},null,null,null,null,null,{"$f":"SUM(AI466:AI477)","v":0},"sum"]
[{"$f":"IF(AND($I$29=8,$G$29<>\"\",$Z$29<>\"UD\"),ABS($X$29),0)","v":0},null,null,null,null,null,null,null,null,null,null,null,null,null,null,null,null,null,null,null,null,null,null,null,null,null,null,null,{"$f":"IF(AND($I$29=8,$G$29<>\"\",$Z$29=\"UD\"),ABS($X$29),0)","v":0}]
[{"$f":"IF(AND($I$30=8,$G$30<>\"\",$Z$30<>\"UD\"),ABS($X$30),0)","v":0},null,null,null,null,null,null,null,null,null,null,null,null,null,null,null,null,null,null,null,null,null,null,null,null,null,null,null,{"$f":"IF(AND($I$30=8,$G$30<>\"\",$Z$30=\"UD\"),ABS($X$30),0)","v":0}]
[{"$f":"IF(AND($I$31=8,$G$31<>\"\",$Z$31<>\"UD\"),ABS($X$31),0)","v":0},null,null,null,null,null,null,null,null,null,null,null,null,null,null,null,null,null,null,null,null,null,null,null,null,null,null,null,{"$f":"IF(AND($I$31=8,$G$31<>\"\",$Z$31=\"UD\"),ABS($X$31),0)","v":0}]
[{"$f":"IF(AND($I$14=8,$G$14<>\"\",$Z$14<>\"UD\"),ABS($X$14),0)","v":0},null,null,null,null,null,null,null,null,null,null,null,null,null,null,null,null,null,null,null,null,null,null,null,null,null,null,null,{"$f":"IF(AND($I$14=8,$G$14<>\"\",$Z$14=\"UD\"),ABS($X$14),0)","v":0}]
[{"$f":"IF(AND($I$15=8,$G$15<>\"\",$Z$15<>\"UD\"),ABS($X$15),0)","v":0},"sum",null,null,null,null,null,null,null,null,null,null,null,null,null,null,null,null,null,null,null,null,null,null,null,null,null,null,{"$f":"IF(AND($I$15=8,$G$15<>\"\",$Z$15=\"UD\"),ABS($X$15),0)","v":0}]
[{"$f":"SUM(A466:A483)","v":0},"School 8 Total",null,null,null,null,null,null,null,null,null,null,null,null,null,null,null,null,null,null,null,null,null,null,null,null,null,null,{"$f":"SUM(AC466:AC483)","v":0},"sum"]
[{"$f":"A484+H477+N476+T476+Y466","v":0},null,null,null,null,null,null,null,null,null,null,null,null,null,null,null,null,null,null,null,null,null,null,null,null,null,null,null,{"$f":"AC484+AI478+AN477+AR476+AW466","v":0},"School 8 Total"]
[null,null,null,{"$f":"A484+AC484","v":0},null,null,"UD",{"$f":"AC485","v":0}]
["GEN ED",null,null,{"$f":"H477+AI478","v":0}]
["BMT",null,null,{"$f":"N476+AN477","v":0}]
["TECH",null,null,{"$f":"Y466+AW466","v":0}]
["ELECTIVE",null,null,{"$f":"T476+AR476","v":0}]
["ELECTIVE","School 8 Total"]
[{"$f":"A485+AC485","v":0}]
[]
[]
[]
[]
["College 9"]
[]
["Semester/LD",null,null,null,null,null,null,null,null,null,null,null,null,null,null,null,null,null,null,null,null,null,null,null,null,null,null,null,"Semester/UD"]
[null,null,null,null,null,null,null,"BMT BUCKET",null,null,null,null,null,"TECH BUCKET"]
["GEN ED BUCKET",null,null,null,null,null,null,{"$f":"IF(AND($I$36=9,$G$36<>\"\",$Z$36<>\"UD\"),ABS($X$36),0)","v":0},null,null,null,null,null,{"$f":"IF(AND($AO$15=9,$AM$15<>\"\",$BE$15<>\"UD\"),ABS($BC$15),0)","v":0},null,null,null,null,null,"ELECTIVE BUCKET",null,null,null,null,"SR PROJ",null,null,null,"GEN ED BUCKET",null,null,null,null,null,"BMT BUCKET",null,null,null,null,"TECH BUCKET",null,null,null,"ELECTIVE BUCKET",null,null,null,null,"SR PROJ"]
[{"$f":"IF(AND($I$16=9,$G$16<>\"\",$Z$16<>\"UD\"),ABS($X$16),0)","v":0},null,null,null,null,null,null,{"$f":"IF(AND($I$37=9,$G$37<>\"\",$Z$37<>\"UD\"),ABS($X$37),0)","v":0},null,null,null,null,null,{"$f":"IF(AND($AO$16=9,$AM$16<>\"\",$BE$16<>\"UD\"),ABS($BC$16),0)","v":0},null,null,null,null,null,{"$f":"IF(AND($AO$29=9,$AM$29<>\"\",$BE$29<>\"UD\"),ABS($BC$29),0)","v":0},null,null,null,null,{"$f":"IF(AND($I$51=9,$G$51<>\"\",$Z$51<>\"UD\"),ABS($X$51),0)","v":0},null,null,null,{"$f":"IF(AND($I$16=9,$G$16<>\"\",$Z$16=\"UD\"),ABS($X$16),0)","v":0},null,null,null,null,null,{"$f":"IF(AND($I$36=9,$G$36<>\"\",$Z$36=\"UD\"),ABS($X$36),0)","v":0},null,null,null,null,{"$f":"IF(AND($AO$15=9,$AM$15<>\"\",$BE$15=\"UD\"),ABS($BC$15),0)","v":0},null,null,null,{"$f":"IF(AND($AO$29=9,$AM$29<>\"\",$BE$29=\"UD\"),ABS($BC$29),0)","v":0},null,null,null,null,{"$f":"IF(AND($I$51=9,$G$51<>\"\",$Z$51=\"UD\"),ABS($X$51),0)","v":0}]
[{"$f":"IF(AND($I$17=9,$G$17<>\"\",$Z$17<>\"UD\"),ABS($X$17),0)","v":0},null,null,null,null,null,null,{"$f":"IF(AND($I$38=9,$G$38<>\"\",$Z$38<>\"UD\"),ABS($X$38),0)","v":0},null,null,null,null,null,{"$f":"IF(AND($AO$17=9,$AM$17<>\"\",$BE$17<>\"UD\"),ABS($BC$17),0)","v":0},null,null,null,null,null,{"$f":"IF(AND($AO$30=9,$AM$30<>\"\",$BE$30<>\"UD\"),ABS($BC$30),0)","v":0},null,null,null,null,null,null,null,null,{"$f":"IF(AND($I$17=9,$G$17<>\"\",$Z$17=\"UD\"),ABS($X$17),0)","v":0},null,null,null,null,null,{"$f":"IF(AND($I$37=9,$G$37<>\"\",$Z$37=\"UD\"),ABS($X$37),0)","v":0},null,null,null,null,{"$f":"IF(AND($AO$16=9,$AM$16<>\"\",$BE$16=\"UD\"),ABS($BC$16),0)","v":0},null,null,null,{"$f":"IF(AND($AO$30=9,$AM$30<>\"\",$BE$30=\"UD\"),ABS($BC$30),0)","v":0}]
[{"$f":"IF(AND($I$18=9,$G$18<>\"\",$Z$18<>\"UD\"),ABS($X$18),0)","v":0},null,null,null,null,null,null,{"$f":"IF(AND($I$39=9,$G$39<>\"\",$Z$39<>\"UD\"),ABS($X$39),0)","v":0},null,null,null,null,null,{"$f":"IF(AND($AO$18=9,$AM$18<>\"\",$BE$18<>\"UD\"),ABS($BC$18),0)","v":0},null,null,null,null,null,{"$f":"IF(AND($AO$31=9,$AM$31<>\"\",$BE$31<>\"UD\"),ABS($BC$31),0)","v":0},null,null,null,null,null,null,null,null,{"$f":"IF(AND($I$18=9,$G$18<>\"\",$Z$18=\"UD\"),ABS($X$18),0)","v":0},null,null,null,null,null,{"$f":"IF(AND($I$38=9,$G$38<>\"\",$Z$38=\"UD\"),ABS($X$38),0)","v":0},null,null,null,null,{"$f":"IF(AND($AO$17=9,$AM$17<>\"\",$BE$17=\"UD\"),ABS($BC$17),0)","v":0},null,null,null,{"$f":"IF(AND($AO$31=9,$AM$31<>\"\",$BE$31=\"UD\"),ABS($BC$31),0)","v":0}]
[{"$f":"IF(AND($I$19=9,$G$19<>\"\",$Z$19<>\"UD\"),ABS($X$19),0)","v":0},null,null,null,null,null,null,{"$f":"IF(AND($I$40=9,$G$40<>\"\",$Z$40<>\"UD\"),ABS($X$40),0)","v":0},null,null,null,null,null,{"$f":"IF(AND($AO$19=9,$AM$19<>\"\",$BE$19<>\"UD\"),ABS($BC$19),0)","v":0},null,null,null,null,null,{"$f":"IF(AND($AO$32=9,$AM$32<>\"\",$BE$32<>\"UD\"),ABS($BC$32),0)","v":0},null,null,null,null,null,null,null,null,{"$f":"IF(AND($I$19=9,$G$19<>\"\",$Z$19=\"UD\"),ABS($X$19),0)","v":0},null,null,null,null,null,{"$f":"IF(AND($I$39=9,$G$39<>\"\",$Z$39=\"UD\"),ABS($X$39),0)","v":0},null,null,null,null,{"$f":"IF(AND($AO$18=9,$AM$18<>\"\",$BE$18=\"UD\"),ABS($BC$18),0)","v":0},null,null,null,{"$f":"IF(AND($AO$32=9,$AM$32<>\"\",$BE$32=\"UD\"),ABS($BC$32),0)","v":0}]
[{"$f":"IF(AND($I$20=9,$G$20<>\"\",$Z$20<>\"UD\"),ABS($X$20),0)","v":0},null,null,null,null,null,null,{"$f":"IF(AND($I$41=9,$G$41<>\"\",$Z$41<>\"UD\"),ABS($X$41),0)","v":0},null,null,null,null,null,{"$f":"IF(AND($AO$20=9,$AM$20<>\"\",$BE$20<>\"UD\"),ABS($BC$20),0)","v":0},null,null,null,null,null,{"$f":"IF(AND($AO$33=9,$AM$33<>\"\",$BE$33<>\"UD\"),ABS($BC$33),0)","v":0},null,null,null,null,null,null,null,null,{"$f":"IF(AND($I$20=9,$G$20<>\"\",$Z$20=\"UD\"),ABS($X$20),0)","v":0},null,null,null,null,null,{"$f":"IF(AND($I$40=9,$G$40<>\"\",$Z$40=\"UD\"),ABS($X$40),0)","v":0},null,null,null,null,{"$f":"IF(AND($AO$19=9,$AM$19<>\"\",$BE$19=\"UD\"),ABS($BC$19),0)","v":0},null,null,null,{"$f":"IF(AND($AO$33=9,$AM$33<>\"\",$BE$33=\"UD\"),ABS($BC$33),0)","v":0}]
[{"$f":"IF(AND($I$21=9,$G$21<>\"\",$Z$21<>\"UD\"),ABS($X$21),0)","v":0},null,null,null,null,null,null,{"$f":"IF(AND($I$42=9,$G$42<>\"\",$Z$42<>\"UD\"),ABS($X$42),0)","v":0},null,null,null,null,null,{"$f":"IF(AND($AO$21=9,$AM$21<>\"\",$BE$21<>\"UD\"),ABS($BC$21),0)","v":0},null,null,null,null,null,{"$f":"IF(AND($AO$34=9,$AM$34<>\"\",$BE$34<>\"UD\"),ABS($BC$34),0)","v":0},null,null,null,null,null,null,null,null,{"$f":"IF(AND($I$21=9,$G$21<>\"\",$Z$21=\"UD\"),ABS($X$21),0)","v":0},null,null,null,null,null,{"$f":"IF(AND($I$41=9,$G$41<>\"\",$Z$41=\"UD\"),ABS($X$41),0)","v":0},null,null,null,null,{"$f":"IF(AND($AO$20=9,$AM$20<>\"\",$BE$20=\"UD\"),ABS($BC$20),0)","v":0},null,null,null,{"$f":"IF(AND($AO$34=9,$AM$34<>\"\",$BE$34=\"UD\"),ABS($BC$34),0)","v":0}]
[{"$f":"IF(AND($I$22=9,$G$22<>\"\",$Z$22<>\"UD\"),ABS($X$22),0)","v":0},null,null,null,null,null,null,{"$f":"IF(AND($I$43=9,$G$43<>\"\",$Z$43<>\"UD\"),ABS($X$43),0)","v":0},null,null,null,null,null,{"$f":"IF(AND($AO$22=9,$AM$22<>\"\",$BE$22<>\"UD\"),ABS($BC$22),0)","v":0},null,null,null,null,null,{"$f":"IF(AND($AO$35=9,$AM$35<>\"\",$BE$35<>\"UD\"),ABS($BC$35),0)","v":0},null,null,null,null,null,null,null,null,{"$f":"IF(AND($I$22=9,$G$22<>\"\",$Z$22=\"UD\"),ABS($X$22),0)","v":0},null,null,null,null,null,{"$f":"IF(AND($I$42=9,$G$42<>\"\",$Z$42=\"UD\"),ABS($X$42),0)","v":0},null,null,null,null,{"$f":"IF(AND($AO$21=9,$AM$21<>\"\",$BE$21=\"UD\"),ABS($BC$21),0)","v":0},null,null,null,{"$f":"IF(AND($AO$35=9,$AM$35<>\"\",$BE$35=\"UD\"),ABS($BC$35),0)","v":0}]
[{"$f":"IF(AND($I$23=9,$G$23<>\"\",$Z$23<>\"UD\"),ABS($X$23),0)","v":0},null,null,null,null,null,null,{"$f":"IF(AND($I$44=9,$G$44<>\"\",$Z$44<>\"UD\"),ABS($X$44),0)","v":0},null,null,null,null,null,{"$f":"IF(AND($AO$23=9,$AM$23<>\"\",$BE$23<>\"UD\"),ABS($BC$23),0)","v":0},null,null,null,null,null,{"$f":"IF(AND($AO$36=9,$AM$36<>\"\",$BE$36<>\"UD\"),ABS($BC$36),0)","v":0},null,null,null,null,null,null,null,null,{"$f":"IF(AND($I$23=9,$G$23<>\"\",$Z$23=\"UD\"),ABS($X$23),0)","v":0},null,null,null,null,null,{"$f":"IF(AND($I$43=9,$G$43<>\"\",$Z$43=\"UD\"),ABS($X$43),0)","v":0},null,null,null,null,{"$f":"IF(AND($AO$22=9,$AM$22<>\"\",$BE$22=\"UD\"),ABS($BC$22),0)","v":0},null,null,null,{"$f":"IF(AND($AO$36=9,$AM$36<>\"\",$BE$36=\"UD\"),ABS($BC$36),0)","v":0}]
[{"$f":"IF(AND($I$24=9,$G$24<>\"\",$Z$24<>\"UD\"),ABS($X$24),0)","v":0},null,null,null,null,null,null,{"$f":"IF(AND($I$45=9,$G$45<>\"\",$Z$45<>\"UD\"),ABS($X$45),0)","v":0},null,null,null,null,null,{"$f":"IF(AND($AO$24=9,$AM$24<>\"\",$BE$24<>\"UD\"),ABS($BC$24),0)","v":0},null,null,null,null,null,{"$f":"IF(AND($AO$37=9,$AM$37<>\"\",$BE$37<>\"UD\"),ABS($BC$37),0)","v":0},null,null,null,null,null,null,null,null,{"$f":"IF(AND($I$24=9,$G$24<>\"\",$Z$24=\"UD\"),ABS($X$24),0)","v":0},null,null,null,null,null,{"$f":"IF(AND($I$44=9,$G$44<>\"\",$Z$44=\"UD\"),ABS($X$44),0)","v":0},null,null,null,null,{"$f":"IF(AND($AO$23=9,$AM$23<>\"\",$BE$23=\"UD\"),ABS($BC$23),0)","v":0},null,null,null,{"$f":"IF(AND($AO$37=9,$AM$37<>\"\",$BE$37=\"UD\"),ABS($BC$37),0)","v":0}]
[{"$f":"IF(AND($I$25=9,$G$25<>\"\",$Z$25<>\"UD\"),ABS($X$25),0)","v":0},null,null,null,null,null,null,{"$f":"IF(AND($I$46=9,$G$46<>\"\",$Z$46<>\"UD\"),ABS($X$46),0)","v":0},null,null,null,null,null,{"$f":"IF(AND($AO$25=9,$AM$25<>\"\",$BE$25<>\"UD\"),ABS($BC$25),0)","v":0},null,null,null,null,null,{"$f":"IF(AND($AO$38=9,$AM$38<>\"\",$BE$38<>\"UD\"),ABS($BC$38),0)","v":0},null,null,null,null,null,null,null,null,{"$f":"IF(AND($I$25=9,$G$25<>\"\",$Z$25=\"UD\"),ABS($X$25),0)","v":0},null,null,null,null,null,{"$f":"IF(AND($I$45=9,$G$45<>\"\",$Z$45=\"UD\"),ABS($X$45),0)","v":0},null,null,null,null,{"$f":"IF(AND($AO$24=9,$AM$24<>\"\",$BE$24=\"UD\"),ABS($BC$24),0)","v":0},null,null,null,{"$f":"IF(AND($AO$38=9,$AM$38<>\"\",$BE$38=\"UD\"),ABS($BC$38),0)","v":0}]
[{"$f":"IF(AND($I$26=9,$G$26<>\"\",$Z$26<>\"UD\"),ABS($X$26),0)","v":0},null,null,null,null,null,null,{"$f":"IF(AND($I$47=9,$G$47<>\"\",$Z$47<>\"UD\"),ABS($X$47),0)","v":0},null,null,null,null,null,{"$f":"SUM(N501:N511)","v":0},"sum",null,null,null,null,{"$f":"SUM(T502:T511)","v":0},"sum",null,null,null,null,null,null,null,{"$f":"IF(AND($I$26=9,$G$26<>\"\",$Z$26=\"UD\"),ABS($X$26),0)","v":0},null,null,null,null,null,{"$f":"IF(AND($I$46=9,$G$46<>\"\",$Z$46=\"UD\"),ABS($X$46),0)","v":0},null,null,null,null,{"$f":"IF(AND($AO$25=9,$AM$25<>\"\",$BE$25=\"UD\"),ABS($BC$25),0)","v":0},null,null,null,{"$f":"SUM(AR502:AR511)","v":0},"sum"]
[{"$f":"IF(AND($I$27=9,$G$27<>\"\",$Z$27<>\"UD\"),ABS($X$27),0)","v":0},null,null,null,null,null,null,{"$f":"SUM(H501:H512)","v":0},null,null,null,null,null,null,null,null,null,null,null,null,null,null,null,null,null,null,null,null,{"$f":"IF(AND($I$27=9,$G$27<>\"\",$Z$27=\"UD\"),ABS($X$27),0)","v":0},null,null,null,null,null,{"$f":"IF(AND($I$47=9,$G$47<>\"\",$Z$47=\"UD\"),ABS($X$47),0)","v":0},null,null,null,null,{"$f":"SUM(AN502:AN512)","v":0},"sum"]
[{"$f":"IF(AND($I$28=9,$G$28<>\"\",$Z$28<>\"UD\"),ABS($X$28),0)","v":0},null,null,null,null,null,null,null,"sum",null,null,null,null,null,null,null,null,null,null,null,null,null,null,null,null,null,null,null,{"$f":"IF(AND($I$28=9,$G$28<>\"\",$Z$28=\"UD\"),ABS($X$28),0)","v":0},null,null,null,null,null,{"$f":"SUM(AI502:AI513)","v":0},"sum"]
[{"$f":"IF(AND($I$29=9,$G$29<>\"\",$Z$29<>\"UD\"),ABS($X$29),0)","v":0},null,null,null,null,null,null,null,null,null,null,null,null,null,null,null,null,null,null,null,null,null,null,null,null,null,null,null,{"$f":"IF(AND($I$29=9,$G$29<>\"\",$Z$29=\"UD\"),ABS($X$29),0)","v":0}]
[{"$f":"IF(AND($I$30=9,$G$30<>\"\",$Z$30<>\"UD\"),ABS($X$30),0)","v":0},null,null,null,null,null,null,null,null,null,null,null,null,null,null,null,null,null,null,null,null,null,null,null,null,null,null,null,{"$f":"IF(AND($I$30=9,$G$30<>\"\",$Z$30=\"UD\"),ABS($X$30),0)","v":0}]
[{"$f":"IF(AND($I$31=9,$G$31<>\"\",$Z$31<>\"UD\"),ABS($X$31),0)","v":0},null,null,null,null,null,null,null,null,null,null,null,null,null,null,null,null,null,null,null,null,null,null,null,null,null,null,null,{"$f":"IF(AND($I$31=9,$G$31<>\"\",$Z$31=\"UD\"),ABS($X$31),0)","v":0}]
[{"$f":"IF(AND($I$14=9,$G$14<>\"\",$Z$14<>\"UD\"),ABS($X$14),0)","v":0},null,null,null,null,null,null,null,null,null,null,null,null,null,null,null,null,null,null,null,null,null,null,null,null,null,null,null,{"$f":"IF(AND($I$14=9,$G$14<>\"\",$Z$14=\"UD\"),ABS($X$14),0)","v":0}]
[{"$f":"IF(AND($I$15=9,$G$15<>\"\",$Z$15<>\"UD\"),ABS($X$15),0)","v":0},"sum",null,null,null,null,null,null,null,null,null,null,null,null,null,null,null,null,null,null,null,null,null,null,null,null,null,null,{"$f":"IF(AND($I$15=9,$G$15<>\"\",$Z$15=\"UD\"),ABS($X$15),0)","v":0}]
[{"$f":"SUM(A502:A519)","v":0},"School 9 Total",null,null,null,null,null,null,null,null,null,null,null,null,null,null,null,null,null,null,null,null,null,null,null,null,null,null,{"$f":"SUM(AC502:AC519)","v":0},"sum"]
[{"$f":"A520+H513+N512+T512+Y502","v":0},null,null,null,null,null,null,null,null,null,null,null,null,null,null,null,null,null,null,null,null,null,null,null,null,null,null,null,{"$f":"AC520+AI514+AN513+AR512+AW502","v":0},"School 9 Total"]
[null,null,null,{"$f":"A520+AC520","v":0},null,null,"UD",{"$f":"AC521","v":0}]
["GEN ED",null,null,{"$f":"H513+AI514","v":0}]
["BMT",null,null,{"$f":"N512+AN513","v":0}]
["TECH",null,null,{"$f":"Y502+AW502","v":0}]
["SR PROJ",null,null,{"$f":"T512+AR512","v":0}]
["ELECTIVE","School 9 Total"]
[{"$f":"A521+AC521","v":0}]
[]
[]
[]
[null,null,null,null,null,null,null,null,null,null,null,null,null,null,"CC"]
[null,null,null,null,null,"ACCT212",null,null,null,"CC",null,null,null,null,"ACCT 1TR",null,null,null,"CC",null,null,null,"CC",null,null,null,"ACCT212",null,null,null,null,"ENGL206",null,null,null,null,null,null,"ACCT212",null,null,null,"CC",null,null,null,null,"ETHC232",null,null,null,"CC",null,null,null,"ECON312"]
["ACCT212",null,null,null,null,"ACCT303",null,null,null,"BIOS 1TR",null,null,null,null,"ACCT 2TR",null,null,null,"ACCT 1TR",null,null,null,"BIOS 1TR",null,null,null,"ACCT304",null,null,null,null,"ENGL216",null,null,null,null,null,null,"ACCT216",null,null,null,"ETHC 1TR",null,null,null,null,"ETHC445",null,null,null,"ECON 1TR",null,null,null,"ECON315"]
["ACCT216",null,null,null,null,"ACCT306",null,null,null,"BIOS 2TR",null,null,null,null,"ACCT 3TR",null,null,null,"ACCT 2TR",null,null,null,"BIOS 2TR",null,null,null,"ACCT305",null,null,null,null,"ENGL219",null,null,null,null,null,null,"ACCT217",null,null,null,"ETHC 2TR",null,null,null,null,"HIST225",null,null,null,"ECON 2TR",null,null,null,"ECON410"]
["ACCT217",null,null,null,null,"ACCT313",null,null,null,"BIOS 3TR",null,null,null,null,"ACCT 4TR",null,null,null,"ACCT 3TR",null,null,null,"BIOS 3TR",null,null,null,"ACCT312",null,null,null,null,"ENGL220H",null,null,null,null,null,null,"ACCT224",null,null,null,"ETHC 3TR",null,null,null,null,"HIST405",null,null,null,"ECON 3TR",null,null,null,"HUMS480"]
["ACCT224",null,null,null,null,"ACCT326",null,null,null,"BIOS 4TR",null,null,null,null,"BIS 1TR",null,null,null,"ACCT 4TR",null,null,null,"BIOS 4TR",null,null,null,"ACCT324",null,null,null,null,"ENGL227",null,null,null,null,null,null,"ACCT244",null,null,null,"ETHC 4TR",null,null,null,null,"HIST410",null,null,null,"ECON 4TR",null,null,null,"LAWS310"]
["ACCT244",null,null,null,null,"ACCT360",null,null,null,"CARD 1TR",null,null,null,null,"BIS 2TR",null,null,null,"BIAM 1TR",null,null,null,"CHEM 1TR",null,null,null,"ACCT344",null,null,null,null,"ENGL230",null,null,null,null,null,null,"ACCT251",null,null,null,"HIST 1TR",null,null,null,null,"HIST412",null,null,null,"HUMS 1TR",null,null,null,"LAWS420"]
["ACCT251",null,null,null,null,"ACCT406",null,null,null,"CARD 2TR",null,null,null,null,"BIS 3TR",null,null,null,"BIAM 2TR",null,null,null,"CHEM 2TR",null,null,null,"ACCT346",null,null,null,null,"ETHC232",null,null,null,null,null,null,"ACCT301",null,null,null,"HIST 2TR",null,null,null,null,"HIST415",null,null,null,"HUMS 2TR",null,null,null,"POLI330"]
["ACCT301",null,null,null,null,"ACCT426",null,null,null,"CARD 3TR",null,null,null,null,"BIS 4TR",null,null,null,"BIAM 3TR",null,null,null,"CHEM 3TR",null,null,null,"ACCT352",null,null,null,null,"ETHC445",null,null,null,null,null,null,"ACCT304",null,null,null,"HIST 3TR",null,null,null,null,"HIST417",null,null,null,"HUMS 3TR",null,null,null,"POLI332"]
["ACCT304",null,null,null,null,"ACCT436",null,null,null,"CARD 4TR",null,null,null,null,"BUSN 1TR",null,null,null,"BIAM 4TR",null,null,null,"CHEM 4TR",null,null,null,"ACCT405",null,null,null,null,"HIST225",null,null,null,null,null,null,"ACCT305",null,null,null,"HIST 4TR",null,null,null,null,"HUMN303",null,null,null,"HUMS 4TR",null,null,null,"POLI410"]
["ACCT305",null,null,null,null,"ACCT446",null,null,null,"CHEM 1TR",null,null,null,null,"BUSN 2TR",null,null,null,"BIOS 1TR",null,null,null,"PHYS 1TR",null,null,null,"ACCT429",null,null,null,null,"HIST405",null,null,null,null,null,null,"ACCT312",null,null,null,"HUMN 1TR",null,null,null,null,"HUMN460SA",null,null,null,"LAWS 1TR",null,null,null,"POLI457"]
["ACCT312",null,null,null,null,"ACCT454",null,null,null,"CHEM 2TR",null,null,null,null,"BUSN 3TR",null,null,null,"BIOS 2TR",null,null,null,"PHYS 2TR",null,null,null,"ACCT434",null,null,null,null,"HIST410",null,null,null,null,null,null,"ACCT324",null,null,null,"HUMN 2TR",null,null,null,null,"LTRE421",null,null,null,"LAWS 2TR",null,null,null,"PSYC110"]
["ACCT324",null,null,null,null,"BIAM300",null,null,null,"CHEM 3TR",null,null,null,null,"BUSN 4TR",null,null,null,"BIOS 3TR",null,null,null,"PHYS 3TR",null,null,null,"ACCT444",null,null,null,null,"HIST412",null,null,null,null,null,null,"ACCT346",null,null,null,"HUMN 3TR",null,null,null,null,"LTRE422",null,null,null,"LAWS 3TR",null,null,null,"PSYC285"]
["ACCT344",null,null,null,null,"BIAM400",null,null,null,"CHEM 4TR",null,null,null,null,"COMP 1TR",null,null,null,"BIOS 4TR",null,null,null,"PHYS 4TR",null,null,null,"ACCT451",null,null,null,null,"HIST415",null,null,null,null,null,null,"ACCT349",null,null,null,"HUMN 4TR",null,null,null,null,"LTRE424",null,null,null,"LAWS 4TR",null,null,null,"PSYC305"]
["ACCT346",null,null,null,null,"BIAM410",null,null,null,"COLL 1TR",null,null,null,null,"COMP 2TR",null,null,null,"BIS 1TR",null,null,null,"SCI 1TR",null,null,null,"BIAM300",null,null,null,null,"HIST417",null,null,null,null,null,null,"ACCT405",null,null,null,"LAS 1TR",null,null,null,null,"LTRE427",null,null,null,"POLI 1TR",null,null,null,"PSYC307"]
["ACCT349",null,null,null,null,"BIAM420",null,null,null,"COLL 2TR",null,null,null,null,"COMP 3TR",null,null,null,"BIS 2TR",null,null,null,"SCI 2TR",null,null,null,"BIAM400",null,null,null,null,"HUMN303",null,null,null,null,null,null,"ACCT424",null,null,null,"LAS 2TR",null,null,null,null,"LTRE428",null,null,null,"POLI 2TR",null,null,null,"PSYC315"]
["ACCT352",null,null,null,null,"BIS155",null,null,null,"COLL 3TR",null,null,null,null,"COMP 4TR",null,null,null,"BIS 3TR",null,null,null,"SCI 3TR",null,null,null,"BIAM410",null,null,null,null,"HUMN460SA",null,null,null,null,null,null,"ACCT427",null,null,null,"LAS 3TR",null,null,null,null,"PHIL347",null,null,null,"POLI 3TR",null,null,null,"SOCS185"]
["ACCT405",null,null,null,null,"BIS245",null,null,null,"COLL 4TR",null,null,null,null,"ECOM 1TR",null,null,null,"BIS 4TR",null,null,null,"SCI 4TR",null,null,null,"BIAM420",null,null,null,null,"HUMS480",null,null,null,null,null,null,"ACCT429",null,null,null,"LAS 4TR",null,null,null,null,"PHIL447",null,null,null,"POLI 4TR",null,null,null,"SOCS187"]
["ACCT424",null,null,null,null,"BUSN115",null,null,null,"COMM 1TR",null,null,null,null,"ECOM 2TR",null,null,null,"BMET 1TR",null,null,null,"SCI204♦",null,null,null,"BIS245",null,null,null,null,"LAWS310",null,null,null,null,null,null,"ACCT434",null,null,null,"LTRE 1TR",null,null,null,null,"PHIL449",null,null,null,"PSYC 1TR",null,null,null,"SOCS190"]
["ACCT427",null,null,null,null,"BUSN258",null,null,null,"COMM 2TR",null,null,null,null,"ECOM 3TR",null,null,null,"BMET 2TR",null,null,null,"SCI214♦",null,null,null,"BIS261",null,null,null,null,"LAWS420",null,null,null,null,null,null,"ACCT439",null,null,null,"LTRE 2TR",null,null,null,null,"RELI448",null,null,null,"PSYC 2TR",null,null,null,"SOCS315"]
["ACCT429",null,null,null,null,"BUSN278",null,null,null,"COMM 3TR",null,null,null,null,"ECOM 4TR",null,null,null,"BMET 3TR",null,null,null,"SCI224♦",null,null,null,"BIS300",null,null,null,null,"LTRE421",null,null,null,null,null,null,"ACCT440",null,null,null,"LTRE 3TR",null,null,null,null,null,null,null,null,"PSYC 3TR",null,null,null,"SOCS325"]
["ACCT434",null,null,null,null,"BUSN319",null,null,null,"COMM 4TR",null,null,null,null,"ECON 1TR",null,null,null,"BMET 4TR",null,null,null,"SCI228♦",null,null,null,"BIS311",null,null,null,null,"LTRE422",null,null,null,null,null,null,"ACCT444",null,null,null,"LTRE 4TR",null,null,null,null,null,null,null,null,"PSYC 4TR",null,null,null,"SOCS335"]
["ACCT439",null,null,null,null,"BUSN350",null,null,null,"ECON 1TR",null,null,null,null,"ECON 2TR",null,null,null,"BMI 1TR",null,null,null,"SCI230♦",null,null,null,"BIS325",null,null,null,null,"LTRE424",null,null,null,null,null,null,"ACCT451",null,null,null,"PHIL 1TR",null,null,null,null,null,null,null,null,"SOCS 1TR",null,null,null,"SOCS350"]
["ACCT440",null,null,null,null,"BUSN379",null,null,null,"ECON 2TR",null,null,null,null,"ECON 3TR",null,null,null,"BMI 2TR",null,null,null,"CHEM120♦",null,null,null,"BIS345",null,null,null,null,"LTRE427",null,null,null,null,null,null,"ACCT452",null,null,null,"PHIL 2TR",null,null,null,null,null,null,null,null,"SOCS 2TR",null,null,null,"SOCS410"]
["ACCT444",null,null,null,null,"BUSN460",null,null,null,"ECON 3TR",null,null,null,null,"ECON 4TR",null,null,null,"BMI 3TR",null,null,null,"BIOS105♦",null,null,null,"BIS360",null,null,null,null,"LTRE428",null,null,null,null,null,null,"ACCT461",null,null,null,"PHIL 3TR",null,null,null,null,null,null,null,null,"SOCS 3TR"]
["ACCT451",null,null,null,null,"CARD405",null,null,null,"ECON 4TR",null,null,null,null,"ELTV 1TR",null,null,null,"BMI 4TR",null,null,null,"BIOS135♦",null,null,null,"BIS445",null,null,null,null,"MATH190",null,null,null,null,null,null,"BIAM300",null,null,null,"PHIL 4TR",null,null,null,null,null,null,null,null,"SOCS 4TR"]
["ACCT452",null,null,null,null,"CARD415",null,null,null,"ELTV 1TR",null,null,null,null,"ELTV 2TR",null,null,null,"BUSN 1TR",null,null,null,"BIOS140♦",null,null,null,"BIS450",null,null,null,null,"MATH211",null,null,null,null,null,null,"BIAM400",null,null,null,"RELI 1TR",null,null,null,null,null,null,null,null,"ECON312♦"]
["ACCT461",null,null,null,null,"CEIS101C",null,null,null,"ELTV 2TR",null,null,null,null,"ELTV 3TR",null,null,null,"BUSN 2TR",null,null,null,"PHYS216♦",null,null,null,"BUSN258",null,null,null,null,"MATH221",null,null,null,null,null,null,"BIAM410",null,null,null,"RELI 2TR",null,null,null,null,null,null,null,null,"ECON315♦"]
["BIAM300",null,null,null,null,"CEIS106",null,null,null,"ELTV 3TR",null,null,null,null,"ELTV 4TR",null,null,null,"BUSN 3TR",null,null,null,"DEVRY",null,null,null,"BUSN278",null,null,null,null,"MATH233",null,null,null,null,null,null,"BIAM420",null,null,null,"RELI 3TR",null,null,null,null,null,null,null,null,"ECON410♦"]
["BIAM400",null,null,null,null,"CEIS114",null,null,null,"ELTV 4TR",null,null,null,null,"FIN 1TR",null,null,null,"BUSN 4TR",null,null,null,null,null,null,null,"BUSN319",null,null,null,null,"MATH260",null,null,null,null,null,null,"BIOS105",null,null,null,"RELI 4TR",null,null,null,null,null,null,null,null,"HUMS480♦"]
["BIAM410",null,null,null,null,"CESI110",null,null,null,"ENGL 1TR",null,null,null,null,"FIN 2TR",null,null,null,"CAB 1TR",null,null,null,null,null,null,null,"BUSN369",null,null,null,null,"MATH270",null,null,null,null,null,null,"BIOS135",null,null,null,"ETHC232♦",null,null,null,null,null,null,null,null,"LAWS310♦"]
["BIAM420",null,null,null,null,"COLL148",null,null,null,"ENGL 2TR",null,null,null,null,"FIN 3TR",null,null,null,"CAB 2TR",null,null,null,null,null,null,null,"BUSN379",null,null,null,null,"MATH325",null,null,null,null,null,null,"BIOS140",null,null,null,"ETHC445♦",null,null,null,null,null,null,null,null,"LAWS420♦"]
["BIOS105",null,null,null,null,"COMP100",null,null,null,"ENGL 3TR",null,null,null,null,"FIN 4TR",null,null,null,"CAB 3TR",null,null,null,null,null,null,null,"BUSN412",null,null,null,null,"MATH450",null,null,null,null,null,null,"BIOS195",null,null,null,"HIST225♦",null,null,null,null,null,null,null,null,"POLI330♦"]
["BIOS135",null,null,null,null,"CRMJ300",null,null,null,"ENGL 4TR",null,null,null,null,"GSCM 1TR",null,null,null,"CAB 4TR",null,null,null,null,null,null,null,"BUSN420",null,null,null,null,"MATH451",null,null,null,null,null,null,"BIOS242",null,null,null,"HIST405♦",null,null,null,null,null,null,null,null,"POLI332♦"]
["BIOS140",null,null,null,null,"CRMJ310",null,null,null,"ETHC 1TR",null,null,null,null,"GSCM 2TR",null,null,null,"CARD 1TR",null,null,null,null,null,null,null,"ECOM210",null,null,null,null,"PHIL347",null,null,null,null,null,null,"BIOS251",null,null,null,"HIST410♦",null,null,null,null,null,null,null,null,"POLI410♦"]
["BIOS195",null,null,null,null,"CRMJ315",null,null,null,"ETHC 2TR",null,null,null,null,"GSCM 3TR",null,null,null,"CARD 2TR",null,null,null,null,null,null,null,"ECOM340",null,null,null,null,"PHIL447",null,null,null,null,null,null,"BIOS252",null,null,null,"HIST412♦",null,null,null,null,null,null,null,null,"POLI457♦"]
["BIOS242",null,null,null,null,"CRMJ320",null,null,null,"ETHC 3TR",null,null,null,null,"GSCM 4TR",null,null,null,"CARD 3TR",null,null,null,null,null,null,null,"ECON410",null,null,null,null,"PHIL449",null,null,null,null,null,null,"BIOS255",null,null,null,"HIST415♦",null,null,null,null,null,null,null,null,"PSYC110♦"]
["BIOS251",null,null,null,null,"CRMJ400",null,null,null,"ETHC 4TR",null,null,null,null,"HOSP 1TR",null,null,null,"CARD 4TR",null,null,null,null,null,null,null,"FIN351",null,null,null,null,"PHYS204",null,null,null,null,null,null,"BIOS256",null,null,null,"HIST417♦",null,null,null,null,null,null,null,null,"PSYC290♦"]
["BIOS252",null,null,null,null,"CRMJ410",null,null,null,"HIST 1TR",null,null,null,null,"HOSP 2TR",null,null,null,"CCN 1TR",null,null,null,null,null,null,null,"FIN364",null,null,null,null,"PHYS216",null,null,null,null,null,null,"BIOS260",null,null,null,"HUMN303♦",null,null,null,null,null,null,null,null,"PSYC305♦"]
["BIOS255",null,null,null,null,"CRMJ420",null,null,null,"HIST 2TR",null,null,null,null,"HOSP 3TR",null,null,null,"CCN 2TR",null,null,null,null,null,null,null,"FIN382",null,null,null,null,"PHYS310",null,null,null,null,null,null,"BIOS271",null,null,null,"HUMN451♦",null,null,null,null,null,null,null,null,"PSYC307♦"]
["BIOS256",null,null,null,null,"CRMJ425",null,null,null,"HIST 3TR",null,null,null,null,"HOSP 4TR",null,null,null,"CCN 3TR",null,null,null,null,null,null,null,"FIN385",null,null,null,null,"PHYS320",null,null,null,null,null,null,"BIOS272",null,null,null,"HUMN460SA♦",null,null,null,null,null,null,null,null,"PSYC315♦"]
["BIOS260",null,null,null,null,"CRMJ450",null,null,null,"HIST 4TR",null,null,null,null,"HRM 1TR",null,null,null,"CCN 4TR",null,null,null,null,null,null,null,"FIN417",null,null,null,null,"POLI330",null,null,null,null,null,null,"BIOS275",null,null,null,"LTRE421♦",null,null,null,null,null,null,null,null,"SOCS185♦"]
["BIOS271",null,null,null,null,"ECON312",null,null,null,"HUMN 1TR",null,null,null,null,"HRM 2TR",null,null,null,"CCSI 1TR",null,null,null,null,null,null,null,"FIN426",null,null,null,null,"POLI332",null,null,null,null,null,null,"BIS155",null,null,null,"LTRE422♦",null,null,null,null,null,null,null,null,"SOCS187♦"]
["BIOS272",null,null,null,null,"ENGL062",null,null,null,"HUMN 2TR",null,null,null,null,"HRM 3TR",null,null,null,"CCSI 2TR",null,null,null,null,null,null,null,"FIN463",null,null,null,null,"POLI410",null,null,null,null,null,null,"BIS245",null,null,null,"LTRE424♦",null,null,null,null,null,null,null,null,"SOCS190♦"]
["BIOS275",null,null,null,null,"ENGL112",null,null,null,"HUMN 3TR",null,null,null,null,"HRM 4TR",null,null,null,"CCSI 3TR",null,null,null,null,null,null,null,"GSCM206",null,null,null,null,"POLI457",null,null,null,null,null,null,"BIS261",null,null,null,"LTRE427♦",null,null,null,null,null,null,null,null,"SOCS315♦"]
["BIS155",null,null,null,null,"ENGL135",null,null,null,"HUMN 4TR",null,null,null,null,"HSM 1TR",null,null,null,"CCSI 4TR",null,null,null,null,null,null,null,"GSCM209",null,null,null,null,"PSYC110",null,null,null,null,null,null,"BIS300",null,null,null,"LTRE428♦",null,null,null,null,null,null,null,null,"SOCS325♦"]
["BIS245",null,null,null,null,"ETHC445",null,null,null,"HUMS 1TR",null,null,null,null,"HSM 2TR",null,null,null,"CEIS 1TR",null,null,null,null,null,null,null,"GSCM326",null,null,null,null,"PSYC285",null,null,null,null,null,null,"BIS311",null,null,null,"PHIL347♦",null,null,null,null,null,null,null,null,"SOCS335♦"]
["BIS261",null,null,null,null,"FIN351",null,null,null,"HUMS 2TR",null,null,null,null,"HSM 3TR",null,null,null,"CEIS 2TR",null,null,null,null,null,null,null,"GSCM330",null,null,null,null,"PSYC305",null,null,null,null,null,null,"BIS325",null,null,null,"PHIL447♦",null,null,null,null,null,null,null,null,"SOCS350♦"]
["BIS300",null,null,null,null,"FIN364",null,null,null,"HUMS 3TR",null,null,null,null,"HSM 4TR",null,null,null,"CEIS 3TR",null,null,null,null,null,null,null,"GSCM434",null,null,null,null,"PSYC307",null,null,null,null,null,null,"BIS345",null,null,null,"PHIL449♦",null,null,null,null,null,null,null,null,"SOCS410♦"]
["BIS311",null,null,null,null,"FIN382",null,null,null,"HUMS 4TR",null,null,null,null,"MGMT 1TR",null,null,null,"CEIS 4TR",null,null,null,null,null,null,null,"GSCM440",null,null,null,null,"PSYC315",null,null,null,null,null,null,"BIS360",null,null,null,"RELI448♦",null,null,null,null,null,null,null,null,"DEVRY"]
["BIS325",null,null,null,null,"FIN390",null,null,null,"LANG 1TR",null,null,null,null,"MGMT 2TR",null,null,null,"CET 1TR",null,null,null,null,null,null,null,"GSCM460",null,null,null,null,"RELI448",null,null,null,null,null,null,"BIS445",null,null,null,"DEVRY"]
["BIS345",null,null,null,null,"GSCM206",null,null,null,"LANG 2TR",null,null,null,null,"MGMT 3TR",null,null,null,"CET 2TR",null,null,null,null,null,null,null,"HOSP310",null,null,null,null,"SCI204",null,null,null,null,null,null,"BIS450"]
["BIS360",null,null,null,null,"GSCM209",null,null,null,"LANG 3TR",null,null,null,null,"MGMT 4TR",null,null,null,"CET 3TR",null,null,null,null,null,null,null,"HOSP320",null,null,null,null,"SCI214",null,null,null,null,null,null,"BMET313"]
["BIS445",null,null,null,null,"GSCM326",null,null,null,"LANG 4TR",null,null,null,null,"MKTG 1TR",null,null,null,"CET 4TR",null,null,null,null,null,null,null,"HOSP330",null,null,null,null,"SCI224",null,null,null,null,null,null,"BMET323"]
["BIS450",null,null,null,null,"GSCM330",null,null,null,"LAS 1TR",null,null,null,null,"MKTG 2TR",null,null,null,"CDM 1TR",null,null,null,null,null,null,null,"HOSP410",null,null,null,null,"SCI228",null,null,null,null,null,null,"BMET433"]
["BMET313",null,null,null,null,"GSCM434",null,null,null,"LAS 2TR",null,null,null,null,"MKTG 3TR",null,null,null,"CDM 2TR",null,null,null,null,null,null,null,"HOSP420",null,null,null,null,"SCI230",null,null,null,null,null,null,"BMET436"]
["BMET323",null,null,null,null,"GSCM440",null,null,null,"LAS 3TR",null,null,null,null,"MKTG 4TR",null,null,null,"CDM 3TR",null,null,null,null,null,null,null,"HOSP440",null,null,null,null,"SOCS185",null,null,null,null,null,null,"BMET453"]
["BMET433",null,null,null,null,"GSCM460",null,null,null,"LAS 4TR",null,null,null,null,"PROJ 1TR",null,null,null,"CDM 4TR",null,null,null,null,null,null,null,"HOSP450",null,null,null,null,"SOCS187",null,null,null,null,null,null,"BMET454"]
["BMET436",null,null,null,null,"HOSP310",null,null,null,"LAWS 1TR",null,null,null,null,"PROJ 2TR",null,null,null,"CHEM 1TR",null,null,null,null,null,null,null,"HRM320",null,null,null,null,"SOCS190",null,null,null,null,null,null,"BUSN115"]
["BMET453",null,null,null,null,"HOSP320",null,null,null,"LAWS 2TR",null,null,null,null,"PROJ 3TR",null,null,null,"CHEM 2TR",null,null,null,null,null,null,null,"HRM330",null,null,null,null,"SOCS315",null,null,null,null,null,null,"BUSN258"]
["BMET454",null,null,null,null,"HOSP330",null,null,null,"LAWS 3TR",null,null,null,null,"PROJ 4TR",null,null,null,"CHEM 3TR",null,null,null,null,null,null,null,"HRM340",null,null,null,null,"SOCS325",null,null,null,null,null,null,"BUSN278"]
["BUSN115",null,null,null,null,"HOSP410",null,null,null,"LAWS 4TR",null,null,null,null,"SBE 1TR",null,null,null,"CHEM 4TR",null,null,null,null,null,null,null,"HRM410",null,null,null,null,"SOCS335",null,null,null,null,null,null,"BUSN315"]
["BUSN258",null,null,null,null,"HOSP420",null,null,null,"LTRE 1TR",null,null,null,null,"SBE 2TR",null,null,null,"CIS 1TR",null,null,null,null,null,null,null,"HRM420",null,null,null,null,"SOCS350",null,null,null,null,null,null,"BUSN319"]
["BUSN278",null,null,null,null,"HOSP440",null,null,null,"LTRE 2TR",null,null,null,null,"SBE 3TR",null,null,null,"CIS 2TR",null,null,null,null,null,null,null,"HRM430",null,null,null,null,"SOCS410",null,null,null,null,null,null,"BUSN350"]
["BUSN315",null,null,null,null,"HOSP450",null,null,null,"LTRE 3TR",null,null,null,null,"SBE 4TR",null,null,null,"CIS 3TR",null,null,null,null,null,null,null,"HSM310",null,null,null,null,"SPCH275",null,null,null,null,null,null,"BUSN379"]
["BUSN319",null,null,null,null,"HRM320",null,null,null,"LTRE 4TR",null,null,null,null,"SEC 1TR",null,null,null,"CIS 4TR",null,null,null,null,null,null,null,"HSM320",null,null,null,null,"SPCH277",null,null,null,null,null,null,"BUSN380"]
["BUSN350",null,null,null,null,"HRM330",null,null,null,"MATH 1TR",null,null,null,null,"SEC 2TR",null,null,null,"CLS 1TR",null,null,null,null,null,null,null,"HSM330",null,null,null,null,"SPCH279",null,null,null,null,null,null,"BUSN412"]
["BUSN369",null,null,null,null,"HRM340",null,null,null,"MATH 2TR",null,null,null,null,"SEC 3TR",null,null,null,"CLS 2TR",null,null,null,null,null,null,null,"HSM340",null,null,null,null,"TC160",null,null,null,null,null,null,"BUSN420"]
["BUSN379",null,null,null,null,"HRM410",null,null,null,"MATH 3TR",null,null,null,null,"SEC 4TR",null,null,null,"CLS 3TR",null,null,null,null,null,null,null,"HSM410",null,null,null,null,"TC220",null,null,null,null,null,null,"BUSN460"]
["BUSN380",null,null,null,null,"HRM420",null,null,null,"MATH 4TR",null,null,null,null,"SMT 1TR",null,null,null,"CLS 4TR",null,null,null,null,null,null,null,"HSM420",null,null,null,null,"TC310",null,null,null,null,null,null,"BUSN462"]
["BUSN412",null,null,null,null,"HRM430",null,null,null,"PHIL 1TR",null,null,null,null,"SMT 2TR",null,null,null,"COLL 1TR",null,null,null,null,null,null,null,"HSM430",null,null,null,null,"TC320",null,null,null,null,null,null,"BUSN463"]
["BUSN420",null,null,null,null,"HSM310",null,null,null,"PHIL 2TR",null,null,null,null,"SMT 3TR",null,null,null,"COLL 2TR",null,null,null,null,null,null,null,"MGMT340",null,null,null,null,"TC360",null,null,null,null,null,null,"CARD205"]
["BUSN460",null,null,null,null,"HSM320",null,null,null,"PHIL 3TR",null,null,null,null,"SMT 4TR",null,null,null,"COLL 3TR",null,null,null,null,null,null,null,"MGMT410",null,null,null,null,"TC420",null,null,null,null,null,null,"CARD405"]
["BUSN462",null,null,null,null,"HSM330",null,null,null,"PHIL 4TR",null,null,null,null,"SOCS 1TR",null,null,null,"COLL 4TR",null,null,null,null,null,null,null,"MKTG310",null,null,null,null,"TC430",null,null,null,null,null,null,"CARD415"]
["BUSN463",null,null,null,null,"HSM340",null,null,null,"PHYS 1TR",null,null,null,null,"SOCS 2TR",null,null,null,"COMM 1TR",null,null,null,null,null,null,null,"MKTG320",null,null,null,null,"TC440",null,null,null,null,null,null,"CCSI330"]
["CARD205",null,null,null,null,"HSM410",null,null,null,"PHYS 2TR",null,null,null,null,"SOCS 3TR",null,null,null,"COMM 2TR",null,null,null,null,null,null,null,"MKTG410",null,null,null,null,"TC450",null,null,null,null,null,null,"CCSI360"]
["CARD405",null,null,null,null,"HSM420",null,null,null,"PHYS 3TR",null,null,null,null,"SOCS 4TR",null,null,null,"COMM 3TR",null,null,null,null,null,null,null,"MKTG420",null,null,null,null,null,null,null,null,null,null,null,"CCSI410"]
["CARD415",null,null,null,null,"HSM430",null,null,null,"PHYS 4TR",null,null,null,null,"SUST 1TR",null,null,null,"COMM 4TR",null,null,null,null,null,null,null,"MKTG430",null,null,null,null,null,null,null,null,null,null,null,"CCSI460"]
["CCSI330",null,null,null,null,"LAS432",null,null,null,"POLI 1TR",null,null,null,null,"SUST 2TR",null,null,null,"COMP 1TR",null,null,null,null,null,null,null,"MKTG440",null,null,null,null,null,null,null,null,null,null,null,"CDM300"]
["CCSI360",null,null,null,null,"MATH062",null,null,null,"POLI 2TR",null,null,null,null,"SUST 3TR",null,null,null,"COMP 2TR",null,null,null,null,null,null,null,"PROJ330",null,null,null,null,null,null,null,null,null,null,null,"CDM340"]
["CCSI410",null,null,null,null,"MATH114",null,null,null,"POLI 3TR",null,null,null,null,"SUST 4TR",null,null,null,"COMP 3TR",null,null,null,null,null,null,null,"PROJ410",null,null,null,null,null,null,null,null,null,null,null,"CDM360"]
["CCSI460",null,null,null,null,"MATH221",null,null,null,"POLI 4TR",null,null,null,null,"TC 1TR",null,null,null,"COMP 4TR",null,null,null,null,null,null,null,"PROJ420",null,null,null,null,null,null,null,null,null,null,null,"CDM410"]
["CDM300",null,null,null,null,"MGMT303",null,null,null,"PSYC 1TR",null,null,null,null,"TC 2TR",null,null,null,"CRMJ 1TR",null,null,null,null,null,null,null,"PROJ430",null,null,null,null,null,null,null,null,null,null,null,"CDM420"]
["CDM340",null,null,null,null,"MGMT340",null,null,null,"PSYC 2TR",null,null,null,null,"TC 3TR",null,null,null,"CRMJ 2TR",null,null,null,null,null,null,null,"SBE310",null,null,null,null,null,null,null,null,null,null,null,"CDM430"]
["CDM360",null,null,null,null,"MGMT404",null,null,null,"PSYC 3TR",null,null,null,null,"TC 4TR",null,null,null,"CRMJ 3TR",null,null,null,null,null,null,null,"SBE330",null,null,null,null,null,null,null,null,null,null,null,"CDM440"]
["CDM410",null,null,null,null,"MGMT410",null,null,null,"PSYC 4TR",null,null,null,null,"DEVRY",null,null,null,"CRMJ 4TR",null,null,null,null,null,null,null,"SBE420",null,null,null,null,null,null,null,null,null,null,null,"CEIS100"]
["CDM420",null,null,null,null,"MKTG310",null,null,null,"RELI 1TR",null,null,null,null,null,null,null,null,"DBM 1TR",null,null,null,null,null,null,null,"SBE430",null,null,null,null,null,null,null,null,null,null,null,"CEIS210"]
["CDM430",null,null,null,null,"MKTG320",null,null,null,"RELI 2TR",null,null,null,null,null,null,null,null,"DBM 2TR",null,null,null,null,null,null,null,"SBE440",null,null,null,null,null,null,null,null,null,null,null,"CHEM120"]
["CDM440",null,null,null,null,"MKTG340",null,null,null,"RELI 3TR",null,null,null,null,null,null,null,null,"DBM 3TR",null,null,null,null,null,null,null,"SEC310",null,null,null,null,null,null,null,null,null,null,null,"CIS115"]
["CEIS100",null,null,null,null,"MKTG410",null,null,null,"RELI 4TR",null,null,null,null,null,null,null,null,"DBM 4TR",null,null,null,null,null,null,null,"SEC320",null,null,null,null,null,null,null,null,null,null,null,"CIS170A"]
["CEIS210",null,null,null,null,"MKTG425",null,null,null,"SCI 1TR",null,null,null,null,null,null,null,null,"DHTI 1TR",null,null,null,null,null,null,null,"SEC330",null,null,null,null,null,null,null,null,null,null,null,"CIS170B"]
["CHEM120",null,null,null,null,"MKTG430",null,null,null,"SCI 2TR",null,null,null,null,null,null,null,null,"DHTI 2TR",null,null,null,null,null,null,null,"SEC410",null,null,null,null,null,null,null,null,null,null,null,"CIS170C"]
["CIS115",null,null,null,null,"NETW191",null,null,null,"SCI 3TR",null,null,null,null,null,null,null,null,"DHTI 3TR",null,null,null,null,null,null,null,"SEC415",null,null,null,null,null,null,null,null,null,null,null,"CIS206"]
["CIS170A",null,null,null,null,"NETW211",null,null,null,"SCI 4TR",null,null,null,null,null,null,null,null,"DHTI 4TR",null,null,null,null,null,null,null,"SEC420",null,null,null,null,null,null,null,null,null,null,null,"CIS246"]
["CIS170B",null,null,null,null,"NETW260",null,null,null,"SOCS 1TR",null,null,null,null,null,null,null,null,"ECET 1TR",null,null,null,null,null,null,null,"SOCS325",null,null,null,null,null,null,null,null,null,null,null,"CIS247A"]
["CIS170C",null,null,null,null,"NETW270",null,null,null,"SOCS 2TR",null,null,null,null,null,null,null,null,"ECET 2TR",null,null,null,null,null,null,null,"SUST310",null,null,null,null,null,null,null,null,null,null,null,"CIS247B"]
["CIS206",null,null,null,null,"PROJ330",null,null,null,"SOCS 3TR",null,null,null,null,null,null,null,null,"ECET 3TR",null,null,null,null,null,null,null,"SUST320",null,null,null,null,null,null,null,null,null,null,null,"CIS247C"]
["CIS246",null,null,null,null,"PROJ410",null,null,null,"SOCS 4TR",null,null,null,null,null,null,null,null,"ECET 4TR",null,null,null,null,null,null,null,"SUST410",null,null,null,null,null,null,null,null,null,null,null,"CIS321"]
["CIS247A",null,null,null,null,"PROJ420",null,null,null,"SPCH 1TR",null,null,null,null,null,null,null,null,"ECOM 1TR",null,null,null,null,null,null,null,"SUST420",null,null,null,null,null,null,null,null,null,null,null,"CIS336"]
["CIS247B",null,null,null,null,"PROJ430",null,null,null,"SPCH 2TR",null,null,null,null,null,null,null,null,"ECOM 2TR",null,null,null,null,null,null,null,"TC160",null,null,null,null,null,null,null,null,null,null,null,"CIS339"]
["CIS247C",null,null,null,null,"SBE310",null,null,null,"SPCH 3TR",null,null,null,null,null,null,null,null,"ECOM 3TR",null,null,null,null,null,null,null,"TC220",null,null,null,null,null,null,null,null,null,null,null,"CIS355A"]
["CIS321",null,null,null,null,"SBE330",null,null,null,"SPCH 4TR",null,null,null,null,null,null,null,null,"ECOM 4TR",null,null,null,null,null,null,null,"TC310",null,null,null,null,null,null,null,null,null,null,null,"CIS355B"]
["CIS336",null,null,null,null,"SBE420",null,null,null,"TC 1TR",null,null,null,null,null,null,null,null,"ECON 1TR",null,null,null,null,null,null,null,"TC320",null,null,null,null,null,null,null,null,null,null,null,"CIS363A"]
["CIS339",null,null,null,null,"SBE430",null,null,null,"TC 2TR",null,null,null,null,null,null,null,null,"ECON 2TR",null,null,null,null,null,null,null,"TC360",null,null,null,null,null,null,null,null,null,null,null,"CIS363B"]
["CIS355A",null,null,null,null,"SBE440",null,null,null,"TC 3TR",null,null,null,null,null,null,null,null,"ECON 3TR",null,null,null,null,null,null,null,"TC420",null,null,null,null,null,null,null,null,null,null,null,"CIS407A"]
["CIS355B",null,null,null,null,"SCI228",null,null,null,"TC 4TR",null,null,null,null,null,null,null,null,"ECON 4TR",null,null,null,null,null,null,null,"TC430",null,null,null,null,null,null,null,null,null,null,null,"CIS407B"]
["CIS363A",null,null,null,null,"SEC285",null,null,null,"DEVRY",null,null,null,null,null,null,null,null,"ECT 1TR",null,null,null,null,null,null,null,"TC440",null,null,null,null,null,null,null,null,null,null,null,"CIS470"]
["CIS363B",null,null,null,null,"SOCS185",null,null,null,null,null,null,null,null,null,null,null,null,"ECT 2TR",null,null,null,null,null,null,null,"TC450",null,null,null,null,null,null,null,null,null,null,null,"CIS474"]
["CIS407A",null,null,null,null,"SPCH275",null,null,null,null,null,null,null,null,null,null,null,null,"ECT 3TR",null,null,null,null,null,null,null,null,null,null,null,null,null,null,null,null,null,null,null,"CIS477"]
["CIS407B",null,null,null,null,"ENGL PLACE",null,null,null,null,null,null,null,null,null,null,null,null,"ECT 4TR",null,null,null,null,null,null,null,null,null,null,null,null,null,null,null,null,null,null,null,"COLL148"]
["CIS470",null,null,null,null,"ENGL NEXT",null,null,null,null,null,null,null,null,null,null,null,null,"EDT 1TR",null,null,null,null,null,null,null,null,null,null,null,null,null,null,null,null,null,null,null,"COMM301"]
["CIS474",null,null,null,null,"MATH PLACE",null,null,null,null,null,null,null,null,null,null,null,null,"EDT 2TR",null,null,null,null,null,null,null,null,null,null,null,null,null,null,null,null,null,null,null,"COMM491"]
["CIS477",null,null,null,null,"MATH NEXT",null,null,null,null,null,null,null,null,null,null,null,null,"EDT 3TR",null,null,null,null,null,null,null,null,null,null,null,null,null,null,null,null,null,null,null,"COMM492"]
["COLL148",null,null,null,null,"ELECTIVE",null,null,null,null,null,null,null,null,null,null,null,null,"EDT 4TR",null,null,null,null,null,null,null,null,null,null,null,null,null,null,null,null,null,null,null,"COMP100"]
["COMM301",null,null,null,null,"U/D ELECTIVE",null,null,null,null,null,null,null,null,null,null,null,null,"EE 1TR",null,null,null,null,null,null,null,null,null,null,null,null,null,null,null,null,null,null,null,"COMP122"]
["COMM491",null,null,null,null,"GEN ED SOC SCI",null,null,null,null,null,null,null,null,null,null,null,null,"EE 2TR",null,null,null,null,null,null,null,null,null,null,null,null,null,null,null,null,null,null,null,"COMP129"]
["COMM492",null,null,null,null,"U/D GEN ED SOC SCI",null,null,null,null,null,null,null,null,null,null,null,null,"EE 3TR",null,null,null,null,null,null,null,null,null,null,null,null,null,null,null,null,null,null,null,"COMP220"]
["COMP100",null,null,null,null,"GEN ED HUMN",null,null,null,null,null,null,null,null,null,null,null,null,"EE 4TR",null,null,null,null,null,null,null,null,null,null,null,null,null,null,null,null,null,null,null,"COMP230"]
["COMP122",null,null,null,null,"U/D GEN ED HUMN",null,null,null,null,null,null,null,null,null,null,null,null,"EET 1TR",null,null,null,null,null,null,null,null,null,null,null,null,null,null,null,null,null,null,null,"COMP274"]
["COMP129",null,null,null,null,"GEN ED ELECTIVE",null,null,null,null,null,null,null,null,null,null,null,null,"EET 2TR",null,null,null,null,null,null,null,null,null,null,null,null,null,null,null,null,null,null,null,"CRMJ300"]
["COMP220",null,null,null,null,"U/D GEN ED ELECTIVE",null,null,null,null,null,null,null,null,null,null,null,null,"EET 3TR",null,null,null,null,null,null,null,null,null,null,null,null,null,null,null,null,null,null,null,"CRMJ310"]
["COMP230",null,null,null,null,"TECHNICAL SPECIALTY",null,null,null,null,null,null,null,null,null,null,null,null,"EET 4TR",null,null,null,null,null,null,null,null,null,null,null,null,null,null,null,null,null,null,null,"CRMJ315"]
["COMP274",null,null,null,null,"U/D TECH SPECIALTY",null,null,null,null,null,null,null,null,null,null,null,null,"ELTV 1TR",null,null,null,null,null,null,null,null,null,null,null,null,null,null,null,null,null,null,null,"CRMJ320"]
["CRMJ300",null,null,null,null,"BMT ELECTIVE",null,null,null,null,null,null,null,null,null,null,null,null,"ELTV 2TR",null,null,null,null,null,null,null,null,null,null,null,null,null,null,null,null,null,null,null,"CRMJ400"]
["CRMJ310",null,null,null,null,"U/D BMT ELECTIVE",null,null,null,null,null,null,null,null,null,null,null,null,"ELTV 3TR",null,null,null,null,null,null,null,null,null,null,null,null,null,null,null,null,null,null,null,"CRMJ410"]
["CRMJ315",null,null,null,null,null,null,null,null,null,null,null,null,null,null,null,null,null,"ELTV 4TR",null,null,null,null,null,null,null,null,null,null,null,null,null,null,null,null,null,null,null,"CRMJ415"]
["CRMJ320",null,null,null,null,null,null,null,null,null,null,null,null,null,null,null,null,null,"ENDT 1TR",null,null,null,null,null,null,null,null,null,null,null,null,null,null,null,null,null,null,null,"CRMJ420"]
["CRMJ400",null,null,null,null,null,null,null,null,null,null,null,null,null,null,null,null,null,"ENDT 2TR",null,null,null,null,null,null,null,null,null,null,null,null,null,null,null,null,null,null,null,"CRMJ425"]
["CRMJ410",null,null,null,null,null,null,null,null,null,null,null,null,null,null,null,null,null,"ENDT 3TR",null,null,null,null,null,null,null,null,null,null,null,null,null,null,null,null,null,null,null,"CRMJ430"]
["CRMJ415",null,null,null,null,null,null,null,null,null,null,null,null,null,null,null,null,null,"ENDT 4TR",null,null,null,null,null,null,null,null,null,null,null,null,null,null,null,null,null,null,null,"CRMJ450"]
["CRMJ420",null,null,null,null,null,null,null,null,null,null,null,null,null,null,null,null,null,"ENGL 1TR",null,null,null,null,null,null,null,null,null,null,null,null,null,null,null,null,null,null,null,"DBM405A"]
["CRMJ425",null,null,null,null,null,null,null,null,null,null,null,null,null,null,null,null,null,"ENGL 2TR",null,null,null,null,null,null,null,null,null,null,null,null,null,null,null,null,null,null,null,"DBM405B"]
["CRMJ430",null,null,null,null,null,null,null,null,null,null,null,null,null,null,null,null,null,"ENGL 3TR",null,null,null,null,null,null,null,null,null,null,null,null,null,null,null,null,null,null,null,"DBM438"]
["CRMJ450",null,null,null,null,null,null,null,null,null,null,null,null,null,null,null,null,null,"ENGL 4TR",null,null,null,null,null,null,null,null,null,null,null,null,null,null,null,null,null,null,null,"DBM449"]
["DBM405A",null,null,null,null,null,null,null,null,null,null,null,null,null,null,null,null,null,"ESL 1TR",null,null,null,null,null,null,null,null,null,null,null,null,null,null,null,null,null,null,null,"ECET105"]
["DBM405B",null,null,null,null,null,null,null,null,null,null,null,null,null,null,null,null,null,"ESL 2TR",null,null,null,null,null,null,null,null,null,null,null,null,null,null,null,null,null,null,null,"ECET110"]
["DBM438",null,null,null,null,null,null,null,null,null,null,null,null,null,null,null,null,null,"ESL 3TR",null,null,null,null,null,null,null,null,null,null,null,null,null,null,null,null,null,null,null,"ECET210"]
["DBM449",null,null,null,null,null,null,null,null,null,null,null,null,null,null,null,null,null,"ESL 4TR",null,null,null,null,null,null,null,null,null,null,null,null,null,null,null,null,null,null,null,"ECET220"]
["DHTI202",null,null,null,null,null,null,null,null,null,null,null,null,null,null,null,null,null,"ESYS 1TR",null,null,null,null,null,null,null,null,null,null,null,null,null,null,null,null,null,null,null,"ECET230"]
["DHTI204",null,null,null,null,null,null,null,null,null,null,null,null,null,null,null,null,null,"ESYS 2TR",null,null,null,null,null,null,null,null,null,null,null,null,null,null,null,null,null,null,null,"ECET299"]
["ECET105",null,null,null,null,null,null,null,null,null,null,null,null,null,null,null,null,null,"ESYS 3TR",null,null,null,null,null,null,null,null,null,null,null,null,null,null,null,null,null,null,null,"ECET301"]
["ECET110",null,null,null,null,null,null,null,null,null,null,null,null,null,null,null,null,null,"ESYS 4TR",null,null,null,null,null,null,null,null,null,null,null,null,null,null,null,null,null,null,null,"ECET310"]
["ECET210",null,null,null,null,null,null,null,null,null,null,null,null,null,null,null,null,null,"ETHC 1TR",null,null,null,null,null,null,null,null,null,null,null,null,null,null,null,null,null,null,null,"ECET330"]
["ECET220",null,null,null,null,null,null,null,null,null,null,null,null,null,null,null,null,null,"ETHC 2TR",null,null,null,null,null,null,null,null,null,null,null,null,null,null,null,null,null,null,null,"ECET340"]
["ECET230",null,null,null,null,null,null,null,null,null,null,null,null,null,null,null,null,null,"ETHC 3TR",null,null,null,null,null,null,null,null,null,null,null,null,null,null,null,null,null,null,null,"ECET345"]
["ECET299",null,null,null,null,null,null,null,null,null,null,null,null,null,null,null,null,null,"ETHC 4TR",null,null,null,null,null,null,null,null,null,null,null,null,null,null,null,null,null,null,null,"ECET350"]
["ECET301",null,null,null,null,null,null,null,null,null,null,null,null,null,null,null,null,null,"FIN 1TR",null,null,null,null,null,null,null,null,null,null,null,null,null,null,null,null,null,null,null,"ECET360"]
["ECET310",null,null,null,null,null,null,null,null,null,null,null,null,null,null,null,null,null,"FIN 2TR",null,null,null,null,null,null,null,null,null,null,null,null,null,null,null,null,null,null,null,"ECET365"]
["ECET330",null,null,null,null,null,null,null,null,null,null,null,null,null,null,null,null,null,"FIN 3TR",null,null,null,null,null,null,null,null,null,null,null,null,null,null,null,null,null,null,null,"ECET370"]
["ECET340",null,null,null,null,null,null,null,null,null,null,null,null,null,null,null,null,null,"FIN 4TR",null,null,null,null,null,null,null,null,null,null,null,null,null,null,null,null,null,null,null,"ECET375"]
["ECET345",null,null,null,null,null,null,null,null,null,null,null,null,null,null,null,null,null,"GMD 1TR",null,null,null,null,null,null,null,null,null,null,null,null,null,null,null,null,null,null,null,"ECET380"]
["ECET350",null,null,null,null,null,null,null,null,null,null,null,null,null,null,null,null,null,"GMD 2TR",null,null,null,null,null,null,null,null,null,null,null,null,null,null,null,null,null,null,null,"ECET391"]
["ECET360",null,null,null,null,null,null,null,null,null,null,null,null,null,null,null,null,null,"GMD 3TR",null,null,null,null,null,null,null,null,null,null,null,null,null,null,null,null,null,null,null,"ECET402"]
["ECET365",null,null,null,null,null,null,null,null,null,null,null,null,null,null,null,null,null,"GMD 4TR",null,null,null,null,null,null,null,null,null,null,null,null,null,null,null,null,null,null,null,"ECET405"]
["ECET370",null,null,null,null,null,null,null,null,null,null,null,null,null,null,null,null,null,"GSCM 1TR",null,null,null,null,null,null,null,null,null,null,null,null,null,null,null,null,null,null,null,"ECET430"]
["ECET375",null,null,null,null,null,null,null,null,null,null,null,null,null,null,null,null,null,"GSCM 2TR",null,null,null,null,null,null,null,null,null,null,null,null,null,null,null,null,null,null,null,"ECET450"]
["ECET380",null,null,null,null,null,null,null,null,null,null,null,null,null,null,null,null,null,"GSCM 3TR",null,null,null,null,null,null,null,null,null,null,null,null,null,null,null,null,null,null,null,"ECET460"]
["ECET391",null,null,null,null,null,null,null,null,null,null,null,null,null,null,null,null,null,"GSCM 4TR",null,null,null,null,null,null,null,null,null,null,null,null,null,null,null,null,null,null,null,"ECET465"]
["ECET402",null,null,null,null,null,null,null,null,null,null,null,null,null,null,null,null,null,"GSP 1TR",null,null,null,null,null,null,null,null,null,null,null,null,null,null,null,null,null,null,null,"ECET492L"]
["ECET405",null,null,null,null,null,null,null,null,null,null,null,null,null,null,null,null,null,"GSP 2TR",null,null,null,null,null,null,null,null,null,null,null,null,null,null,null,null,null,null,null,"ECET493L"]
["ECET410",null,null,null,null,null,null,null,null,null,null,null,null,null,null,null,null,null,"GSP 3TR",null,null,null,null,null,null,null,null,null,null,null,null,null,null,null,null,null,null,null,"ECET494L"]
["ECET420",null,null,null,null,null,null,null,null,null,null,null,null,null,null,null,null,null,"GSP 4TR",null,null,null,null,null,null,null,null,null,null,null,null,null,null,null,null,null,null,null,"ECET495"]
["ECET425",null,null,null,null,null,null,null,null,null,null,null,null,null,null,null,null,null,"HIM 1TR",null,null,null,null,null,null,null,null,null,null,null,null,null,null,null,null,null,null,null,"ECET497"]
["ECET430",null,null,null,null,null,null,null,null,null,null,null,null,null,null,null,null,null,"HIM 2TR",null,null,null,null,null,null,null,null,null,null,null,null,null,null,null,null,null,null,null,"ECON312"]
["ECET450",null,null,null,null,null,null,null,null,null,null,null,null,null,null,null,null,null,"HIM 3TR",null,null,null,null,null,null,null,null,null,null,null,null,null,null,null,null,null,null,null,"ECON410"]
["ECET460",null,null,null,null,null,null,null,null,null,null,null,null,null,null,null,null,null,"HIM 4TR",null,null,null,null,null,null,null,null,null,null,null,null,null,null,null,null,null,null,null,"ECT109"]
["ECET465",null,null,null,null,null,null,null,null,null,null,null,null,null,null,null,null,null,"HIS 1TR",null,null,null,null,null,null,null,null,null,null,null,null,null,null,null,null,null,null,null,"ECT114"]
["ECET490",null,null,null,null,null,null,null,null,null,null,null,null,null,null,null,null,null,"HIS 2TR",null,null,null,null,null,null,null,null,null,null,null,null,null,null,null,null,null,null,null,"ECT122"]
["ECET492L",null,null,null,null,null,null,null,null,null,null,null,null,null,null,null,null,null,"HIS 3TR",null,null,null,null,null,null,null,null,null,null,null,null,null,null,null,null,null,null,null,"ECT125"]
["ECET493L",null,null,null,null,null,null,null,null,null,null,null,null,null,null,null,null,null,"HIS 4TR",null,null,null,null,null,null,null,null,null,null,null,null,null,null,null,null,null,null,null,"ECT246"]
["ECET494L",null,null,null,null,null,null,null,null,null,null,null,null,null,null,null,null,null,"HIST 1TR",null,null,null,null,null,null,null,null,null,null,null,null,null,null,null,null,null,null,null,"ECT253"]
["ECET495",null,null,null,null,null,null,null,null,null,null,null,null,null,null,null,null,null,"HIST 2TR",null,null,null,null,null,null,null,null,null,null,null,null,null,null,null,null,null,null,null,"ECT263"]
["ECET497",null,null,null,null,null,null,null,null,null,null,null,null,null,null,null,null,null,"HIST 3TR",null,null,null,null,null,null,null,null,null,null,null,null,null,null,null,null,null,null,null,"ECT264"]
["ECOM210",null,null,null,null,null,null,null,null,null,null,null,null,null,null,null,null,null,"HIST 4TR",null,null,null,null,null,null,null,null,null,null,null,null,null,null,null,null,null,null,null,"ECT274"]
["ECOM340",null,null,null,null,null,null,null,null,null,null,null,null,null,null,null,null,null,"HIT 1TR",null,null,null,null,null,null,null,null,null,null,null,null,null,null,null,null,null,null,null,"ECT284"]
["ECON312",null,null,null,null,null,null,null,null,null,null,null,null,null,null,null,null,null,"HIT 2TR",null,null,null,null,null,null,null,null,null,null,null,null,null,null,null,null,null,null,null,"ECT295L"]
["ECON315",null,null,null,null,null,null,null,null,null,null,null,null,null,null,null,null,null,"HIT 3TR",null,null,null,null,null,null,null,null,null,null,null,null,null,null,null,null,null,null,null,"ENGL062"]
["ECON410",null,null,null,null,null,null,null,null,null,null,null,null,null,null,null,null,null,"HIT 4TR",null,null,null,null,null,null,null,null,null,null,null,null,null,null,null,null,null,null,null,"ENGL112"]
["ECT109",null,null,null,null,null,null,null,null,null,null,null,null,null,null,null,null,null,"HOSP 1TR",null,null,null,null,null,null,null,null,null,null,null,null,null,null,null,null,null,null,null,"ENGL135"]
["ECT114",null,null,null,null,null,null,null,null,null,null,null,null,null,null,null,null,null,"HOSP 2TR",null,null,null,null,null,null,null,null,null,null,null,null,null,null,null,null,null,null,null,"ENGL206"]
["ECT122",null,null,null,null,null,null,null,null,null,null,null,null,null,null,null,null,null,"HOSP 3TR",null,null,null,null,null,null,null,null,null,null,null,null,null,null,null,null,null,null,null,"ENGL216"]
["ECT125",null,null,null,null,null,null,null,null,null,null,null,null,null,null,null,null,null,"HOSP 4TR",null,null,null,null,null,null,null,null,null,null,null,null,null,null,null,null,null,null,null,"ENGL220H"]
["ECT246",null,null,null,null,null,null,null,null,null,null,null,null,null,null,null,null,null,"HRM 1TR",null,null,null,null,null,null,null,null,null,null,null,null,null,null,null,null,null,null,null,"ENGL227"]
["ECT253",null,null,null,null,null,null,null,null,null,null,null,null,null,null,null,null,null,"HRM 2TR",null,null,null,null,null,null,null,null,null,null,null,null,null,null,null,null,null,null,null,"ESYS306"]
["ECT263",null,null,null,null,null,null,null,null,null,null,null,null,null,null,null,null,null,"HRM 3TR",null,null,null,null,null,null,null,null,null,null,null,null,null,null,null,null,null,null,null,"ESYS410"]
["ECT264",null,null,null,null,null,null,null,null,null,null,null,null,null,null,null,null,null,"HRM 4TR",null,null,null,null,null,null,null,null,null,null,null,null,null,null,null,null,null,null,null,"ESYS430"]
["ECT266",null,null,null,null,null,null,null,null,null,null,null,null,null,null,null,null,null,"HSM 1TR",null,null,null,null,null,null,null,null,null,null,null,null,null,null,null,null,null,null,null,"ETHC232"]
["ECT270",null,null,null,null,null,null,null,null,null,null,null,null,null,null,null,null,null,"HSM 2TR",null,null,null,null,null,null,null,null,null,null,null,null,null,null,null,null,null,null,null,"ETHC445"]
["ECT274",null,null,null,null,null,null,null,null,null,null,null,null,null,null,null,null,null,"HSM 3TR",null,null,null,null,null,null,null,null,null,null,null,null,null,null,null,null,null,null,null,"FIN351"]
["ECT284",null,null,null,null,null,null,null,null,null,null,null,null,null,null,null,null,null,"HSM 4TR",null,null,null,null,null,null,null,null,null,null,null,null,null,null,null,null,null,null,null,"FIN364"]
["ECT295L",null,null,null,null,null,null,null,null,null,null,null,null,null,null,null,null,null,"HUMN 1TR",null,null,null,null,null,null,null,null,null,null,null,null,null,null,null,null,null,null,null,"FIN382"]
["ENGL062",null,null,null,null,null,null,null,null,null,null,null,null,null,null,null,null,null,"HUMN 2TR",null,null,null,null,null,null,null,null,null,null,null,null,null,null,null,null,null,null,null,"FIN385"]
["ENGL112",null,null,null,null,null,null,null,null,null,null,null,null,null,null,null,null,null,"HUMN 3TR",null,null,null,null,null,null,null,null,null,null,null,null,null,null,null,null,null,null,null,"GMD311"]
["ENGL135",null,null,null,null,null,null,null,null,null,null,null,null,null,null,null,null,null,"HUMN 4TR",null,null,null,null,null,null,null,null,null,null,null,null,null,null,null,null,null,null,null,"GMD341"]
["ENGL206",null,null,null,null,null,null,null,null,null,null,null,null,null,null,null,null,null,"HUMS 1TR",null,null,null,null,null,null,null,null,null,null,null,null,null,null,null,null,null,null,null,"GMD371"]
["ENGL216",null,null,null,null,null,null,null,null,null,null,null,null,null,null,null,null,null,"HUMS 2TR",null,null,null,null,null,null,null,null,null,null,null,null,null,null,null,null,null,null,null,"GMD411"]
["ENGL219",null,null,null,null,null,null,null,null,null,null,null,null,null,null,null,null,null,"HUMS 3TR",null,null,null,null,null,null,null,null,null,null,null,null,null,null,null,null,null,null,null,"GMD451"]
["ENGL220H",null,null,null,null,null,null,null,null,null,null,null,null,null,null,null,null,null,"HUMS 4TR",null,null,null,null,null,null,null,null,null,null,null,null,null,null,null,null,null,null,null,"GSCM206"]
["ENGL227",null,null,null,null,null,null,null,null,null,null,null,null,null,null,null,null,null,"INTP 1TR",null,null,null,null,null,null,null,null,null,null,null,null,null,null,null,null,null,null,null,"GSCM209"]
["ENGL230",null,null,null,null,null,null,null,null,null,null,null,null,null,null,null,null,null,"INTP 2TR",null,null,null,null,null,null,null,null,null,null,null,null,null,null,null,null,null,null,null,"GSCM326"]
["ESYS306",null,null,null,null,null,null,null,null,null,null,null,null,null,null,null,null,null,"INTP 3TR",null,null,null,null,null,null,null,null,null,null,null,null,null,null,null,null,null,null,null,"GSCM330"]
["ESYS410",null,null,null,null,null,null,null,null,null,null,null,null,null,null,null,null,null,"INTP 4TR",null,null,null,null,null,null,null,null,null,null,null,null,null,null,null,null,null,null,null,"GSCM434"]
["ESYS430",null,null,null,null,null,null,null,null,null,null,null,null,null,null,null,null,null,"JADM 1TR",null,null,null,null,null,null,null,null,null,null,null,null,null,null,null,null,null,null,null,"GSCM440"]
["ETHC232",null,null,null,null,null,null,null,null,null,null,null,null,null,null,null,null,null,"JADM 2TR",null,null,null,null,null,null,null,null,null,null,null,null,null,null,null,null,null,null,null,"GSCM460"]
["ETHC445",null,null,null,null,null,null,null,null,null,null,null,null,null,null,null,null,null,"JADM 3TR",null,null,null,null,null,null,null,null,null,null,null,null,null,null,null,null,null,null,null,"GSP111"]
["FIN351",null,null,null,null,null,null,null,null,null,null,null,null,null,null,null,null,null,"JADM 4TR",null,null,null,null,null,null,null,null,null,null,null,null,null,null,null,null,null,null,null,"GSP115"]
["FIN364",null,null,null,null,null,null,null,null,null,null,null,null,null,null,null,null,null,"LANG 1TR",null,null,null,null,null,null,null,null,null,null,null,null,null,null,null,null,null,null,null,"GSP125"]
["FIN382",null,null,null,null,null,null,null,null,null,null,null,null,null,null,null,null,null,"LANG 2TR",null,null,null,null,null,null,null,null,null,null,null,null,null,null,null,null,null,null,null,"GSP215"]
["FIN385",null,null,null,null,null,null,null,null,null,null,null,null,null,null,null,null,null,"LANG 3TR",null,null,null,null,null,null,null,null,null,null,null,null,null,null,null,null,null,null,null,"GSP221"]
["FIN417",null,null,null,null,null,null,null,null,null,null,null,null,null,null,null,null,null,"LANG 4TR",null,null,null,null,null,null,null,null,null,null,null,null,null,null,null,null,null,null,null,"GSP240"]
["FIN426",null,null,null,null,null,null,null,null,null,null,null,null,null,null,null,null,null,"LAS 1TR",null,null,null,null,null,null,null,null,null,null,null,null,null,null,null,null,null,null,null,"GSP261"]
["FIN463",null,null,null,null,null,null,null,null,null,null,null,null,null,null,null,null,null,"LAS 2TR",null,null,null,null,null,null,null,null,null,null,null,null,null,null,null,null,null,null,null,"GSP281"]
["GMD311",null,null,null,null,null,null,null,null,null,null,null,null,null,null,null,null,null,"LAS 3TR",null,null,null,null,null,null,null,null,null,null,null,null,null,null,null,null,null,null,null,"GSP295"]
["GMD341",null,null,null,null,null,null,null,null,null,null,null,null,null,null,null,null,null,"LAS 4TR",null,null,null,null,null,null,null,null,null,null,null,null,null,null,null,null,null,null,null,"GSP315"]
["GMD371",null,null,null,null,null,null,null,null,null,null,null,null,null,null,null,null,null,"LAWS 1TR",null,null,null,null,null,null,null,null,null,null,null,null,null,null,null,null,null,null,null,"GSP321"]
["GMD411",null,null,null,null,null,null,null,null,null,null,null,null,null,null,null,null,null,"LAWS 2TR",null,null,null,null,null,null,null,null,null,null,null,null,null,null,null,null,null,null,null,"GSP340"]
["GMD451",null,null,null,null,null,null,null,null,null,null,null,null,null,null,null,null,null,"LAWS 3TR",null,null,null,null,null,null,null,null,null,null,null,null,null,null,null,null,null,null,null,"GSP361"]
["GSCM206",null,null,null,null,null,null,null,null,null,null,null,null,null,null,null,null,null,"LAWS 4TR",null,null,null,null,null,null,null,null,null,null,null,null,null,null,null,null,null,null,null,"GSP362"]
["GSCM209",null,null,null,null,null,null,null,null,null,null,null,null,null,null,null,null,null,"LTRE 1TR",null,null,null,null,null,null,null,null,null,null,null,null,null,null,null,null,null,null,null,"GSP381"]
["GSCM326",null,null,null,null,null,null,null,null,null,null,null,null,null,null,null,null,null,"LTRE 2TR",null,null,null,null,null,null,null,null,null,null,null,null,null,null,null,null,null,null,null,"GSP390"]
["GSCM330",null,null,null,null,null,null,null,null,null,null,null,null,null,null,null,null,null,"LTRE 3TR",null,null,null,null,null,null,null,null,null,null,null,null,null,null,null,null,null,null,null,"GSP410"]
["GSCM434",null,null,null,null,null,null,null,null,null,null,null,null,null,null,null,null,null,"LTRE 4TR",null,null,null,null,null,null,null,null,null,null,null,null,null,null,null,null,null,null,null,"GSP420"]
["GSCM440",null,null,null,null,null,null,null,null,null,null,null,null,null,null,null,null,null,"MATH 1TR",null,null,null,null,null,null,null,null,null,null,null,null,null,null,null,null,null,null,null,"GSP465"]
["GSCM460",null,null,null,null,null,null,null,null,null,null,null,null,null,null,null,null,null,"MATH 2TR",null,null,null,null,null,null,null,null,null,null,null,null,null,null,null,null,null,null,null,"GSP475"]
["GSP111",null,null,null,null,null,null,null,null,null,null,null,null,null,null,null,null,null,"MATH 3TR",null,null,null,null,null,null,null,null,null,null,null,null,null,null,null,null,null,null,null,"GSP494"]
["GSP115",null,null,null,null,null,null,null,null,null,null,null,null,null,null,null,null,null,"MATH 4TR",null,null,null,null,null,null,null,null,null,null,null,null,null,null,null,null,null,null,null,"GSP497"]
["GSP125",null,null,null,null,null,null,null,null,null,null,null,null,null,null,null,null,null,"MDD 1TR",null,null,null,null,null,null,null,null,null,null,null,null,null,null,null,null,null,null,null,"HIM335"]
["GSP215",null,null,null,null,null,null,null,null,null,null,null,null,null,null,null,null,null,"MDD 2TR",null,null,null,null,null,null,null,null,null,null,null,null,null,null,null,null,null,null,null,"HIM355"]
["GSP221",null,null,null,null,null,null,null,null,null,null,null,null,null,null,null,null,null,"MDD 3TR",null,null,null,null,null,null,null,null,null,null,null,null,null,null,null,null,null,null,null,"HIM370"]
["GSP240",null,null,null,null,null,null,null,null,null,null,null,null,null,null,null,null,null,"MDD 4TR",null,null,null,null,null,null,null,null,null,null,null,null,null,null,null,null,null,null,null,"HIM410"]
["GSP261",null,null,null,null,null,null,null,null,null,null,null,null,null,null,null,null,null,"MGMT 1TR",null,null,null,null,null,null,null,null,null,null,null,null,null,null,null,null,null,null,null,"HIM420"]
["GSP281",null,null,null,null,null,null,null,null,null,null,null,null,null,null,null,null,null,"MGMT 2TR",null,null,null,null,null,null,null,null,null,null,null,null,null,null,null,null,null,null,null,"HIM435"]
["GSP295",null,null,null,null,null,null,null,null,null,null,null,null,null,null,null,null,null,"MGMT 3TR",null,null,null,null,null,null,null,null,null,null,null,null,null,null,null,null,null,null,null,"HIM460"]
["GSP315",null,null,null,null,null,null,null,null,null,null,null,null,null,null,null,null,null,"MGMT 4TR",null,null,null,null,null,null,null,null,null,null,null,null,null,null,null,null,null,null,null,"HIS410"]
["GSP321",null,null,null,null,null,null,null,null,null,null,null,null,null,null,null,null,null,"MKTG 1TR",null,null,null,null,null,null,null,null,null,null,null,null,null,null,null,null,null,null,null,"HIS420"]
["GSP340",null,null,null,null,null,null,null,null,null,null,null,null,null,null,null,null,null,"MKTG 2TR",null,null,null,null,null,null,null,null,null,null,null,null,null,null,null,null,null,null,null,"HIST225"]
["GSP361",null,null,null,null,null,null,null,null,null,null,null,null,null,null,null,null,null,"MKTG 3TR",null,null,null,null,null,null,null,null,null,null,null,null,null,null,null,null,null,null,null,"HIST405"]
["GSP362",null,null,null,null,null,null,null,null,null,null,null,null,null,null,null,null,null,"MKTG 4TR",null,null,null,null,null,null,null,null,null,null,null,null,null,null,null,null,null,null,null,"HIST410"]
["GSP381",null,null,null,null,null,null,null,null,null,null,null,null,null,null,null,null,null,"NETS 1TR",null,null,null,null,null,null,null,null,null,null,null,null,null,null,null,null,null,null,null,"HIT111"]
["GSP390",null,null,null,null,null,null,null,null,null,null,null,null,null,null,null,null,null,"NETS 2TR",null,null,null,null,null,null,null,null,null,null,null,null,null,null,null,null,null,null,null,"HIT120"]
["GSP410",null,null,null,null,null,null,null,null,null,null,null,null,null,null,null,null,null,"NETS 3TR",null,null,null,null,null,null,null,null,null,null,null,null,null,null,null,null,null,null,null,"HIT141"]
["GSP420",null,null,null,null,null,null,null,null,null,null,null,null,null,null,null,null,null,"NETS 4TR",null,null,null,null,null,null,null,null,null,null,null,null,null,null,null,null,null,null,null,"HIT170"]
["GSP465",null,null,null,null,null,null,null,null,null,null,null,null,null,null,null,null,null,"NETW 1TR",null,null,null,null,null,null,null,null,null,null,null,null,null,null,null,null,null,null,null,"HIT202A"]
["GSP470",null,null,null,null,null,null,null,null,null,null,null,null,null,null,null,null,null,"NETW 2TR",null,null,null,null,null,null,null,null,null,null,null,null,null,null,null,null,null,null,null,"HIT204A"]
["GSP475",null,null,null,null,null,null,null,null,null,null,null,null,null,null,null,null,null,"NETW 3TR",null,null,null,null,null,null,null,null,null,null,null,null,null,null,null,null,null,null,null,"HIT211"]
["GSP480",null,null,null,null,null,null,null,null,null,null,null,null,null,null,null,null,null,"NETW 4TR",null,null,null,null,null,null,null,null,null,null,null,null,null,null,null,null,null,null,null,"HIT220"]
["GSP494",null,null,null,null,null,null,null,null,null,null,null,null,null,null,null,null,null,"NR 1TR",null,null,null,null,null,null,null,null,null,null,null,null,null,null,null,null,null,null,null,"HIT226"]
["GSP497",null,null,null,null,null,null,null,null,null,null,null,null,null,null,null,null,null,"NR 2TR",null,null,null,null,null,null,null,null,null,null,null,null,null,null,null,null,null,null,null,"HIT230"]
["HIM335",null,null,null,null,null,null,null,null,null,null,null,null,null,null,null,null,null,"NR 3TR",null,null,null,null,null,null,null,null,null,null,null,null,null,null,null,null,null,null,null,"HIT272"]
["HIM355",null,null,null,null,null,null,null,null,null,null,null,null,null,null,null,null,null,"NR 4TR",null,null,null,null,null,null,null,null,null,null,null,null,null,null,null,null,null,null,null,"HIT272L"]
["HIM370",null,null,null,null,null,null,null,null,null,null,null,null,null,null,null,null,null,"NSA 1TR",null,null,null,null,null,null,null,null,null,null,null,null,null,null,null,null,null,null,null,"HOSP310"]
["HIM410",null,null,null,null,null,null,null,null,null,null,null,null,null,null,null,null,null,"NSA 2TR",null,null,null,null,null,null,null,null,null,null,null,null,null,null,null,null,null,null,null,"HOSP320"]
["HIM420",null,null,null,null,null,null,null,null,null,null,null,null,null,null,null,null,null,"NSA 3TR",null,null,null,null,null,null,null,null,null,null,null,null,null,null,null,null,null,null,null,"HOSP330"]
["HIM435",null,null,null,null,null,null,null,null,null,null,null,null,null,null,null,null,null,"NSA 4TR",null,null,null,null,null,null,null,null,null,null,null,null,null,null,null,null,null,null,null,"HOSP410"]
["HIM460",null,null,null,null,null,null,null,null,null,null,null,null,null,null,null,null,null,"PHIL 1TR",null,null,null,null,null,null,null,null,null,null,null,null,null,null,null,null,null,null,null,"HOSP420"]
["HIS410",null,null,null,null,null,null,null,null,null,null,null,null,null,null,null,null,null,"PHIL 2TR",null,null,null,null,null,null,null,null,null,null,null,null,null,null,null,null,null,null,null,"HOSP440"]
["HIS420",null,null,null,null,null,null,null,null,null,null,null,null,null,null,null,null,null,"PHIL 3TR",null,null,null,null,null,null,null,null,null,null,null,null,null,null,null,null,null,null,null,"HOSP450"]
["HIST225",null,null,null,null,null,null,null,null,null,null,null,null,null,null,null,null,null,"PHIL 4TR",null,null,null,null,null,null,null,null,null,null,null,null,null,null,null,null,null,null,null,"HRM320"]
["HIST405",null,null,null,null,null,null,null,null,null,null,null,null,null,null,null,null,null,"PHYS 1TR",null,null,null,null,null,null,null,null,null,null,null,null,null,null,null,null,null,null,null,"HRM330"]
["HIST410",null,null,null,null,null,null,null,null,null,null,null,null,null,null,null,null,null,"PHYS 2TR",null,null,null,null,null,null,null,null,null,null,null,null,null,null,null,null,null,null,null,"HRM340"]
["HIST412",null,null,null,null,null,null,null,null,null,null,null,null,null,null,null,null,null,"PHYS 3TR",null,null,null,null,null,null,null,null,null,null,null,null,null,null,null,null,null,null,null,"HRM410"]
["HIST415",null,null,null,null,null,null,null,null,null,null,null,null,null,null,null,null,null,"PHYS 4TR",null,null,null,null,null,null,null,null,null,null,null,null,null,null,null,null,null,null,null,"HRM420"]
["HIST417",null,null,null,null,null,null,null,null,null,null,null,null,null,null,null,null,null,"POLI 1TR",null,null,null,null,null,null,null,null,null,null,null,null,null,null,null,null,null,null,null,"HRM430"]
["HIT111",null,null,null,null,null,null,null,null,null,null,null,null,null,null,null,null,null,"POLI 2TR",null,null,null,null,null,null,null,null,null,null,null,null,null,null,null,null,null,null,null,"HSM310"]
["HIT120",null,null,null,null,null,null,null,null,null,null,null,null,null,null,null,null,null,"POLI 3TR",null,null,null,null,null,null,null,null,null,null,null,null,null,null,null,null,null,null,null,"HSM320"]
["HIT141",null,null,null,null,null,null,null,null,null,null,null,null,null,null,null,null,null,"POLI 4TR",null,null,null,null,null,null,null,null,null,null,null,null,null,null,null,null,null,null,null,"HSM330"]
["HIT170",null,null,null,null,null,null,null,null,null,null,null,null,null,null,null,null,null,"PROJ 1TR",null,null,null,null,null,null,null,null,null,null,null,null,null,null,null,null,null,null,null,"HSM340"]
["HIT202A",null,null,null,null,null,null,null,null,null,null,null,null,null,null,null,null,null,"PROJ 2TR",null,null,null,null,null,null,null,null,null,null,null,null,null,null,null,null,null,null,null,"HSM410"]
["HIT204A",null,null,null,null,null,null,null,null,null,null,null,null,null,null,null,null,null,"PROJ 3TR",null,null,null,null,null,null,null,null,null,null,null,null,null,null,null,null,null,null,null,"HSM420"]
["HIT211",null,null,null,null,null,null,null,null,null,null,null,null,null,null,null,null,null,"PROJ 4TR",null,null,null,null,null,null,null,null,null,null,null,null,null,null,null,null,null,null,null,"HSM430"]
["HIT220",null,null,null,null,null,null,null,null,null,null,null,null,null,null,null,null,null,"PSYC 1TR",null,null,null,null,null,null,null,null,null,null,null,null,null,null,null,null,null,null,null,"HUMN303"]
["HIT226",null,null,null,null,null,null,null,null,null,null,null,null,null,null,null,null,null,"PSYC 2TR",null,null,null,null,null,null,null,null,null,null,null,null,null,null,null,null,null,null,null,"HUMN451"]
["HIT230",null,null,null,null,null,null,null,null,null,null,null,null,null,null,null,null,null,"PSYC 3TR",null,null,null,null,null,null,null,null,null,null,null,null,null,null,null,null,null,null,null,"HUMN460SA"]
["HIT272",null,null,null,null,null,null,null,null,null,null,null,null,null,null,null,null,null,"PSYC 4TR",null,null,null,null,null,null,null,null,null,null,null,null,null,null,null,null,null,null,null,"HUMS480"]
["HIT272L",null,null,null,null,null,null,null,null,null,null,null,null,null,null,null,null,null,"REET 1TR",null,null,null,null,null,null,null,null,null,null,null,null,null,null,null,null,null,null,null,"INTP491"]
["HOSP310",null,null,null,null,null,null,null,null,null,null,null,null,null,null,null,null,null,"REET 2TR",null,null,null,null,null,null,null,null,null,null,null,null,null,null,null,null,null,null,null,"INTP492"]
["HOSP320",null,null,null,null,null,null,null,null,null,null,null,null,null,null,null,null,null,"REET 3TR",null,null,null,null,null,null,null,null,null,null,null,null,null,null,null,null,null,null,null,"JADM100"]
["HOSP330",null,null,null,null,null,null,null,null,null,null,null,null,null,null,null,null,null,"REET 4TR",null,null,null,null,null,null,null,null,null,null,null,null,null,null,null,null,null,null,null,"JADM110"]
["HOSP410",null,null,null,null,null,null,null,null,null,null,null,null,null,null,null,null,null,"RELI 1TR",null,null,null,null,null,null,null,null,null,null,null,null,null,null,null,null,null,null,null,"JADM120"]
["HOSP420",null,null,null,null,null,null,null,null,null,null,null,null,null,null,null,null,null,"RELI 2TR",null,null,null,null,null,null,null,null,null,null,null,null,null,null,null,null,null,null,null,"JADM200"]
["HOSP440",null,null,null,null,null,null,null,null,null,null,null,null,null,null,null,null,null,"RELI 3TR",null,null,null,null,null,null,null,null,null,null,null,null,null,null,null,null,null,null,null,"JADM210"]
["HOSP450",null,null,null,null,null,null,null,null,null,null,null,null,null,null,null,null,null,"RELI 4TR",null,null,null,null,null,null,null,null,null,null,null,null,null,null,null,null,null,null,null,"JADM220"]
["HRM320",null,null,null,null,null,null,null,null,null,null,null,null,null,null,null,null,null,"SAI 1TR",null,null,null,null,null,null,null,null,null,null,null,null,null,null,null,null,null,null,null,"JADM230"]
["HRM330",null,null,null,null,null,null,null,null,null,null,null,null,null,null,null,null,null,"SAI 2TR",null,null,null,null,null,null,null,null,null,null,null,null,null,null,null,null,null,null,null,"JADM240"]
["HRM340",null,null,null,null,null,null,null,null,null,null,null,null,null,null,null,null,null,"SAI 3TR",null,null,null,null,null,null,null,null,null,null,null,null,null,null,null,null,null,null,null,"JADM250"]
["HRM410",null,null,null,null,null,null,null,null,null,null,null,null,null,null,null,null,null,"SAI 4TR",null,null,null,null,null,null,null,null,null,null,null,null,null,null,null,null,null,null,null,"JADM260"]
["HRM420",null,null,null,null,null,null,null,null,null,null,null,null,null,null,null,null,null,"SBE 1TR",null,null,null,null,null,null,null,null,null,null,null,null,null,null,null,null,null,null,null,"JADM270"]
["HRM430",null,null,null,null,null,null,null,null,null,null,null,null,null,null,null,null,null,"SBE 2TR",null,null,null,null,null,null,null,null,null,null,null,null,null,null,null,null,null,null,null,"JADM280"]
["HSM310",null,null,null,null,null,null,null,null,null,null,null,null,null,null,null,null,null,"SBE 3TR",null,null,null,null,null,null,null,null,null,null,null,null,null,null,null,null,null,null,null,"JADM300"]
["HSM320",null,null,null,null,null,null,null,null,null,null,null,null,null,null,null,null,null,"SBE 4TR",null,null,null,null,null,null,null,null,null,null,null,null,null,null,null,null,null,null,null,"JADM310"]
["HSM330",null,null,null,null,null,null,null,null,null,null,null,null,null,null,null,null,null,"SCI 1TR",null,null,null,null,null,null,null,null,null,null,null,null,null,null,null,null,null,null,null,"JADM320"]
["HSM340",null,null,null,null,null,null,null,null,null,null,null,null,null,null,null,null,null,"SCI 2TR",null,null,null,null,null,null,null,null,null,null,null,null,null,null,null,null,null,null,null,"JADM330"]
["HSM410",null,null,null,null,null,null,null,null,null,null,null,null,null,null,null,null,null,"SCI 3TR",null,null,null,null,null,null,null,null,null,null,null,null,null,null,null,null,null,null,null,"JADM340"]
["HSM420",null,null,null,null,null,null,null,null,null,null,null,null,null,null,null,null,null,"SCI 4TR",null,null,null,null,null,null,null,null,null,null,null,null,null,null,null,null,null,null,null,"JADM350"]
["HSM430",null,null,null,null,null,null,null,null,null,null,null,null,null,null,null,null,null,"SEC 1TR",null,null,null,null,null,null,null,null,null,null,null,null,null,null,null,null,null,null,null,"JADM400"]
["HUMN303",null,null,null,null,null,null,null,null,null,null,null,null,null,null,null,null,null,"SEC 2TR",null,null,null,null,null,null,null,null,null,null,null,null,null,null,null,null,null,null,null,"JADM403"]
["HUMN451",null,null,null,null,null,null,null,null,null,null,null,null,null,null,null,null,null,"SEC 3TR",null,null,null,null,null,null,null,null,null,null,null,null,null,null,null,null,null,null,null,"JADM407"]
["HUMN460SA",null,null,null,null,null,null,null,null,null,null,null,null,null,null,null,null,null,"SEC 4TR",null,null,null,null,null,null,null,null,null,null,null,null,null,null,null,null,null,null,null,"JADM410"]
["HUMS480",null,null,null,null,null,null,null,null,null,null,null,null,null,null,null,null,null,"SET 1TR",null,null,null,null,null,null,null,null,null,null,null,null,null,null,null,null,null,null,null,"JADM413"]
["INTP491",null,null,null,null,null,null,null,null,null,null,null,null,null,null,null,null,null,"SET 2TR",null,null,null,null,null,null,null,null,null,null,null,null,null,null,null,null,null,null,null,"JADM417"]
["INTP492",null,null,null,null,null,null,null,null,null,null,null,null,null,null,null,null,null,"SET 3TR",null,null,null,null,null,null,null,null,null,null,null,null,null,null,null,null,null,null,null,"JADM423"]
["JADM100",null,null,null,null,null,null,null,null,null,null,null,null,null,null,null,null,null,"SET 4TR",null,null,null,null,null,null,null,null,null,null,null,null,null,null,null,null,null,null,null,"JADM430"]
["JADM110",null,null,null,null,null,null,null,null,null,null,null,null,null,null,null,null,null,"SMT 1TR",null,null,null,null,null,null,null,null,null,null,null,null,null,null,null,null,null,null,null,"JADM435"]
["JADM120",null,null,null,null,null,null,null,null,null,null,null,null,null,null,null,null,null,"SMT 2TR",null,null,null,null,null,null,null,null,null,null,null,null,null,null,null,null,null,null,null,"JADM445"]
["JADM200",null,null,null,null,null,null,null,null,null,null,null,null,null,null,null,null,null,"SMT 3TR",null,null,null,null,null,null,null,null,null,null,null,null,null,null,null,null,null,null,null,"JADM450"]
["JADM210",null,null,null,null,null,null,null,null,null,null,null,null,null,null,null,null,null,"SMT 4TR",null,null,null,null,null,null,null,null,null,null,null,null,null,null,null,null,null,null,null,"JADM455"]
["JADM220",null,null,null,null,null,null,null,null,null,null,null,null,null,null,null,null,null,"SOCS 1TR",null,null,null,null,null,null,null,null,null,null,null,null,null,null,null,null,null,null,null,"JADM460"]
["JADM230",null,null,null,null,null,null,null,null,null,null,null,null,null,null,null,null,null,"SOCS 2TR",null,null,null,null,null,null,null,null,null,null,null,null,null,null,null,null,null,null,null,"JADM465"]
["JADM240",null,null,null,null,null,null,null,null,null,null,null,null,null,null,null,null,null,"SOCS 3TR",null,null,null,null,null,null,null,null,null,null,null,null,null,null,null,null,null,null,null,"JADM470"]
["JADM250",null,null,null,null,null,null,null,null,null,null,null,null,null,null,null,null,null,"SOCS 4TR",null,null,null,null,null,null,null,null,null,null,null,null,null,null,null,null,null,null,null,"JADM475"]
["JADM260",null,null,null,null,null,null,null,null,null,null,null,null,null,null,null,null,null,"SPCH 1TR",null,null,null,null,null,null,null,null,null,null,null,null,null,null,null,null,null,null,null,"JADM480"]
["JADM270",null,null,null,null,null,null,null,null,null,null,null,null,null,null,null,null,null,"SPCH 2TR",null,null,null,null,null,null,null,null,null,null,null,null,null,null,null,null,null,null,null,"JADM485"]
["JADM280",null,null,null,null,null,null,null,null,null,null,null,null,null,null,null,null,null,"SPCH 3TR",null,null,null,null,null,null,null,null,null,null,null,null,null,null,null,null,null,null,null,"JADM490"]
["JADM300",null,null,null,null,null,null,null,null,null,null,null,null,null,null,null,null,null,"SPCH 4TR",null,null,null,null,null,null,null,null,null,null,null,null,null,null,null,null,null,null,null,"JADM494"]
["JADM310",null,null,null,null,null,null,null,null,null,null,null,null,null,null,null,null,null,"SUST 1TR",null,null,null,null,null,null,null,null,null,null,null,null,null,null,null,null,null,null,null,"LAS432"]
["JADM320",null,null,null,null,null,null,null,null,null,null,null,null,null,null,null,null,null,"SUST 2TR",null,null,null,null,null,null,null,null,null,null,null,null,null,null,null,null,null,null,null,"LAWS310"]
["JADM330",null,null,null,null,null,null,null,null,null,null,null,null,null,null,null,null,null,"SUST 3TR",null,null,null,null,null,null,null,null,null,null,null,null,null,null,null,null,null,null,null,"LAWS420"]
["JADM340",null,null,null,null,null,null,null,null,null,null,null,null,null,null,null,null,null,"SUST 4TR",null,null,null,null,null,null,null,null,null,null,null,null,null,null,null,null,null,null,null,"LTRE421"]
["JADM350",null,null,null,null,null,null,null,null,null,null,null,null,null,null,null,null,null,"TC 1TR",null,null,null,null,null,null,null,null,null,null,null,null,null,null,null,null,null,null,null,"MATH062"]
["JADM400",null,null,null,null,null,null,null,null,null,null,null,null,null,null,null,null,null,"TC 2TR",null,null,null,null,null,null,null,null,null,null,null,null,null,null,null,null,null,null,null,"MATH103"]
["JADM403",null,null,null,null,null,null,null,null,null,null,null,null,null,null,null,null,null,"TC 3TR",null,null,null,null,null,null,null,null,null,null,null,null,null,null,null,null,null,null,null,"MATH104"]
["JADM407",null,null,null,null,null,null,null,null,null,null,null,null,null,null,null,null,null,"TC 4TR",null,null,null,null,null,null,null,null,null,null,null,null,null,null,null,null,null,null,null,"MATH114"]
["JADM410",null,null,null,null,null,null,null,null,null,null,null,null,null,null,null,null,null,"WBA 1TR",null,null,null,null,null,null,null,null,null,null,null,null,null,null,null,null,null,null,null,"MATH190"]
["JADM413",null,null,null,null,null,null,null,null,null,null,null,null,null,null,null,null,null,"WBA 2TR",null,null,null,null,null,null,null,null,null,null,null,null,null,null,null,null,null,null,null,"MATH211"]
["JADM417",null,null,null,null,null,null,null,null,null,null,null,null,null,null,null,null,null,"WBA 3TR",null,null,null,null,null,null,null,null,null,null,null,null,null,null,null,null,null,null,null,"MATH221"]
["JADM420",null,null,null,null,null,null,null,null,null,null,null,null,null,null,null,null,null,"WBA 4TR",null,null,null,null,null,null,null,null,null,null,null,null,null,null,null,null,null,null,null,"MATH233"]
["JADM423",null,null,null,null,null,null,null,null,null,null,null,null,null,null,null,null,null,"WBG 1TR",null,null,null,null,null,null,null,null,null,null,null,null,null,null,null,null,null,null,null,"MATH260"]
["JADM427",null,null,null,null,null,null,null,null,null,null,null,null,null,null,null,null,null,"WBG 2TR",null,null,null,null,null,null,null,null,null,null,null,null,null,null,null,null,null,null,null,"MATH270"]
["JADM430",null,null,null,null,null,null,null,null,null,null,null,null,null,null,null,null,null,"WBG 3TR",null,null,null,null,null,null,null,null,null,null,null,null,null,null,null,null,null,null,null,"MATH325"]
["JADM435",null,null,null,null,null,null,null,null,null,null,null,null,null,null,null,null,null,"WBG 4TR",null,null,null,null,null,null,null,null,null,null,null,null,null,null,null,null,null,null,null,"MATH450"]
["JADM445",null,null,null,null,null,null,null,null,null,null,null,null,null,null,null,null,null,"WDD 1TR",null,null,null,null,null,null,null,null,null,null,null,null,null,null,null,null,null,null,null,"MATH451"]
["JADM450",null,null,null,null,null,null,null,null,null,null,null,null,null,null,null,null,null,"WDD 2TR",null,null,null,null,null,null,null,null,null,null,null,null,null,null,null,null,null,null,null,"MDD310"]
["JADM455",null,null,null,null,null,null,null,null,null,null,null,null,null,null,null,null,null,"WDD 3TR",null,null,null,null,null,null,null,null,null,null,null,null,null,null,null,null,null,null,null,"MDD340"]
["JADM460",null,null,null,null,null,null,null,null,null,null,null,null,null,null,null,null,null,"WDD 4TR",null,null,null,null,null,null,null,null,null,null,null,null,null,null,null,null,null,null,null,"MDD410"]
["JADM465",null,null,null,null,null,null,null,null,null,null,null,null,null,null,null,null,null,"WEB 1TR",null,null,null,null,null,null,null,null,null,null,null,null,null,null,null,null,null,null,null,"MDD410SA"]
["JADM470",null,null,null,null,null,null,null,null,null,null,null,null,null,null,null,null,null,"WEB 2TR",null,null,null,null,null,null,null,null,null,null,null,null,null,null,null,null,null,null,null,"MDD460"]
["JADM475",null,null,null,null,null,null,null,null,null,null,null,null,null,null,null,null,null,"WEB 3TR",null,null,null,null,null,null,null,null,null,null,null,null,null,null,null,null,null,null,null,"MDD461"]
["JADM480",null,null,null,null,null,null,null,null,null,null,null,null,null,null,null,null,null,"WEB 4TR",null,null,null,null,null,null,null,null,null,null,null,null,null,null,null,null,null,null,null,"MGMT303"]
["JADM485",null,null,null,null,null,null,null,null,null,null,null,null,null,null,null,null,null,"WGD 1TR",null,null,null,null,null,null,null,null,null,null,null,null,null,null,null,null,null,null,null,"MGMT330"]
["JADM490",null,null,null,null,null,null,null,null,null,null,null,null,null,null,null,null,null,"WGD 2TR",null,null,null,null,null,null,null,null,null,null,null,null,null,null,null,null,null,null,null,"MGMT340"]
["JADM494",null,null,null,null,null,null,null,null,null,null,null,null,null,null,null,null,null,"WGD 3TR",null,null,null,null,null,null,null,null,null,null,null,null,null,null,null,null,null,null,null,"MGMT404"]
["LAS432",null,null,null,null,null,null,null,null,null,null,null,null,null,null,null,null,null,"WGD 4TR",null,null,null,null,null,null,null,null,null,null,null,null,null,null,null,null,null,null,null,"MGMT408"]
["LAWS310",null,null,null,null,null,null,null,null,null,null,null,null,null,null,null,null,null,"DEVRY",null,null,null,null,null,null,null,null,null,null,null,null,null,null,null,null,null,null,null,"MGMT410"]
["LAWS420",null,null,null,null,null,null,null,null,null,null,null,null,null,null,null,null,null,null,null,null,null,null,null,null,null,null,null,null,null,null,null,null,null,null,null,null,null,"MKTG310"]
["LTRE421",null,null,null,null,null,null,null,null,null,null,null,null,null,null,null,null,null,null,null,null,null,null,null,null,null,null,null,null,null,null,null,null,null,null,null,null,null,"MKTG320"]
["LTRE422",null,null,null,null,null,null,null,null,null,null,null,null,null,null,null,null,null,null,null,null,null,null,null,null,null,null,null,null,null,null,null,null,null,null,null,null,null,"MKTG340"]
["LTRE424",null,null,null,null,null,null,null,null,null,null,null,null,null,null,null,null,null,null,null,null,null,null,null,null,null,null,null,null,null,null,null,null,null,null,null,null,null,"MKTG410"]
["LTRE427",null,null,null,null,null,null,null,null,null,null,null,null,null,null,null,null,null,null,null,null,null,null,null,null,null,null,null,null,null,null,null,null,null,null,null,null,null,"MKTG425"]
["LTRE428",null,null,null,null,null,null,null,null,null,null,null,null,null,null,null,null,null,null,null,null,null,null,null,null,null,null,null,null,null,null,null,null,null,null,null,null,null,"MKTG430"]
["MATH062",null,null,null,null,null,null,null,null,null,null,null,null,null,null,null,null,null,null,null,null,null,null,null,null,null,null,null,null,null,null,null,null,null,null,null,null,null,"MKTG440"]
["MATH103",null,null,null,null,null,null,null,null,null,null,null,null,null,null,null,null,null,null,null,null,null,null,null,null,null,null,null,null,null,null,null,null,null,null,null,null,null,"NETW202"]
["MATH104",null,null,null,null,null,null,null,null,null,null,null,null,null,null,null,null,null,null,null,null,null,null,null,null,null,null,null,null,null,null,null,null,null,null,null,null,null,"NETW203"]
["MATH114",null,null,null,null,null,null,null,null,null,null,null,null,null,null,null,null,null,null,null,null,null,null,null,null,null,null,null,null,null,null,null,null,null,null,null,null,null,"NETW204"]
["MATH190",null,null,null,null,null,null,null,null,null,null,null,null,null,null,null,null,null,null,null,null,null,null,null,null,null,null,null,null,null,null,null,null,null,null,null,null,null,"NETW205"]
["MATH211",null,null,null,null,null,null,null,null,null,null,null,null,null,null,null,null,null,null,null,null,null,null,null,null,null,null,null,null,null,null,null,null,null,null,null,null,null,"NETW206"]
["MATH221",null,null,null,null,null,null,null,null,null,null,null,null,null,null,null,null,null,null,null,null,null,null,null,null,null,null,null,null,null,null,null,null,null,null,null,null,null,"NETW207"]
["MATH233",null,null,null,null,null,null,null,null,null,null,null,null,null,null,null,null,null,null,null,null,null,null,null,null,null,null,null,null,null,null,null,null,null,null,null,null,null,"NETW208"]
["MATH260",null,null,null,null,null,null,null,null,null,null,null,null,null,null,null,null,null,null,null,null,null,null,null,null,null,null,null,null,null,null,null,null,null,null,null,null,null,"NETW209"]
["MATH270",null,null,null,null,null,null,null,null,null,null,null,null,null,null,null,null,null,null,null,null,null,null,null,null,null,null,null,null,null,null,null,null,null,null,null,null,null,"NETW230"]
["MATH325",null,null,null,null,null,null,null,null,null,null,null,null,null,null,null,null,null,null,null,null,null,null,null,null,null,null,null,null,null,null,null,null,null,null,null,null,null,"NETW240"]
["MATH450",null,null,null,null,null,null,null,null,null,null,null,null,null,null,null,null,null,null,null,null,null,null,null,null,null,null,null,null,null,null,null,null,null,null,null,null,null,"NETW250"]
["MATH451",null,null,null,null,null,null,null,null,null,null,null,null,null,null,null,null,null,null,null,null,null,null,null,null,null,null,null,null,null,null,null,null,null,null,null,null,null,"NETW310"]
["MDD310",null,null,null,null,null,null,null,null,null,null,null,null,null,null,null,null,null,null,null,null,null,null,null,null,null,null,null,null,null,null,null,null,null,null,null,null,null,"NETW320"]
["MDD340",null,null,null,null,null,null,null,null,null,null,null,null,null,null,null,null,null,null,null,null,null,null,null,null,null,null,null,null,null,null,null,null,null,null,null,null,null,"NETW360"]
["MDD410",null,null,null,null,null,null,null,null,null,null,null,null,null,null,null,null,null,null,null,null,null,null,null,null,null,null,null,null,null,null,null,null,null,null,null,null,null,"NETW410"]
["MDD410SA",null,null,null,null,null,null,null,null,null,null,null,null,null,null,null,null,null,null,null,null,null,null,null,null,null,null,null,null,null,null,null,null,null,null,null,null,null,"NETW411"]
["MDD460",null,null,null,null,null,null,null,null,null,null,null,null,null,null,null,null,null,null,null,null,null,null,null,null,null,null,null,null,null,null,null,null,null,null,null,null,null,"NETW420"]
["MDD461",null,null,null,null,null,null,null,null,null,null,null,null,null,null,null,null,null,null,null,null,null,null,null,null,null,null,null,null,null,null,null,null,null,null,null,null,null,"NETW430"]
["MGMT303",null,null,null,null,null,null,null,null,null,null,null,null,null,null,null,null,null,null,null,null,null,null,null,null,null,null,null,null,null,null,null,null,null,null,null,null,null,"NETW471"]
["MGMT330",null,null,null,null,null,null,null,null,null,null,null,null,null,null,null,null,null,null,null,null,null,null,null,null,null,null,null,null,null,null,null,null,null,null,null,null,null,"NETW490"]
["MGMT340",null,null,null,null,null,null,null,null,null,null,null,null,null,null,null,null,null,null,null,null,null,null,null,null,null,null,null,null,null,null,null,null,null,null,null,null,null,"NETW494"]
["MGMT404",null,null,null,null,null,null,null,null,null,null,null,null,null,null,null,null,null,null,null,null,null,null,null,null,null,null,null,null,null,null,null,null,null,null,null,null,null,"NETW497"]
["MGMT408",null,null,null,null,null,null,null,null,null,null,null,null,null,null,null,null,null,null,null,null,null,null,null,null,null,null,null,null,null,null,null,null,null,null,null,null,null,"PHIL347"]
["MGMT410",null,null,null,null,null,null,null,null,null,null,null,null,null,null,null,null,null,null,null,null,null,null,null,null,null,null,null,null,null,null,null,null,null,null,null,null,null,"PHIL447"]
["MKTG310",null,null,null,null,null,null,null,null,null,null,null,null,null,null,null,null,null,null,null,null,null,null,null,null,null,null,null,null,null,null,null,null,null,null,null,null,null,"PHYS204"]
["MKTG320",null,null,null,null,null,null,null,null,null,null,null,null,null,null,null,null,null,null,null,null,null,null,null,null,null,null,null,null,null,null,null,null,null,null,null,null,null,"PHYS216"]
["MKTG410",null,null,null,null,null,null,null,null,null,null,null,null,null,null,null,null,null,null,null,null,null,null,null,null,null,null,null,null,null,null,null,null,null,null,null,null,null,"PHYS310"]
["MKTG420",null,null,null,null,null,null,null,null,null,null,null,null,null,null,null,null,null,null,null,null,null,null,null,null,null,null,null,null,null,null,null,null,null,null,null,null,null,"PHYS320"]
["MKTG430",null,null,null,null,null,null,null,null,null,null,null,null,null,null,null,null,null,null,null,null,null,null,null,null,null,null,null,null,null,null,null,null,null,null,null,null,null,"POLI330"]
["MKTG440",null,null,null,null,null,null,null,null,null,null,null,null,null,null,null,null,null,null,null,null,null,null,null,null,null,null,null,null,null,null,null,null,null,null,null,null,null,"POLI332"]
["NETW202",null,null,null,null,null,null,null,null,null,null,null,null,null,null,null,null,null,null,null,null,null,null,null,null,null,null,null,null,null,null,null,null,null,null,null,null,null,"POLI457"]
["NETW203",null,null,null,null,null,null,null,null,null,null,null,null,null,null,null,null,null,null,null,null,null,null,null,null,null,null,null,null,null,null,null,null,null,null,null,null,null,"PROJ330"]
["NETW204",null,null,null,null,null,null,null,null,null,null,null,null,null,null,null,null,null,null,null,null,null,null,null,null,null,null,null,null,null,null,null,null,null,null,null,null,null,"PROJ410"]
["NETW205",null,null,null,null,null,null,null,null,null,null,null,null,null,null,null,null,null,null,null,null,null,null,null,null,null,null,null,null,null,null,null,null,null,null,null,null,null,"PROJ420"]
["NETW206",null,null,null,null,null,null,null,null,null,null,null,null,null,null,null,null,null,null,null,null,null,null,null,null,null,null,null,null,null,null,null,null,null,null,null,null,null,"PROJ430"]
["NETW207",null,null,null,null,null,null,null,null,null,null,null,null,null,null,null,null,null,null,null,null,null,null,null,null,null,null,null,null,null,null,null,null,null,null,null,null,null,"PSYC110"]
["NETW208",null,null,null,null,null,null,null,null,null,null,null,null,null,null,null,null,null,null,null,null,null,null,null,null,null,null,null,null,null,null,null,null,null,null,null,null,null,"PSYC290"]
["NETW209",null,null,null,null,null,null,null,null,null,null,null,null,null,null,null,null,null,null,null,null,null,null,null,null,null,null,null,null,null,null,null,null,null,null,null,null,null,"PSYC305"]
["NETW230",null,null,null,null,null,null,null,null,null,null,null,null,null,null,null,null,null,null,null,null,null,null,null,null,null,null,null,null,null,null,null,null,null,null,null,null,null,"PSYC307"]
["NETW240",null,null,null,null,null,null,null,null,null,null,null,null,null,null,null,null,null,null,null,null,null,null,null,null,null,null,null,null,null,null,null,null,null,null,null,null,null,"PSYC315"]
["NETW250",null,null,null,null,null,null,null,null,null,null,null,null,null,null,null,null,null,null,null,null,null,null,null,null,null,null,null,null,null,null,null,null,null,null,null,null,null,"REET300"]
["NETW310",null,null,null,null,null,null,null,null,null,null,null,null,null,null,null,null,null,null,null,null,null,null,null,null,null,null,null,null,null,null,null,null,null,null,null,null,null,"REET420"]
["NETW320",null,null,null,null,null,null,null,null,null,null,null,null,null,null,null,null,null,null,null,null,null,null,null,null,null,null,null,null,null,null,null,null,null,null,null,null,null,"REET425"]
["NETW360",null,null,null,null,null,null,null,null,null,null,null,null,null,null,null,null,null,null,null,null,null,null,null,null,null,null,null,null,null,null,null,null,null,null,null,null,null,"RELI448"]
["NETW410",null,null,null,null,null,null,null,null,null,null,null,null,null,null,null,null,null,null,null,null,null,null,null,null,null,null,null,null,null,null,null,null,null,null,null,null,null,"SAI430"]
["NETW411",null,null,null,null,null,null,null,null,null,null,null,null,null,null,null,null,null,null,null,null,null,null,null,null,null,null,null,null,null,null,null,null,null,null,null,null,null,"SAI440"]
["NETW420",null,null,null,null,null,null,null,null,null,null,null,null,null,null,null,null,null,null,null,null,null,null,null,null,null,null,null,null,null,null,null,null,null,null,null,null,null,"SAI460"]
["NETW430",null,null,null,null,null,null,null,null,null,null,null,null,null,null,null,null,null,null,null,null,null,null,null,null,null,null,null,null,null,null,null,null,null,null,null,null,null,"SBE310"]
["NETW471",null,null,null,null,null,null,null,null,null,null,null,null,null,null,null,null,null,null,null,null,null,null,null,null,null,null,null,null,null,null,null,null,null,null,null,null,null,"SBE330"]
["NETW490",null,null,null,null,null,null,null,null,null,null,null,null,null,null,null,null,null,null,null,null,null,null,null,null,null,null,null,null,null,null,null,null,null,null,null,null,null,"SBE420"]
["NETW494",null,null,null,null,null,null,null,null,null,null,null,null,null,null,null,null,null,null,null,null,null,null,null,null,null,null,null,null,null,null,null,null,null,null,null,null,null,"SBE430"]
["NETW497",null,null,null,null,null,null,null,null,null,null,null,null,null,null,null,null,null,null,null,null,null,null,null,null,null,null,null,null,null,null,null,null,null,null,null,null,null,"SBE440"]
["PHIL347",null,null,null,null,null,null,null,null,null,null,null,null,null,null,null,null,null,null,null,null,null,null,null,null,null,null,null,null,null,null,null,null,null,null,null,null,null,"SCI204"]
["PHIL447",null,null,null,null,null,null,null,null,null,null,null,null,null,null,null,null,null,null,null,null,null,null,null,null,null,null,null,null,null,null,null,null,null,null,null,null,null,"SCI214"]
["PHIL449",null,null,null,null,null,null,null,null,null,null,null,null,null,null,null,null,null,null,null,null,null,null,null,null,null,null,null,null,null,null,null,null,null,null,null,null,null,"SCI224"]
["PHYS204",null,null,null,null,null,null,null,null,null,null,null,null,null,null,null,null,null,null,null,null,null,null,null,null,null,null,null,null,null,null,null,null,null,null,null,null,null,"SCI228"]
["PHYS216",null,null,null,null,null,null,null,null,null,null,null,null,null,null,null,null,null,null,null,null,null,null,null,null,null,null,null,null,null,null,null,null,null,null,null,null,null,"SEC280"]
["PHYS310",null,null,null,null,null,null,null,null,null,null,null,null,null,null,null,null,null,null,null,null,null,null,null,null,null,null,null,null,null,null,null,null,null,null,null,null,null,"SEC310"]
["PHYS320",null,null,null,null,null,null,null,null,null,null,null,null,null,null,null,null,null,null,null,null,null,null,null,null,null,null,null,null,null,null,null,null,null,null,null,null,null,"SEC311"]
["POLI330",null,null,null,null,null,null,null,null,null,null,null,null,null,null,null,null,null,null,null,null,null,null,null,null,null,null,null,null,null,null,null,null,null,null,null,null,null,"SEC320"]
["POLI332",null,null,null,null,null,null,null,null,null,null,null,null,null,null,null,null,null,null,null,null,null,null,null,null,null,null,null,null,null,null,null,null,null,null,null,null,null,"SEC321"]
["POLI410",null,null,null,null,null,null,null,null,null,null,null,null,null,null,null,null,null,null,null,null,null,null,null,null,null,null,null,null,null,null,null,null,null,null,null,null,null,"SEC330"]
["POLI457",null,null,null,null,null,null,null,null,null,null,null,null,null,null,null,null,null,null,null,null,null,null,null,null,null,null,null,null,null,null,null,null,null,null,null,null,null,"SEC340"]
["PROJ330",null,null,null,null,null,null,null,null,null,null,null,null,null,null,null,null,null,null,null,null,null,null,null,null,null,null,null,null,null,null,null,null,null,null,null,null,null,"SEC360"]
["PROJ410",null,null,null,null,null,null,null,null,null,null,null,null,null,null,null,null,null,null,null,null,null,null,null,null,null,null,null,null,null,null,null,null,null,null,null,null,null,"SEC370"]
["PROJ420",null,null,null,null,null,null,null,null,null,null,null,null,null,null,null,null,null,null,null,null,null,null,null,null,null,null,null,null,null,null,null,null,null,null,null,null,null,"SEC410"]
["PROJ430",null,null,null,null,null,null,null,null,null,null,null,null,null,null,null,null,null,null,null,null,null,null,null,null,null,null,null,null,null,null,null,null,null,null,null,null,null,"SEC415"]
["PSYC110",null,null,null,null,null,null,null,null,null,null,null,null,null,null,null,null,null,null,null,null,null,null,null,null,null,null,null,null,null,null,null,null,null,null,null,null,null,"SEC420"]
["PSYC290",null,null,null,null,null,null,null,null,null,null,null,null,null,null,null,null,null,null,null,null,null,null,null,null,null,null,null,null,null,null,null,null,null,null,null,null,null,"SEC440"]
["PSYC305",null,null,null,null,null,null,null,null,null,null,null,null,null,null,null,null,null,null,null,null,null,null,null,null,null,null,null,null,null,null,null,null,null,null,null,null,null,"SEC450"]
["PSYC307",null,null,null,null,null,null,null,null,null,null,null,null,null,null,null,null,null,null,null,null,null,null,null,null,null,null,null,null,null,null,null,null,null,null,null,null,null,"SEC453"]
["PSYC315",null,null,null,null,null,null,null,null,null,null,null,null,null,null,null,null,null,null,null,null,null,null,null,null,null,null,null,null,null,null,null,null,null,null,null,null,null,"SOCS185"]
["REET300",null,null,null,null,null,null,null,null,null,null,null,null,null,null,null,null,null,null,null,null,null,null,null,null,null,null,null,null,null,null,null,null,null,null,null,null,null,"SOCS315"]
["REET420",null,null,null,null,null,null,null,null,null,null,null,null,null,null,null,null,null,null,null,null,null,null,null,null,null,null,null,null,null,null,null,null,null,null,null,null,null,"SOCS325"]
["REET425",null,null,null,null,null,null,null,null,null,null,null,null,null,null,null,null,null,null,null,null,null,null,null,null,null,null,null,null,null,null,null,null,null,null,null,null,null,"SOCS335"]
["RELI448",null,null,null,null,null,null,null,null,null,null,null,null,null,null,null,null,null,null,null,null,null,null,null,null,null,null,null,null,null,null,null,null,null,null,null,null,null,"SOCS350"]
["SAI430",null,null,null,null,null,null,null,null,null,null,null,null,null,null,null,null,null,null,null,null,null,null,null,null,null,null,null,null,null,null,null,null,null,null,null,null,null,"SPCH275"]
["SAI440",null,null,null,null,null,null,null,null,null,null,null,null,null,null,null,null,null,null,null,null,null,null,null,null,null,null,null,null,null,null,null,null,null,null,null,null,null,"SPCH277"]
["SAI460",null,null,null,null,null,null,null,null,null,null,null,null,null,null,null,null,null,null,null,null,null,null,null,null,null,null,null,null,null,null,null,null,null,null,null,null,null,"SUST310"]
["SBE310",null,null,null,null,null,null,null,null,null,null,null,null,null,null,null,null,null,null,null,null,null,null,null,null,null,null,null,null,null,null,null,null,null,null,null,null,null,"SUST320"]
["SBE330",null,null,null,null,null,null,null,null,null,null,null,null,null,null,null,null,null,null,null,null,null,null,null,null,null,null,null,null,null,null,null,null,null,null,null,null,null,"SUST410"]
["SBE420",null,null,null,null,null,null,null,null,null,null,null,null,null,null,null,null,null,null,null,null,null,null,null,null,null,null,null,null,null,null,null,null,null,null,null,null,null,"TC160"]
["SBE430",null,null,null,null,null,null,null,null,null,null,null,null,null,null,null,null,null,null,null,null,null,null,null,null,null,null,null,null,null,null,null,null,null,null,null,null,null,"TC220"]
["SBE440",null,null,null,null,null,null,null,null,null,null,null,null,null,null,null,null,null,null,null,null,null,null,null,null,null,null,null,null,null,null,null,null,null,null,null,null,null,"TC310"]
["SCI204",null,null,null,null,null,null,null,null,null,null,null,null,null,null,null,null,null,null,null,null,null,null,null,null,null,null,null,null,null,null,null,null,null,null,null,null,null,"TC320"]
["SCI214",null,null,null,null,null,null,null,null,null,null,null,null,null,null,null,null,null,null,null,null,null,null,null,null,null,null,null,null,null,null,null,null,null,null,null,null,null,"TC360"]
["SCI224",null,null,null,null,null,null,null,null,null,null,null,null,null,null,null,null,null,null,null,null,null,null,null,null,null,null,null,null,null,null,null,null,null,null,null,null,null,"TC420"]
["SCI228",null,null,null,null,null,null,null,null,null,null,null,null,null,null,null,null,null,null,null,null,null,null,null,null,null,null,null,null,null,null,null,null,null,null,null,null,null,"TC440"]
["SCI230",null,null,null,null,null,null,null,null,null,null,null,null,null,null,null,null,null,null,null,null,null,null,null,null,null,null,null,null,null,null,null,null,null,null,null,null,null,"WBA420"]
["SEC280",null,null,null,null,null,null,null,null,null,null,null,null,null,null,null,null,null,null,null,null,null,null,null,null,null,null,null,null,null,null,null,null,null,null,null,null,null,"WBA430"]
["SEC310",null,null,null,null,null,null,null,null,null,null,null,null,null,null,null,null,null,null,null,null,null,null,null,null,null,null,null,null,null,null,null,null,null,null,null,null,null,"WBA440"]
["SEC311",null,null,null,null,null,null,null,null,null,null,null,null,null,null,null,null,null,null,null,null,null,null,null,null,null,null,null,null,null,null,null,null,null,null,null,null,null,"WBG310"]
["SEC320",null,null,null,null,null,null,null,null,null,null,null,null,null,null,null,null,null,null,null,null,null,null,null,null,null,null,null,null,null,null,null,null,null,null,null,null,null,"WBG340"]
["SEC321",null,null,null,null,null,null,null,null,null,null,null,null,null,null,null,null,null,null,null,null,null,null,null,null,null,null,null,null,null,null,null,null,null,null,null,null,null,"WBG370"]
["SEC330",null,null,null,null,null,null,null,null,null,null,null,null,null,null,null,null,null,null,null,null,null,null,null,null,null,null,null,null,null,null,null,null,null,null,null,null,null,"WBG410"]
["SEC340",null,null,null,null,null,null,null,null,null,null,null,null,null,null,null,null,null,null,null,null,null,null,null,null,null,null,null,null,null,null,null,null,null,null,null,null,null,"WBG450"]
["SEC360",null,null,null,null,null,null,null,null,null,null,null,null,null,null,null,null,null,null,null,null,null,null,null,null,null,null,null,null,null,null,null,null,null,null,null,null,null,"WDD420"]
["SEC370",null,null,null,null,null,null,null,null,null,null,null,null,null,null,null,null,null,null,null,null,null,null,null,null,null,null,null,null,null,null,null,null,null,null,null,null,null,"WEB320"]
["SEC410",null,null,null,null,null,null,null,null,null,null,null,null,null,null,null,null,null,null,null,null,null,null,null,null,null,null,null,null,null,null,null,null,null,null,null,null,null,"WEB375"]
["SEC415",null,null,null,null,null,null,null,null,null,null,null,null,null,null,null,null,null,null,null,null,null,null,null,null,null,null,null,null,null,null,null,null,null,null,null,null,null,"WEB460"]
["SEC420",null,null,null,null,null,null,null,null,null,null,null,null,null,null,null,null,null,null,null,null,null,null,null,null,null,null,null,null,null,null,null,null,null,null,null,null,null,"WGD201"]
["SEC440",null,null,null,null,null,null,null,null,null,null,null,null,null,null,null,null,null,null,null,null,null,null,null,null,null,null,null,null,null,null,null,null,null,null,null,null,null,"WGD205"]
["SEC450",null,null,null,null,null,null,null,null,null,null,null,null,null,null,null,null,null,null,null,null,null,null,null,null,null,null,null,null,null,null,null,null,null,null,null,null,null,"WGD210"]
["SEC453",null,null,null,null,null,null,null,null,null,null,null,null,null,null,null,null,null,null,null,null,null,null,null,null,null,null,null,null,null,null,null,null,null,null,null,null,null,"WGD229"]
["SOCS185",null,null,null,null,null,null,null,null,null,null,null,null,null,null,null,null,null,null,null,null,null,null,null,null,null,null,null,null,null,null,null,null,null,null,null,null,null,"WGD232"]
["SOCS190",null,null,null,null,null,null,null,null,null,null,null,null,null,null,null,null,null,null,null,null,null,null,null,null,null,null,null,null,null,null,null,null,null,null,null,null,null,"WGD235"]
["SOCS315",null,null,null,null,null,null,null,null,null,null,null,null,null,null,null,null,null,null,null,null,null,null,null,null,null,null,null,null,null,null,null,null,null,null,null,null,null,"WGD242"]
["SOCS325",null,null,null,null,null,null,null,null,null,null,null,null,null,null,null,null,null,null,null,null,null,null,null,null,null,null,null,null,null,null,null,null,null,null,null,null,null,"WGD251"]
["SOCS335",null,null,null,null,null,null,null,null,null,null,null,null,null,null,null,null,null,null,null,null,null,null,null,null,null,null,null,null,null,null,null,null,null,null,null,null,null,"WGD260"]
["SOCS350",null,null,null,null,null,null,null,null,null,null,null,null,null,null,null,null,null,null,null,null,null,null,null,null,null,null,null,null,null,null,null,null,null,null,null,null,null,"ELECTIVE"]
["SPCH275",null,null,null,null,null,null,null,null,null,null,null,null,null,null,null,null,null,null,null,null,null,null,null,null,null,null,null,null,null,null,null,null,null,null,null,null,null,"GEN ED SOC SCI"]
["SPCH277",null,null,null,null,null,null,null,null,null,null,null,null,null,null,null,null,null,null,null,null,null,null,null,null,null,null,null,null,null,null,null,null,null,null,null,null,null,"GEN ED HUMN"]
["SPCH279",null,null,null,null,null,null,null,null,null,null,null,null,null,null,null,null,null,null,null,null,null,null,null,null,null,null,null,null,null,null,null,null,null,null,null,null,null,"ENGL PLACE"]
["SUST310",null,null,null,null,null,null,null,null,null,null,null,null,null,null,null,null,null,null,null,null,null,null,null,null,null,null,null,null,null,null,null,null,null,null,null,null,null,"ENGL NEXT"]
["SUST320",null,null,null,null,null,null,null,null,null,null,null,null,null,null,null,null,null,null,null,null,null,null,null,null,null,null,null,null,null,null,null,null,null,null,null,null,null,"MATH PLACE"]
["SUST410",null,null,null,null,null,null,null,null,null,null,null,null,null,null,null,null,null,null,null,null,null,null,null,null,null,null,null,null,null,null,null,null,null,null,null,null,null,"MATH NEXT"]
["SUST420",null,null,null,null,null,null,null,null,null,null,null,null,null,null,null,null,null,null,null,null,null,null,null,null,null,null,null,null,null,null,null,null,null,null,null,null,null,"GEN ED ELECTIVE"]
["TC160",null,null,null,null,null,null,null,null,null,null,null,null,null,null,null,null,null,null,null,null,null,null,null,null,null,null,null,null,null,null,null,null,null,null,null,null,null,"BMT ELECTIVE"]
["TC220",null,null,null,null,null,null,null,null,null,null,null,null,null,null,null,null,null,null,null,null,null,null,null,null,null,null,null,null,null,null,null,null,null,null,null,null,null,"U/D GEN ED SOC SCI"]
["TC310",null,null,null,null,null,null,null,null,null,null,null,null,null,null,null,null,null,null,null,null,null,null,null,null,null,null,null,null,null,null,null,null,null,null,null,null,null,"U/D GEN ED ELECTIVE"]
["TC320",null,null,null,null,null,null,null,null,null,null,null,null,null,null,null,null,null,null,null,null,null,null,null,null,null,null,null,null,null,null,null,null,null,null,null,null,null,"U/D GEN ED HUMN"]
["TC360",null,null,null,null,null,null,null,null,null,null,null,null,null,null,null,null,null,null,null,null,null,null,null,null,null,null,null,null,null,null,null,null,null,null,null,null,null,"U/D GEN ED COMM"]
["TC420",null,null,null,null,null,null,null,null,null,null,null,null,null,null,null,null,null,null,null,null,null,null,null,null,null,null,null,null,null,null,null,null,null,null,null,null,null,"U/D ELECTIVE"]
["TC430",null,null,null,null,null,null,null,null,null,null,null,null,null,null,null,null,null,null,null,null,null,null,null,null,null,null,null,null,null,null,null,null,null,null,null,null,null,"U/D BMT ELECTIVE"]
["TC440",null,null,null,null,null,null,null,null,null,null,null,null,null,null,null,null,null,null,null,null,null,null,null,null,null,null,null,null,null,null,null,null,null,null,null,null,null,"U/D TECH ELECTIVE"]
["TC450"]
["WBA420"]
["WBA430"]
["WBA440"]
["WBG310"]
["WBG340"]
["WBG370"]
["WBG410"]
["WBG450"]
["WDD420"]
["WEB320"]
["WEB375"]
["WEB460"]
["WGD201"]
["WGD205"]
["WGD210"]
["WGD229"]
["WGD232"]
["WGD235"]
["WGD242"]
["WGD251"]
["WGD260"]
["ELECTIVE"]
["GEN ED SOC SCI"]
["GEN ED HUMN"]
["ENGL PLACE"]
["ENGL NEXT"]
["MATH PLACE"]
["MATH NEXT"]
["GEN ED ELECTIVE"]
["BMT ELECTIVE"]
["U/D GEN ED SOC SCI"]
["U/D GEN ED ELECTIVE"]
["U/D GEN ED HUMN"]
["U/D GEN ED COMM"]
["U/D ELECTIVE"]
["U/D BMT ELECTIVE"]
["U/D TECH ELECTIVE"]